Workbook

Sheet Page 1
B2: Abstract Assessment Roll
B3: _______________________ County, Wyoming Tax Year 2024
B6: Line | C6: Classification | D6: Market or Productive Value | E6: Assessed Value
B7: A | C7: Agriculture Lands | D7: ='Page 3'!F40 -> 0 | E7: ='Page 3'!G40 -> 0
B8: B | C8: Residential and Commercial Real Property | D8: ='Page 4'!D45 -> 0 | E8: ='Page 4'!E45 -> 0
B9: C | C9: Residential and Commercial Personal Property | D9: ='Page 4'!D58 -> 0 | E9: ='Page 4'!E58 -> 0
B10: D | C10: Industrial Real and Personal Property | D10: ='Page 9'!H30 -> 0 | E10: ='Page 9'!I30 -> 0
B11: E | C11: Total, County Assessed Property | D11: =SUM(D7:D10) -> 0 | E11: =SUM(E7:E10) -> 0
B15: STATE OF WYOMING
D16: )
D17: ) ss.
B18: County of __________________ | D18: )
B21: I, ___________________________, County Assessor in and for said County, in Wyoming, do hereby
B23: certify that the within and foregoing abstract of the assessment roll of the County of ______________________
B25: for the year 2024, was compiled from the official returns made by me for said year, after the same had been
B27: corrected and equalized by the Board of County Commissioners sitting as a Board of Equalization in and for
B29: said County, and the said abstract embraces the entire amount of locally assessed taxable property of said
B31: County as shown by said Assessment Roll.
B33: IN TESTIMONY WHEREOF, I have hereunto set my hand this ____ day of _______________, 2024
B35: _____________________________________________________________________County Assessor

Sheet Page 2
A1: Agricultural- Irrigated Crop Lands
A2: Line | B2: Classification | C2: Acres | D2: Productivity Value Per Acre | E2: Productive Value | F2: Assessed Value
B3: LRA 1-2-3 (DOR code)
A4: 1 | B4: Class II 40101 | C4: =IF(ISERROR(VLOOKUP(RIGHT(B4,5),Reference!$A$2:$F$201,5,FALSE))=TRUE,0,VLOOKUP(RIGHT(B4,5),Reference!$A$2:$F$201,5,FALSE)) -> 0 | D4: =IF(C4>0,E4/C4,0) -> 0 | E4: =VALUE(VLOOKUP(RIGHT(B4,5),Reference!$A$2:$H$201,4,FALSE)) -> 0 | F4: =VALUE(VLOOKUP(RIGHT(B4,5),Reference!$A$2:$H$201,3,FALSE)) -> 0
A5: 2 | B5: Class III 40102 | C5: =IF(ISERROR(VLOOKUP(RIGHT(B5,5),Reference!$A$2:$F$201,5,FALSE))=TRUE,0,VLOOKUP(RIGHT(B5,5),Reference!$A$2:$F$201,5,FALSE)) -> 0 | D5: =IF(C5>0,E5/C5,0) -> 0 | E5: =VALUE(VLOOKUP(RIGHT(B5,5),Reference!$A$2:$H$201,4,FALSE)) -> 0 | F5: =VALUE(VLOOKUP(RIGHT(B5,5),Reference!$A$2:$H$201,3,FALSE)) -> 0
A6: 3 | B6: Class IV 40103 | C6: =IF(ISERROR(VLOOKUP(RIGHT(B6,5),Reference!$A$2:$F$201,5,FALSE))=TRUE,0,VLOOKUP(RIGHT(B6,5),Reference!$A$2:$F$201,5,FALSE)) -> 0 | D6: =IF(C6>0,E6/C6,0) -> 0 | E6: =VALUE(VLOOKUP(RIGHT(B6,5),Reference!$A$2:$H$201,4,FALSE)) -> 0 | F6: =VALUE(VLOOKUP(RIGHT(B6,5),Reference!$A$2:$H$201,3,FALSE)) -> 0
A7: 4 | B7: Class V-VIII 40104 | C7: =IF(ISERROR(VLOOKUP(RIGHT(B7,5),Reference!$A$2:$F$201,5,FALSE))=TRUE,0,VLOOKUP(RIGHT(B7,5),Reference!$A$2:$F$201,5,FALSE)) -> 0 | D7: =IF(C7>0,E7/C7,0) -> 0 | E7: =VALUE(VLOOKUP(RIGHT(B7,5),Reference!$A$2:$H$201,4,FALSE)) -> 0 | F7: =VALUE(VLOOKUP(RIGHT(B7,5),Reference!$A$2:$H$201,3,FALSE)) -> 0
B8: LRA 4-5 (DOR code)
A9: 5 | B9: Class III 40105 | C9: =IF(ISERROR(VLOOKUP(RIGHT(B9,5),Reference!$A$2:$F$201,5,FALSE))=TRUE,0,VLOOKUP(RIGHT(B9,5),Reference!$A$2:$F$201,5,FALSE)) -> 0 | D9: =IF(C9>0,E9/C9,0) -> 0 | E9: =VALUE(VLOOKUP(RIGHT(B9,5),Reference!$A$2:$H$201,4,FALSE)) -> 0 | F9: =VALUE(VLOOKUP(RIGHT(B9,5),Reference!$A$2:$H$201,3,FALSE)) -> 0
A10: 6 | B10: Class IV 40106 | C10: =IF(ISERROR(VLOOKUP(RIGHT(B10,5),Reference!$A$2:$F$201,5,FALSE))=TRUE,0,VLOOKUP(RIGHT(B10,5),Reference!$A$2:$F$201,5,FALSE)) -> 0 | D10: =IF(C10>0,E10/C10,0) -> 0 | E10: =VALUE(VLOOKUP(RIGHT(B10,5),Reference!$A$2:$H$201,4,FALSE)) -> 0 | F10: =VALUE(VLOOKUP(RIGHT(B10,5),Reference!$A$2:$H$201,3,FALSE)) -> 0
A11: 7 | B11: Class V-VIII 40107 | C11: =IF(ISERROR(VLOOKUP(RIGHT(B11,5),Reference!$A$2:$F$201,5,FALSE))=TRUE,0,VLOOKUP(RIGHT(B11,5),Reference!$A$2:$F$201,5,FALSE)) -> 0 | D11: =IF(C11>0,E11/C11,0) -> 0 | E11: =VALUE(VLOOKUP(RIGHT(B11,5),Reference!$A$2:$H$201,4,FALSE)) -> 0 | F11: =VALUE(VLOOKUP(RIGHT(B11,5),Reference!$A$2:$H$201,3,FALSE)) -> 0
D12: =IF(C12>0,E12/C12,0) -> 0
A13: 100 | B13: Total Agricultural Irrigated Crop Lands | C13: =SUM(C3:C12) -> 0 | E13: =E4+E5+E6+E7+E9+E10+E11 -> 0 | F13: =F4+F5+F6+F7+F9+F10+F11 -> 0
A16: Agricultural- Dry Crop Lands
A17: Line | B17: Classification | C17: Acres | D17: Productivity Value Per Acre | E17: Productive Value | F17: Assessed Value
B18: LRA 1-2-3 (DOR code)
A19: 101 | B19: Class III 40201 | C19: =IF(ISERROR(VLOOKUP(RIGHT(B19,5),Reference!$A$2:$F$201,5,FALSE))=TRUE,0,VLOOKUP(RIGHT(B19,5),Reference!$A$2:$F$201,5,FALSE)) -> 0 | D19: =IF(C19>0,E19/C19,0) -> 0 | E19: =VALUE(VLOOKUP(RIGHT(B19,5),Reference!$A$2:$H$201,4,FALSE)) -> 0 | F19: =VALUE(VLOOKUP(RIGHT(B19,5),Reference!$A$2:$H$201,3,FALSE)) -> 0
A20: 102 | B20: Class IV 40202 | C20: =IF(ISERROR(VLOOKUP(RIGHT(B20,5),Reference!$A$2:$F$201,5,FALSE))=TRUE,0,VLOOKUP(RIGHT(B20,5),Reference!$A$2:$F$201,5,FALSE)) -> 0 | D20: =IF(C20>0,E20/C20,0) -> 0 | E20: =VALUE(VLOOKUP(RIGHT(B20,5),Reference!$A$2:$H$201,4,FALSE)) -> 0 | F20: =VALUE(VLOOKUP(RIGHT(B20,5),Reference!$A$2:$H$201,3,FALSE)) -> 0
A21: 103 | B21: Class V-VIII 40203 | C21: =IF(ISERROR(VLOOKUP(RIGHT(B21,5),Reference!$A$2:$F$201,5,FALSE))=TRUE,0,VLOOKUP(RIGHT(B21,5),Reference!$A$2:$F$201,5,FALSE)) -> 0 | D21: =IF(C21>0,E21/C21,0) -> 0 | E21: =VALUE(VLOOKUP(RIGHT(B21,5),Reference!$A$2:$H$201,4,FALSE)) -> 0 | F21: =VALUE(VLOOKUP(RIGHT(B21,5),Reference!$A$2:$H$201,3,FALSE)) -> 0
B22: LRA 4 (DOR code)
A23: 104 | B23: Class III 40204 | C23: =IF(ISERROR(VLOOKUP(RIGHT(B23,5),Reference!$A$2:$F$201,5,FALSE))=TRUE,0,VLOOKUP(RIGHT(B23,5),Reference!$A$2:$F$201,5,FALSE)) -> 0 | D23: =IF(C23>0,E23/C23,0) -> 0 | E23: =VALUE(VLOOKUP(RIGHT(B23,5),Reference!$A$2:$H$201,4,FALSE)) -> 0 | F23: =VALUE(VLOOKUP(RIGHT(B23,5),Reference!$A$2:$H$201,3,FALSE)) -> 0
A24: 105 | B24: Class IV 40205 | C24: =IF(ISERROR(VLOOKUP(RIGHT(B24,5),Reference!$A$2:$F$201,5,FALSE))=TRUE,0,VLOOKUP(RIGHT(B24,5),Reference!$A$2:$F$201,5,FALSE)) -> 0 | D24: =IF(C24>0,E24/C24,0) -> 0 | E24: =VALUE(VLOOKUP(RIGHT(B24,5),Reference!$A$2:$H$201,4,FALSE)) -> 0 | F24: =VALUE(VLOOKUP(RIGHT(B24,5),Reference!$A$2:$H$201,3,FALSE)) -> 0
A25: 106 | B25: Class V-VIII 40206 | C25: =IF(ISERROR(VLOOKUP(RIGHT(B25,5),Reference!$A$2:$F$201,5,FALSE))=TRUE,0,VLOOKUP(RIGHT(B25,5),Reference!$A$2:$F$201,5,FALSE)) -> 0 | D25: =IF(C25>0,E25/C25,0) -> 0 | E25: =VALUE(VLOOKUP(RIGHT(B25,5),Reference!$A$2:$H$201,4,FALSE)) -> 0 | F25: =VALUE(VLOOKUP(RIGHT(B25,5),Reference!$A$2:$H$201,3,FALSE)) -> 0
B26: LRA 5 (DOR code)
A27: 107 | B27: Class III 40207 | C27: =IF(ISERROR(VLOOKUP(RIGHT(B27,5),Reference!$A$2:$F$201,5,FALSE))=TRUE,0,VLOOKUP(RIGHT(B27,5),Reference!$A$2:$F$201,5,FALSE)) -> 0 | D27: =IF(C27>0,E27/C27,0) -> 0 | E27: =VALUE(VLOOKUP(RIGHT(B27,5),Reference!$A$2:$H$201,4,FALSE)) -> 0 | F27: =VALUE(VLOOKUP(RIGHT(B27,5),Reference!$A$2:$H$201,3,FALSE)) -> 0
A28: 108 | B28: Class IV 40208 | C28: =IF(ISERROR(VLOOKUP(RIGHT(B28,5),Reference!$A$2:$F$201,5,FALSE))=TRUE,0,VLOOKUP(RIGHT(B28,5),Reference!$A$2:$F$201,5,FALSE)) -> 0 | D28: =IF(C28>0,E28/C28,0) -> 0 | E28: =VALUE(VLOOKUP(RIGHT(B28,5),Reference!$A$2:$H$201,4,FALSE)) -> 0 | F28: =VALUE(VLOOKUP(RIGHT(B28,5),Reference!$A$2:$H$201,3,FALSE)) -> 0
A29: 109 | B29: Class V-VIII 40209 | C29: =IF(ISERROR(VLOOKUP(RIGHT(B29,5),Reference!$A$2:$F$201,5,FALSE))=TRUE,0,VLOOKUP(RIGHT(B29,5),Reference!$A$2:$F$201,5,FALSE)) -> 0 | D29: =IF(C29>0,E29/C29,0) -> 0 | E29: =VALUE(VLOOKUP(RIGHT(B29,5),Reference!$A$2:$H$201,4,FALSE)) -> 0 | F29: =VALUE(VLOOKUP(RIGHT(B29,5),Reference!$A$2:$H$201,3,FALSE)) -> 0
A30: 200 | B30: Total Agricultural Dry Crop Lands | C30: =SUM(C18:C29) -> 0 | E30: =SUM(E19:E29) -> 0 | F30: =SUM(F19:F29) -> 0

Sheet Page 3
A1: Agricultural- Range Lands
A2: Land | C2: Classification | D2: Acres | E2: Productivity Value Per Acre | F2: Productive Value | G2: Assessed Value
C3: LRA 1 (DOR Code)
A4: 201 | C4: R-1 40301 | D4: =IF(ISERROR(VLOOKUP(RIGHT(C4,5),Reference!$A$2:$F$201,5,FALSE))=TRUE,0,VLOOKUP(RIGHT(C4,5),Reference!$A$2:$F$201,5,FALSE)) -> 0 | E4: =IF(D4>0,F4/D4,0) -> 0 | F4: =VALUE(VLOOKUP(RIGHT(C4,5),Reference!$A$2:$H$201,4,FALSE)) -> 0 | G4: =VALUE(VLOOKUP(RIGHT(C4,5),Reference!$A$2:$H$201,3,FALSE)) -> 0
A5: 202 | C5: R-2 40302 | D5: =IF(ISERROR(VLOOKUP(RIGHT(C5,5),Reference!$A$2:$F$201,5,FALSE))=TRUE,0,VLOOKUP(RIGHT(C5,5),Reference!$A$2:$F$201,5,FALSE)) -> 0 | E5: 0 | F5: =VALUE(VLOOKUP(RIGHT(C5,5),Reference!$A$2:$H$201,4,FALSE)) -> 0 | G5: =VALUE(VLOOKUP(RIGHT(C5,5),Reference!$A$2:$H$201,3,FALSE)) -> 0
A6: 203 | C6: R-3 40303 | D6: =IF(ISERROR(VLOOKUP(RIGHT(C6,5),Reference!$A$2:$F$201,5,FALSE))=TRUE,0,VLOOKUP(RIGHT(C6,5),Reference!$A$2:$F$201,5,FALSE)) -> 0 | E6: 0 | F6: =VALUE(VLOOKUP(RIGHT(C6,5),Reference!$A$2:$H$201,4,FALSE)) -> 0 | G6: =VALUE(VLOOKUP(RIGHT(C6,5),Reference!$A$2:$H$201,3,FALSE)) -> 0
A7: 204 | C7: R-4 40304 | D7: =IF(ISERROR(VLOOKUP(RIGHT(C7,5),Reference!$A$2:$F$201,5,FALSE))=TRUE,0,VLOOKUP(RIGHT(C7,5),Reference!$A$2:$F$201,5,FALSE)) -> 0 | E7: 0 | F7: =VALUE(VLOOKUP(RIGHT(C7,5),Reference!$A$2:$H$201,4,FALSE)) -> 0 | G7: =VALUE(VLOOKUP(RIGHT(C7,5),Reference!$A$2:$H$201,3,FALSE)) -> 0
A8: 205 | C8: R-5 40305 | D8: =IF(ISERROR(VLOOKUP(RIGHT(C8,5),Reference!$A$2:$F$201,5,FALSE))=TRUE,0,VLOOKUP(RIGHT(C8,5),Reference!$A$2:$F$201,5,FALSE)) -> 0 | E8: 0 | F8: =VALUE(VLOOKUP(RIGHT(C8,5),Reference!$A$2:$H$201,4,FALSE)) -> 0 | G8: =VALUE(VLOOKUP(RIGHT(C8,5),Reference!$A$2:$H$201,3,FALSE)) -> 0
A9: 206 | C9: Waste 40306 | D9: =IF(ISERROR(VLOOKUP(RIGHT(C9,5),Reference!$A$2:$F$201,5,FALSE))=TRUE,0,VLOOKUP(RIGHT(C9,5),Reference!$A$2:$F$201,5,FALSE)) -> 0 | E9: 0 | F9: =VALUE(VLOOKUP(RIGHT(C9,5),Reference!$A$2:$H$201,4,FALSE)) -> 0 | G9: =VALUE(VLOOKUP(RIGHT(C9,5),Reference!$A$2:$H$201,3,FALSE)) -> 0
C10: LRA 2 (DOR Code)
A11: 207 | C11: R-1 40307 | D11: =IF(ISERROR(VLOOKUP(RIGHT(C11,5),Reference!$A$2:$F$201,5,FALSE))=TRUE,0,VLOOKUP(RIGHT(C11,5),Reference!$A$2:$F$201,5,FALSE)) -> 0 | E11: =IF(D11>0,F11/D11,0) -> 0 | F11: =VALUE(VLOOKUP(RIGHT(C11,5),Reference!$A$2:$H$201,4,FALSE)) -> 0 | G11: =VALUE(VLOOKUP(RIGHT(C11,5),Reference!$A$2:$H$201,3,FALSE)) -> 0
A12: 208 | C12: R-2 40308 | D12: =IF(ISERROR(VLOOKUP(RIGHT(C12,5),Reference!$A$2:$F$201,5,FALSE))=TRUE,0,VLOOKUP(RIGHT(C12,5),Reference!$A$2:$F$201,5,FALSE)) -> 0 | E12: 0 | F12: =VALUE(VLOOKUP(RIGHT(C12,5),Reference!$A$2:$H$201,4,FALSE)) -> 0 | G12: =VALUE(VLOOKUP(RIGHT(C12,5),Reference!$A$2:$H$201,3,FALSE)) -> 0
A13: 209 | C13: R-3 40309 | D13: =IF(ISERROR(VLOOKUP(RIGHT(C13,5),Reference!$A$2:$F$201,5,FALSE))=TRUE,0,VLOOKUP(RIGHT(C13,5),Reference!$A$2:$F$201,5,FALSE)) -> 0 | E13: 0 | F13: =VALUE(VLOOKUP(RIGHT(C13,5),Reference!$A$2:$H$201,4,FALSE)) -> 0 | G13: =VALUE(VLOOKUP(RIGHT(C13,5),Reference!$A$2:$H$201,3,FALSE)) -> 0
A14: 210 | C14: R-4 40310 | D14: =IF(ISERROR(VLOOKUP(RIGHT(C14,5),Reference!$A$2:$F$201,5,FALSE))=TRUE,0,VLOOKUP(RIGHT(C14,5),Reference!$A$2:$F$201,5,FALSE)) -> 0 | E14: 0 | F14: =VALUE(VLOOKUP(RIGHT(C14,5),Reference!$A$2:$H$201,4,FALSE)) -> 0 | G14: =VALUE(VLOOKUP(RIGHT(C14,5),Reference!$A$2:$H$201,3,FALSE)) -> 0
A15: 211 | C15: R-5 40311 | D15: =IF(ISERROR(VLOOKUP(RIGHT(C15,5),Reference!$A$2:$F$201,5,FALSE))=TRUE,0,VLOOKUP(RIGHT(C15,5),Reference!$A$2:$F$201,5,FALSE)) -> 0 | E15: 0 | F15: =VALUE(VLOOKUP(RIGHT(C15,5),Reference!$A$2:$H$201,4,FALSE)) -> 0 | G15: =VALUE(VLOOKUP(RIGHT(C15,5),Reference!$A$2:$H$201,3,FALSE)) -> 0
A16: 212 | C16: Waste 40312 | D16: =IF(ISERROR(VLOOKUP(RIGHT(C16,5),Reference!$A$2:$F$201,5,FALSE))=TRUE,0,VLOOKUP(RIGHT(C16,5),Reference!$A$2:$F$201,5,FALSE)) -> 0 | E16: 0 | F16: =VALUE(VLOOKUP(RIGHT(C16,5),Reference!$A$2:$H$201,4,FALSE)) -> 0 | G16: =VALUE(VLOOKUP(RIGHT(C16,5),Reference!$A$2:$H$201,3,FALSE)) -> 0
C17: LRA 3 (DOR Code)
A18: 213 | C18: R-1 40313 | D18: =IF(ISERROR(VLOOKUP(RIGHT(C18,5),Reference!$A$2:$F$201,5,FALSE))=TRUE,0,VLOOKUP(RIGHT(C18,5),Reference!$A$2:$F$201,5,FALSE)) -> 0 | E18: =IF(D18>0,F18/D18,0) -> 0 | F18: =VALUE(VLOOKUP(RIGHT(C18,5),Reference!$A$2:$H$201,4,FALSE)) -> 0 | G18: =VALUE(VLOOKUP(RIGHT(C18,5),Reference!$A$2:$H$201,3,FALSE)) -> 0
A19: 214 | C19: R-2 40314 | D19: =IF(ISERROR(VLOOKUP(RIGHT(C19,5),Reference!$A$2:$F$201,5,FALSE))=TRUE,0,VLOOKUP(RIGHT(C19,5),Reference!$A$2:$F$201,5,FALSE)) -> 0 | E19: 0 | F19: =VALUE(VLOOKUP(RIGHT(C19,5),Reference!$A$2:$H$201,4,FALSE)) -> 0 | G19: =VALUE(VLOOKUP(RIGHT(C19,5),Reference!$A$2:$H$201,3,FALSE)) -> 0
A20: 215 | C20: R-3 40315 | D20: =IF(ISERROR(VLOOKUP(RIGHT(C20,5),Reference!$A$2:$F$201,5,FALSE))=TRUE,0,VLOOKUP(RIGHT(C20,5),Reference!$A$2:$F$201,5,FALSE)) -> 0 | E20: 0 | F20: =VALUE(VLOOKUP(RIGHT(C20,5),Reference!$A$2:$H$201,4,FALSE)) -> 0 | G20: =VALUE(VLOOKUP(RIGHT(C20,5),Reference!$A$2:$H$201,3,FALSE)) -> 0
A21: 216 | C21: R-4 40316 | D21: =IF(ISERROR(VLOOKUP(RIGHT(C21,5),Reference!$A$2:$F$201,5,FALSE))=TRUE,0,VLOOKUP(RIGHT(C21,5),Reference!$A$2:$F$201,5,FALSE)) -> 0 | E21: 0 | F21: =VALUE(VLOOKUP(RIGHT(C21,5),Reference!$A$2:$H$201,4,FALSE)) -> 0 | G21: =VALUE(VLOOKUP(RIGHT(C21,5),Reference!$A$2:$H$201,3,FALSE)) -> 0
A22: 217 | C22: R-5 40317 | D22: =IF(ISERROR(VLOOKUP(RIGHT(C22,5),Reference!$A$2:$F$201,5,FALSE))=TRUE,0,VLOOKUP(RIGHT(C22,5),Reference!$A$2:$F$201,5,FALSE)) -> 0 | E22: 0 | F22: =VALUE(VLOOKUP(RIGHT(C22,5),Reference!$A$2:$H$201,4,FALSE)) -> 0 | G22: =VALUE(VLOOKUP(RIGHT(C22,5),Reference!$A$2:$H$201,3,FALSE)) -> 0
A23: 218 | C23: Waste 40318 | D23: =IF(ISERROR(VLOOKUP(RIGHT(C23,5),Reference!$A$2:$F$201,5,FALSE))=TRUE,0,VLOOKUP(RIGHT(C23,5),Reference!$A$2:$F$201,5,FALSE)) -> 0 | E23: 0 | F23: =VALUE(VLOOKUP(RIGHT(C23,5),Reference!$A$2:$H$201,4,FALSE)) -> 0 | G23: =VALUE(VLOOKUP(RIGHT(C23,5),Reference!$A$2:$H$201,3,FALSE)) -> 0
C24: LRA 4 (DOR Code)
A25: 219 | C25: R-1 40313 | D25: 0 | E25: =IF(D25>0,F25/D25,0) -> 0 | F25: 0 | G25: 0
A26: 220 | C26: R-2 40314 | D26: 0 | E26: 0 | F26: 0 | G26: 0
A27: 221 | C27: R-3 40315 | D27: 0 | E27: 0 | F27: 0 | G27: 0
A28: 222 | C28: R-4 40316 | D28: 0 | E28: 0 | F28: 0 | G28: 0
A29: 223 | C29: R-5 40317 | D29: 0 | E29: 0 | F29: 0 | G29: 0
A30: 224 | C30: Waste 40318 | D30: 0 | E30: 0 | F30: 0 | G30: 0
C31: LRA 5 (DOR Code)
A32: 225 | C32: R-1 40319 | D32: =IF(ISERROR(VLOOKUP(RIGHT(C32,5),Reference!$A$2:$F$201,5,FALSE))=TRUE,0,VLOOKUP(RIGHT(C32,5),Reference!$A$2:$F$201,5,FALSE)) -> 0 | E32: =IF(D32>0,F32/D32,0) -> 0 | F32: =VALUE(VLOOKUP(RIGHT(C32,5),Reference!$A$2:$H$201,4,FALSE)) -> 0 | G32: =VALUE(VLOOKUP(RIGHT(C32,5),Reference!$A$2:$H$201,3,FALSE)) -> 0
A33: 226 | C33: R-2 40320 | D33: =IF(ISERROR(VLOOKUP(RIGHT(C33,5),Reference!$A$2:$F$201,5,FALSE))=TRUE,0,VLOOKUP(RIGHT(C33,5),Reference!$A$2:$F$201,5,FALSE)) -> 0 | E33: 0 | F33: =VALUE(VLOOKUP(RIGHT(C33,5),Reference!$A$2:$H$201,4,FALSE)) -> 0 | G33: =VALUE(VLOOKUP(RIGHT(C33,5),Reference!$A$2:$H$201,3,FALSE)) -> 0
A34: 227 | C34: R-3 40321 | D34: =IF(ISERROR(VLOOKUP(RIGHT(C34,5),Reference!$A$2:$F$201,5,FALSE))=TRUE,0,VLOOKUP(RIGHT(C34,5),Reference!$A$2:$F$201,5,FALSE)) -> 0 | E34: 0 | F34: =VALUE(VLOOKUP(RIGHT(C34,5),Reference!$A$2:$H$201,4,FALSE)) -> 0 | G34: =VALUE(VLOOKUP(RIGHT(C34,5),Reference!$A$2:$H$201,3,FALSE)) -> 0
A35: 228 | C35: R-4 40322 | D35: =IF(ISERROR(VLOOKUP(RIGHT(C35,5),Reference!$A$2:$F$201,5,FALSE))=TRUE,0,VLOOKUP(RIGHT(C35,5),Reference!$A$2:$F$201,5,FALSE)) -> 0 | E35: 0 | F35: =VALUE(VLOOKUP(RIGHT(C35,5),Reference!$A$2:$H$201,4,FALSE)) -> 0 | G35: =VALUE(VLOOKUP(RIGHT(C35,5),Reference!$A$2:$H$201,3,FALSE)) -> 0
A36: 229 | C36: R-5 40323 | D36: =IF(ISERROR(VLOOKUP(RIGHT(C36,5),Reference!$A$2:$F$201,5,FALSE))=TRUE,0,VLOOKUP(RIGHT(C36,5),Reference!$A$2:$F$201,5,FALSE)) -> 0 | E36: 0 | F36: =VALUE(VLOOKUP(RIGHT(C36,5),Reference!$A$2:$H$201,4,FALSE)) -> 0 | G36: =VALUE(VLOOKUP(RIGHT(C36,5),Reference!$A$2:$H$201,3,FALSE)) -> 0
A37: 230 | C37: Waste 40324 | D37: =IF(ISERROR(VLOOKUP(RIGHT(C37,5),Reference!$A$2:$F$201,5,FALSE))=TRUE,0,VLOOKUP(RIGHT(C37,5),Reference!$A$2:$F$201,5,FALSE)) -> 0 | E37: 0 | F37: =VALUE(VLOOKUP(RIGHT(C37,5),Reference!$A$2:$H$201,4,FALSE)) -> 0 | G37: =VALUE(VLOOKUP(RIGHT(C37,5),Reference!$A$2:$H$201,3,FALSE)) -> 0
A38: 300 | C38: Total Agricultural Range Lands | D38: =SUM(D3:D37) -> 0 | F38: =SUM(F4:F37) -> 0 | G38: =SUM(G3:G37) -> 0
A40: A | C40: TOTAL AGRICULTURAL LANDS (100 + 200 + 300) | D40: ='Page 2'!C13+'Page 2'!C30+'Page 3'!D38 -> 0 | F40: ='Page 2'!E13+'Page 2'!E30+'Page 3'!F38 -> 0 | G40: ='Page 2'!F13+'Page 2'!F30+'Page 3'!G38 -> 0

Sheet Page 4
B1: Residential and Commercial Real Property
A2: Line | B2: Abstract Codes | C2: Classification | D2: Fair Market Value | E2: Assessed Value | F2: Sub Total per Line
A3: 301 | C3: Residential Lands (Includes Farmsteads) DOR code- 00101, 00102, 00103, 00400, 10001, 10002, 10003, 10004, 10005
B4: 00101 | C4: Vacant Land- Residential Vacant- In City Limits | D4: =IF(ISERROR(VLOOKUP(B4,Reference!$A$2:$F$201,4,FALSE))=TRUE,0,VLOOKUP(RIGHT(B4,5),Reference!$A$2:$F$201,4,FALSE)) -> 0 | E4: =IF(D4<>0,VLOOKUP(RIGHT(B4,5),Reference!$A$2:$H$201,3,FALSE),0) -> 0
B5: 00102 | C5: Vacant Land- Residential Vacant- Out of City Limits- Platted | D5: =IF(ISERROR(VLOOKUP(B5,Reference!$A$2:$F$201,4,FALSE))=TRUE,0,VLOOKUP(RIGHT(B5,5),Reference!$A$2:$F$201,4,FALSE)) -> 0 | E5: =IF(D5<>0,VLOOKUP(RIGHT(B5,5),Reference!$A$2:$H$201,3,FALSE),0) -> 0
B6: 00103 | C6: Vacant Land- Residential Vacant- Out of City Limits- UnPlatted | D6: =IF(ISERROR(VLOOKUP(B6,Reference!$A$2:$F$201,4,FALSE))=TRUE,0,VLOOKUP(RIGHT(B6,5),Reference!$A$2:$F$201,4,FALSE)) -> 0 | E6: =IF(D6<>0,VLOOKUP(RIGHT(B6,5),Reference!$A$2:$H$201,3,FALSE),0) -> 0
B7: 00400 | C7: Vacant Land- Planned Unit Development Vacant Lots- all inclusive | D7: =IF(ISERROR(VLOOKUP(B7,Reference!$A$2:$F$201,4,FALSE))=TRUE,0,VLOOKUP(RIGHT(B7,5),Reference!$A$2:$F$201,4,FALSE)) -> 0 | E7: =IF(D7<>0,VLOOKUP(RIGHT(B7,5),Reference!$A$2:$H$201,3,FALSE),0) -> 0
B8: 10001 | C8: Residential- Improved Land- Single Family Residence | D8: =IF(ISERROR(VLOOKUP(B8,Reference!$A$2:$F$201,4,FALSE))=TRUE,0,VLOOKUP(RIGHT(B8,5),Reference!$A$2:$F$201,4,FALSE)) -> 0 | E8: =IF(D8<>0,VLOOKUP(RIGHT(B8,5),Reference!$A$2:$H$201,3,FALSE),0) -> 0
B9: 10002 | C9: Residential- Improved Land- Agricultural Residence | D9: =IF(ISERROR(VLOOKUP(B9,Reference!$A$2:$F$201,4,FALSE))=TRUE,0,VLOOKUP(RIGHT(B9,5),Reference!$A$2:$F$201,4,FALSE)) -> 0 | E9: =IF(D9<>0,VLOOKUP(RIGHT(B9,5),Reference!$A$2:$H$201,3,FALSE),0) -> 0
B10: 10003 | C10: Residential- Improved Land- Residential Support/Out Building Only | D10: =IF(ISERROR(VLOOKUP(B10,Reference!$A$2:$F$201,4,FALSE))=TRUE,0,VLOOKUP(RIGHT(B10,5),Reference!$A$2:$F$201,4,FALSE)) -> 0 | E10: =IF(D10<>0,VLOOKUP(RIGHT(B10,5),Reference!$A$2:$H$201,3,FALSE),0) -> 0
B11: 10004 | C11: Residential- Improved Land- Agricultural Support/Out Building Only | D11: =IF(ISERROR(VLOOKUP(B11,Reference!$A$2:$F$201,4,FALSE))=TRUE,0,VLOOKUP(RIGHT(B11,5),Reference!$A$2:$F$201,4,FALSE)) -> 0 | E11: =IF(D11<>0,VLOOKUP(RIGHT(B11,5),Reference!$A$2:$H$201,3,FALSE),0) -> 0
B12: 10005 | C12: Residential- Improved Land- Duplex Triplex Townhouse | D12: =IF(ISERROR(VLOOKUP(B12,Reference!$A$2:$F$201,4,FALSE))=TRUE,0,VLOOKUP(RIGHT(B12,5),Reference!$A$2:$F$201,4,FALSE)) -> 0 | E12: =IF(D12<>0,VLOOKUP(RIGHT(B12,5),Reference!$A$2:$H$201,3,FALSE),0) -> 0
B13: Sub Total | C13: Total Residential Lands (Line 301) | D13: =SUM(D4:D12) -> 0 | E13: =SUM(E4:E12) -> 0 | F13: =E13 -> 0
A14: 302 | C14: Residential Improvements (includes residences on farmsteads) DOR Codes- 10101, 10102, 10200, 10401, 10402, 10500, 10600
B15: 10101 | C15: Residential- Single Family Improvements- Site Built | D15: =IF(ISERROR(VLOOKUP(B15,Reference!$A$2:$F$201,4,FALSE))=TRUE,0,VLOOKUP(RIGHT(B15,5),Reference!$A$2:$F$201,4,FALSE)) -> 0 | E15: =IF(D15<>0,VLOOKUP(RIGHT(B15,5),Reference!$A$2:$H$201,3,FALSE),0) -> 0
B16: 10102 | C16: Residential- Single Family Improvements- Manufactured Home- Cancelled Title | D16: =IF(ISERROR(VLOOKUP(B16,Reference!$A$2:$F$201,4,FALSE))=TRUE,0,VLOOKUP(RIGHT(B16,5),Reference!$A$2:$F$201,4,FALSE)) -> 0 | E16: =IF(D16<>0,VLOOKUP(RIGHT(B16,5),Reference!$A$2:$H$201,3,FALSE),0) -> 0
B17: 10200 | C17: Residential- Single Family Improvements- Manufactured Home- Titled | D17: =IF(ISERROR(VLOOKUP(B17,Reference!$A$2:$F$201,4,FALSE))=TRUE,0,VLOOKUP(RIGHT(B17,5),Reference!$A$2:$F$201,4,FALSE)) -> 0 | E17: =IF(D17<>0,VLOOKUP(RIGHT(B17,5),Reference!$A$2:$H$201,3,FALSE),0) -> 0
B18: 10401 | C18: Residential- Agricultural Residence Improvements- Site Built | D18: =IF(ISERROR(VLOOKUP(B18,Reference!$A$2:$F$201,4,FALSE))=TRUE,0,VLOOKUP(RIGHT(B18,5),Reference!$A$2:$F$201,4,FALSE)) -> 0 | E18: =IF(D18<>0,VLOOKUP(RIGHT(B18,5),Reference!$A$2:$H$201,3,FALSE),0) -> 0
B19: 10402 | C19: Residential- Agricultural Residence Improvements- Manufactured Home- Cancelled Title | D19: =IF(ISERROR(VLOOKUP(B19,Reference!$A$2:$F$201,4,FALSE))=TRUE,0,VLOOKUP(RIGHT(B19,5),Reference!$A$2:$F$201,4,FALSE)) -> 0 | E19: =IF(D19<>0,VLOOKUP(RIGHT(B19,5),Reference!$A$2:$H$201,3,FALSE),0) -> 0
B20: 10500 | C20: Residential- Condominiums Improvements- All Inclusive | D20: =IF(ISERROR(VLOOKUP(B20,Reference!$A$2:$F$201,4,FALSE))=TRUE,0,VLOOKUP(RIGHT(B20,5),Reference!$A$2:$F$201,4,FALSE)) -> 0 | E20: =IF(D20<>0,VLOOKUP(RIGHT(B20,5),Reference!$A$2:$H$201,3,FALSE),0) -> 0
B21: 10600 | C21: Residential- Support/ Out Buildings Only Improvements- All Inclusive | D21: =IF(ISERROR(VLOOKUP(B21,Reference!$A$2:$F$201,4,FALSE))=TRUE,0,VLOOKUP(RIGHT(B21,5),Reference!$A$2:$F$201,4,FALSE)) -> 0 | E21: =IF(D21<>0,VLOOKUP(RIGHT(B21,5),Reference!$A$2:$H$201,3,FALSE),0) -> 0
B22: Sub Total | C22: Total Residential Improvements (Line 302) | D22: =SUM(D15:D21) -> 0 | E22: =SUM(E15:E21) -> 0 | F22: =E22 -> 0
A23: 303 | C23: Commercial Lands DOR Codes- 00200 & 20000
B24: 00200 | C24: Vacant Land- Commercial Vacant- All Inclusive | D24: =IF(ISERROR(VLOOKUP(B24,Reference!$A$2:$F$201,4,FALSE))=TRUE,0,VLOOKUP(RIGHT(B24,5),Reference!$A$2:$F$201,4,FALSE)) -> 0 | E24: =IF(D24<>0,VLOOKUP(RIGHT(B24,5),Reference!$A$2:$H$201,3,FALSE),0) -> 0
B25: 20000 | C25: Vacant Land- Commercial- Improved Land- All Inclusive | D25: =IF(ISERROR(VLOOKUP(B25,Reference!$A$2:$F$201,4,FALSE))=TRUE,0,VLOOKUP(RIGHT(B25,5),Reference!$A$2:$F$201,4,FALSE)) -> 0 | E25: =IF(D25<>0,VLOOKUP(RIGHT(B25,5),Reference!$A$2:$H$201,3,FALSE),0) -> 0
B26: Sub Total | C26: Total Commercial Lands (Line 303) | D26: =SUM(D24:D25) -> 0 | E26: =SUM(E24:E25) -> 0 | F26: =E26 -> 0
A27: 304 | C27: Commercial Improvements DOR Codes- 20100, 20200, 20300, 20400, 20500, 20600, 20701, 20702, 20703, 20800, 20900, 21000, 21100, 21201, 21301, 21302
B28: 20100 | C28: Commercial- Merchandising Improvements- All Inclusive | D28: =IF(ISERROR(VLOOKUP(B28,Reference!$A$2:$F$201,4,FALSE))=TRUE,0,VLOOKUP(RIGHT(B28,5),Reference!$A$2:$F$201,4,FALSE)) -> 0 | E28: =IF(D28<>0,VLOOKUP(RIGHT(B28,5),Reference!$A$2:$H$201,3,FALSE),0) -> 0
B29: 20200 | C29: Commercial- Lodging Improvements- All Inclusive | D29: =IF(ISERROR(VLOOKUP(B29,Reference!$A$2:$F$201,4,FALSE))=TRUE,0,VLOOKUP(RIGHT(B29,5),Reference!$A$2:$F$201,4,FALSE)) -> 0 | E29: =IF(D29<>0,VLOOKUP(RIGHT(B29,5),Reference!$A$2:$H$201,3,FALSE),0) -> 0
B30: 20300 | C30: Commercial- Offices Improvements- All Inclusive | D30: =IF(ISERROR(VLOOKUP(B30,Reference!$A$2:$F$201,4,FALSE))=TRUE,0,VLOOKUP(RIGHT(B30,5),Reference!$A$2:$F$201,4,FALSE)) -> 0 | E30: =IF(D30<>0,VLOOKUP(RIGHT(B30,5),Reference!$A$2:$H$201,3,FALSE),0) -> 0
B31: 20400 | C31: Commercial- Recreation Improvements- All Inclusive | D31: =IF(ISERROR(VLOOKUP(B31,Reference!$A$2:$F$201,4,FALSE))=TRUE,0,VLOOKUP(RIGHT(B31,5),Reference!$A$2:$F$201,4,FALSE)) -> 0 | E31: =IF(D31<>0,VLOOKUP(RIGHT(B31,5),Reference!$A$2:$H$201,3,FALSE),0) -> 0
B32: 20500 | C32: Commercial- Warehouse Storage Improvements- All Inclusive | D32: =IF(ISERROR(VLOOKUP(B32,Reference!$A$2:$F$201,4,FALSE))=TRUE,0,VLOOKUP(RIGHT(B32,5),Reference!$A$2:$F$201,4,FALSE)) -> 0 | E32: =IF(D32<>0,VLOOKUP(RIGHT(B32,5),Reference!$A$2:$H$201,3,FALSE),0) -> 0
B33: 20600 | C33: Commercial- Special Purpose Improvements- All Inclusive | D33: =IF(ISERROR(VLOOKUP(B33,Reference!$A$2:$F$201,4,FALSE))=TRUE,0,VLOOKUP(RIGHT(B33,5),Reference!$A$2:$F$201,4,FALSE)) -> 0 | E33: =IF(D33<>0,VLOOKUP(RIGHT(B33,5),Reference!$A$2:$H$201,3,FALSE),0) -> 0
B34: 20701 | C34: Commercial- Multi-Use Improvements- Residential/Commercial | D34: =IF(ISERROR(VLOOKUP(B34,Reference!$A$2:$F$201,4,FALSE))=TRUE,0,VLOOKUP(RIGHT(B34,5),Reference!$A$2:$F$201,4,FALSE)) -> 0 | E34: =IF(D34<>0,VLOOKUP(RIGHT(B34,5),Reference!$A$2:$H$201,3,FALSE),0) -> 0
B35: 20702 | C35: Commercial- Multi-Use Improvements- Agricultural/Commercial | D35: =IF(ISERROR(VLOOKUP(B35,Reference!$A$2:$F$201,4,FALSE))=TRUE,0,VLOOKUP(RIGHT(B35,5),Reference!$A$2:$F$201,4,FALSE)) -> 0 | E35: =IF(D35<>0,VLOOKUP(RIGHT(B35,5),Reference!$A$2:$H$201,3,FALSE),0) -> 0
B36: 20703 | C36: Commercial- Multi-Use Improvements- Non-Exempt Portion (partial exempt) | D36: =IF(ISERROR(VLOOKUP(B36,Reference!$A$2:$F$201,4,FALSE))=TRUE,0,VLOOKUP(RIGHT(B36,5),Reference!$A$2:$F$201,4,FALSE)) -> 0 | E36: =IF(D36<>0,VLOOKUP(RIGHT(B36,5),Reference!$A$2:$H$201,3,FALSE),0) -> 0
B37: 20800 | C37: Commercial- Food Service Improvements- All Inclusive | D37: =IF(ISERROR(VLOOKUP(B37,Reference!$A$2:$F$201,4,FALSE))=TRUE,0,VLOOKUP(RIGHT(B37,5),Reference!$A$2:$F$201,4,FALSE)) -> 0 | E37: =IF(D37<>0,VLOOKUP(RIGHT(B37,5),Reference!$A$2:$H$201,3,FALSE),0) -> 0
B38: 20900 | C38: Commercial- Service/Repair Oriented Improvements- All Inclusive | D38: =IF(ISERROR(VLOOKUP(B38,Reference!$A$2:$F$201,4,FALSE))=TRUE,0,VLOOKUP(RIGHT(B38,5),Reference!$A$2:$F$201,4,FALSE)) -> 0 | E38: =IF(D38<>0,VLOOKUP(RIGHT(B38,5),Reference!$A$2:$H$201,3,FALSE),0) -> 0
B39: 21000 | C39: Commercial- Support/Out Buildings Only Improvements- All Inclusive | D39: =IF(ISERROR(VLOOKUP(B39,Reference!$A$2:$F$201,4,FALSE))=TRUE,0,VLOOKUP(RIGHT(B39,5),Reference!$A$2:$F$201,4,FALSE)) -> 0 | E39: =IF(D39<>0,VLOOKUP(RIGHT(B39,5),Reference!$A$2:$H$201,3,FALSE),0) -> 0
B40: 21100 | C40: Commercial- Manufactured Housing / RV Parks Improvements- All Inclusive | D40: =IF(ISERROR(VLOOKUP(B40,Reference!$A$2:$F$201,4,FALSE))=TRUE,0,VLOOKUP(RIGHT(B40,5),Reference!$A$2:$F$201,4,FALSE)) -> 0 | E40: =IF(D40<>0,VLOOKUP(RIGHT(B40,5),Reference!$A$2:$H$201,3,FALSE),0) -> 0
B41: 21201 | C41: Commercial- Apartment Building Improvements- 4 or more Units | D41: =IF(ISERROR(VLOOKUP(B41,Reference!$A$2:$F$201,4,FALSE))=TRUE,0,VLOOKUP(RIGHT(B41,5),Reference!$A$2:$F$201,4,FALSE)) -> 0 | E41: =IF(D41<>0,VLOOKUP(RIGHT(B41,5),Reference!$A$2:$H$201,3,FALSE),0) -> 0
B42: 21301 | C42: Commercial- Manufactured Home Improvements- Used as Office - Canceled Title | D42: =IF(ISERROR(VLOOKUP(B42,Reference!$A$2:$F$201,4,FALSE))=TRUE,0,VLOOKUP(RIGHT(B42,5),Reference!$A$2:$F$201,4,FALSE)) -> 0 | E42: =IF(D42<>0,VLOOKUP(RIGHT(B42,5),Reference!$A$2:$H$201,3,FALSE),0) -> 0
B43: 21302 | C43: Commercial- Manufactured Home Improvements- Used as On site Living Qtrs. - Canceled Title | D43: =IF(ISERROR(VLOOKUP(B43,Reference!$A$2:$F$201,4,FALSE))=TRUE,0,VLOOKUP(RIGHT(B43,5),Reference!$A$2:$F$201,4,FALSE)) -> 0 | E43: =IF(D43<>0,VLOOKUP(RIGHT(B43,5),Reference!$A$2:$H$201,3,FALSE),0) -> 0
B44: Sub Total | C44: Total Commercial Improvements (Line 304) | D44: =SUM(D28:D43) -> 0 | E44: =SUM(E28:E43) -> 0 | F44: =E44 -> 0
A45: B | C45: TOTAL RESIDENTIAL & COMMERCIAL REAL PROPERTY | D45: =D13+D22+D26+D44 -> 0 | E45: =E13+E22+E26+E44 -> 0 | F45: =F13+F22+F26+F44 -> 0
B47: Residential and Commercial Personal Property
A48: Line | B48: Abstract Codes | C48: Classification | D48: Fair Market Value | E48: Assessed Value | F48: Sub Total per Line
A49: 401 | C49: Residential Personal Property (DOR code)- 10103 + 10403
B50: 10103 | C50: Residential- Single Family Residential Improvements- Manufactured Home- Cancelled Title | D50: =IF(ISERROR(VLOOKUP(B50,Reference!$A$2:$F$201,4,FALSE))=TRUE,0,VLOOKUP(RIGHT(B50,5),Reference!$A$2:$F$201,4,FALSE)) -> 0 | E50: =IF(D50<>0,VLOOKUP(RIGHT(B50,5),Reference!$A$2:$H$201,3,FALSE),0) -> 0
B51: 10403 | C51: Residential- Agricultural Residence Improvements- Manufactured Home- Titled | D51: =IF(ISERROR(VLOOKUP(B51,Reference!$A$2:$F$201,4,FALSE))=TRUE,0,VLOOKUP(RIGHT(B51,5),Reference!$A$2:$F$201,4,FALSE)) -> 0 | E51: =IF(D51<>0,VLOOKUP(RIGHT(B51,5),Reference!$A$2:$H$201,3,FALSE),0) -> 0
B52: Sub Total | C52: Total Residential Personal Property (Line 401) | D52: =SUM(D50:D51) -> 0 | E52: =SUM(E50:E51) -> 0 | F52: =E52 -> 0
A53: 402 | C53: Commercial Personal Property (DOR Code)- 21303 + 21304 + 29900
B54: 21303 | C54: Commercial- Manufactured Home Improvements- Used as Office- Titled | D54: =IF(ISERROR(VLOOKUP(B54,Reference!$A$2:$F$201,4,FALSE))=TRUE,0,VLOOKUP(RIGHT(B54,5),Reference!$A$2:$F$201,4,FALSE)) -> 0 | E54: =IF(D54<>0,VLOOKUP(RIGHT(B54,5),Reference!$A$2:$H$201,3,FALSE),0) -> 0
B55: 21304 | C55: Commercial- Manufactured Home Improvements- Used as on Site Living Qtrs. - Titled | D55: =IF(ISERROR(VLOOKUP(B55,Reference!$A$2:$F$201,4,FALSE))=TRUE,0,VLOOKUP(RIGHT(B55,5),Reference!$A$2:$F$201,4,FALSE)) -> 0 | E55: =IF(D55<>0,VLOOKUP(RIGHT(B55,5),Reference!$A$2:$H$201,3,FALSE),0) -> 0
B56: 29900 | C56: Commercial- Personal Property- All Inclusive | D56: =IF(ISERROR(VLOOKUP(B56,Reference!$A$2:$F$201,4,FALSE))=TRUE,0,VLOOKUP(RIGHT(B56,5),Reference!$A$2:$F$201,4,FALSE)) -> 0 | E56: =IF(D56<>0,VLOOKUP(RIGHT(B56,5),Reference!$A$2:$H$201,3,FALSE),0) -> 0
B57: Sub Total | C57: Total Commercial Personal Property (Line 402) | D57: =SUM(D54:D56) -> 0 | E57: =SUM(E54:E56) -> 0 | F57: =E57 -> 0
A58: C | C58: TOTAL RESIDENTIAL & COMMERCIAL PERSONAL PROPERTY | D58: =D52+D57 -> 0 | E58: =E52+E57 -> 0 | F58: =F52+F57 -> 0

Sheet Page 5
A1: Industrial Property
A2: Line | B2: Abstract Code | C2: NAICS | D2: Primary Activity | E2: LAND (FMV) | F2: Improvements (FMV) | G2: Personal Property (FMV) | H2: Total Fair Market Value | I2: TOTAL ASSESSED VALUE
A3: 501 | B3: 30001 | C3: 3111 thru 3119 | D3: Industrial- Improved Land- Food | E3: =IF(ISERROR(VLOOKUP(B3,Reference!$A$2:$F$201,4,FALSE))=TRUE,0,VLOOKUP(RIGHT(B3,5),Reference!$A$2:$F$201,4,FALSE)) -> 0 | F3: 0 | G3: 0 | H3: =E3+F3+G3 -> 0 | I3: =IF(H3<>0,VLOOKUP(RIGHT(B3,5),Reference!$A$2:$H$196,3,FALSE),0) -> 0
B4: 30101 | D4: Industrial- Manufacturing- Food | E4: 0 | F4: =IF(ISERROR(VLOOKUP(B4,Reference!$A$2:$F$201,4,FALSE))=TRUE,0,VLOOKUP(RIGHT(B4,5),Reference!$A$2:$F$201,4,FALSE)) -> 0 | G4: 0 | H4: =E4+F4+G4 -> 0 | I4: =VLOOKUP(RIGHT(B4,5),Reference!$A$2:$H$196,3,FALSE) -> 0
B5: 30401 | D5: Industrial- Support/ Out Buildings Only- Food | E5: 0 | F5: =IF(ISERROR(VLOOKUP(B5,Reference!$A$2:$F$201,4,FALSE))=TRUE,0,VLOOKUP(RIGHT(B5,5),Reference!$A$2:$F$201,4,FALSE)) -> 0 | G5: 0 | H5: 0 | I5: =VLOOKUP(RIGHT(B5,5),Reference!$A$2:$H$196,3,FALSE) -> 0
B6: 39901 | D6: Industrial- Personal Property- Food | E6: 0 | F6: 0 | G6: =IF(ISERROR(VLOOKUP(B6,Reference!$A$2:$F$201,4,FALSE))=TRUE,0,VLOOKUP(RIGHT(B6,5),Reference!$A$2:$F$201,4,FALSE)) -> 0 | H6: =E6+F6+G6 -> 0 | I6: =VLOOKUP(RIGHT(B6,5),Reference!$A$2:$H$196,3,FALSE) -> 0
D7: Sub Total of Line 501 | E7: =SUM(E3:E6) -> 0 | F7: =SUM(F3:F6) -> 0 | G7: =SUM(G3:G6) -> 0 | H7: =SUM(H3:H6) -> 0 | I7: =SUM(I3:I6) -> 0
A8: 502 | B8: 30002 | C8: 3121 | D8: Industrial- Improved Land- Beverage | E8: =IF(ISERROR(VLOOKUP(B8,Reference!$A$2:$F$201,4,FALSE))=TRUE,0,VLOOKUP(RIGHT(B8,5),Reference!$A$2:$F$201,4,FALSE)) -> 0 | F8: 0 | G8: 0 | H8: 0 | I8: =VLOOKUP(RIGHT(B8,5),Reference!$A$2:$H$196,3,FALSE) -> 0
B9: 30102 | D9: Industrial- Manufacturing- Beverage | E9: 0 | F9: =IF(ISERROR(VLOOKUP(B9,Reference!$A$2:$F$201,4,FALSE))=TRUE,0,VLOOKUP(RIGHT(B9,5),Reference!$A$2:$F$201,4,FALSE)) -> 0 | G9: 0 | H9: 0 | I9: =VLOOKUP(RIGHT(B9,5),Reference!$A$2:$H$196,3,FALSE) -> 0
B10: 30402 | D10: Industrial- Support/ Out Buildings Only- Beverage | E10: 0 | F10: =IF(ISERROR(VLOOKUP(B10,Reference!$A$2:$F$201,4,FALSE))=TRUE,0,VLOOKUP(RIGHT(B10,5),Reference!$A$2:$F$201,4,FALSE)) -> 0 | G10: 0 | H10: 0 | I10: =VLOOKUP(RIGHT(B10,5),Reference!$A$2:$H$196,3,FALSE) -> 0
B11: 39902 | D11: Industrial- Personal Property- Beverage | E11: 0 | F11: 0 | G11: =IF(ISERROR(VLOOKUP(B11,Reference!$A$2:$F$201,4,FALSE))=TRUE,0,VLOOKUP(RIGHT(B11,5),Reference!$A$2:$F$201,4,FALSE)) -> 0 | H11: =E11+F11+G11 -> 0 | I11: =VLOOKUP(RIGHT(B11,5),Reference!$A$2:$H$196,3,FALSE) -> 0
D12: Sub Total of Line 502 | E12: =SUM(E8:E11) -> 0 | F12: =SUM(F8:F11) -> 0 | G12: =SUM(G8:G11) -> 0 | H12: =SUM(H8:H11) -> 0 | I12: =SUM(I8:I11) -> 0
A13: 503 | B13: 30003 | C13: 3122 | D13: Industrial- Improved Land- Tobacco | E13: =IF(ISERROR(VLOOKUP(B13,Reference!$A$2:$F$201,4,FALSE))=TRUE,0,VLOOKUP(RIGHT(B13,5),Reference!$A$2:$F$201,4,FALSE)) -> 0 | F13: 0 | G13: 0 | H13: 0 | I13: =VLOOKUP(RIGHT(B13,5),Reference!$A$2:$H$196,3,FALSE) -> 0
B14: 30103 | D14: Industrial- Manufacturing- Tobacco | E14: 0 | F14: =IF(ISERROR(VLOOKUP(B14,Reference!$A$2:$F$201,4,FALSE))=TRUE,0,VLOOKUP(RIGHT(B14,5),Reference!$A$2:$F$201,4,FALSE)) -> 0 | G14: 0 | H14: 0 | I14: =VLOOKUP(RIGHT(B14,5),Reference!$A$2:$H$196,3,FALSE) -> 0
B15: 30403 | D15: Industrial- Support/ Out Buildings Only- Tobacco | E15: 0 | F15: =IF(ISERROR(VLOOKUP(B15,Reference!$A$2:$F$201,4,FALSE))=TRUE,0,VLOOKUP(RIGHT(B15,5),Reference!$A$2:$F$201,4,FALSE)) -> 0 | G15: 0 | H15: 0 | I15: =VLOOKUP(RIGHT(B15,5),Reference!$A$2:$H$196,3,FALSE) -> 0
B16: 39903 | D16: Industrial- Personal Property- Tobacco | E16: 0 | F16: 0 | G16: =IF(ISERROR(VLOOKUP(B16,Reference!$A$2:$F$201,4,FALSE))=TRUE,0,VLOOKUP(RIGHT(B16,5),Reference!$A$2:$F$201,4,FALSE)) -> 0 | H16: =E16+F16+G16 -> 0 | I16: =VLOOKUP(RIGHT(B16,5),Reference!$A$2:$H$196,3,FALSE) -> 0
D17: Sub Total of Line 503 | E17: =SUM(E13:E16) -> 0 | F17: =SUM(F13:F16) -> 0 | G17: =SUM(G13:G16) -> 0 | H17: =SUM(H13:H16) -> 0 | I17: =SUM(I13:I16) -> 0
A18: 504 | B18: 30004 | C18: 3131 thru 3149 | D18: Industrial- Improved Land- Textiles | E18: =IF(ISERROR(VLOOKUP(B18,Reference!$A$2:$F$201,4,FALSE))=TRUE,0,VLOOKUP(RIGHT(B18,5),Reference!$A$2:$F$201,4,FALSE)) -> 0 | F18: 0 | G18: 0 | H18: 0 | I18: =VLOOKUP(RIGHT(B18,5),Reference!$A$2:$H$196,3,FALSE) -> 0
B19: 30104 | D19: Industrial- Manufacturing- Textiles | E19: 0 | F19: =IF(ISERROR(VLOOKUP(B19,Reference!$A$2:$F$201,4,FALSE))=TRUE,0,VLOOKUP(RIGHT(B19,5),Reference!$A$2:$F$201,4,FALSE)) -> 0 | G19: 0 | H19: 0 | I19: =VLOOKUP(RIGHT(B19,5),Reference!$A$2:$H$196,3,FALSE) -> 0
B20: 30404 | D20: Industrial- Support/ Out Buildings Only- Textiles | E20: 0 | F20: =IF(ISERROR(VLOOKUP(B20,Reference!$A$2:$F$201,4,FALSE))=TRUE,0,VLOOKUP(RIGHT(B20,5),Reference!$A$2:$F$201,4,FALSE)) -> 0 | G20: 0 | H20: 0 | I20: =VLOOKUP(RIGHT(B20,5),Reference!$A$2:$H$196,3,FALSE) -> 0
B21: 39904 | D21: Industrial- Personal Property- Textiles | E21: 0 | F21: 0 | G21: =IF(ISERROR(VLOOKUP(B21,Reference!$A$2:$F$201,4,FALSE))=TRUE,0,VLOOKUP(RIGHT(B21,5),Reference!$A$2:$F$201,4,FALSE)) -> 0 | H21: =E21+F21+G21 -> 0 | I21: =VLOOKUP(RIGHT(B21,5),Reference!$A$2:$H$196,3,FALSE) -> 0
D22: Sub Total of Line 504 | E22: =SUM(E18:E21) -> 0 | F22: =SUM(F18:F21) -> 0 | G22: =SUM(G18:G21) -> 0 | H22: =SUM(H18:H21) -> 0 | I22: =SUM(I18:I21) -> 0
A23: 505 | B23: 30005 | C23: 3151 thru 3159 | D23: Industrial- Improved Land- Apparel | E23: =IF(ISERROR(VLOOKUP(B23,Reference!$A$2:$F$201,4,FALSE))=TRUE,0,VLOOKUP(RIGHT(B23,5),Reference!$A$2:$F$201,4,FALSE)) -> 0 | F23: 0 | G23: 0 | H23: 0 | I23: =VLOOKUP(RIGHT(B23,5),Reference!$A$2:$H$196,3,FALSE) -> 0
B24: 30105 | D24: Industrial- Manufacturing- Apparel | E24: 0 | F24: =IF(ISERROR(VLOOKUP(B24,Reference!$A$2:$F$201,4,FALSE))=TRUE,0,VLOOKUP(RIGHT(B24,5),Reference!$A$2:$F$201,4,FALSE)) -> 0 | G24: 0 | H24: 0 | I24: =VLOOKUP(RIGHT(B24,5),Reference!$A$2:$H$196,3,FALSE) -> 0
B25: 30405 | D25: Industrial- Support/ Out Buildings Only- Apparel | E25: 0 | F25: =IF(ISERROR(VLOOKUP(B25,Reference!$A$2:$F$201,4,FALSE))=TRUE,0,VLOOKUP(RIGHT(B25,5),Reference!$A$2:$F$201,4,FALSE)) -> 0 | G25: 0 | H25: 0 | I25: =VLOOKUP(RIGHT(B25,5),Reference!$A$2:$H$196,3,FALSE) -> 0
B26: 39905 | D26: Industrial- Personal Property- Apparel | E26: 0 | F26: 0 | G26: =IF(ISERROR(VLOOKUP(B26,Reference!$A$2:$F$201,4,FALSE))=TRUE,0,VLOOKUP(RIGHT(B26,5),Reference!$A$2:$F$201,4,FALSE)) -> 0 | H26: =E26+F26+G26 -> 0 | I26: =VLOOKUP(RIGHT(B26,5),Reference!$A$2:$H$196,3,FALSE) -> 0
D27: Sub Total of Line 505 | E27: =SUM(E23:E26) -> 0 | F27: =SUM(F23:F26) -> 0 | G27: =SUM(G23:G26) -> 0 | H27: =SUM(H23:H26) -> 0 | I27: =SUM(I23:I26) -> 0
A28: 506 | B28: 30006 | C28: 3161 thru 3169 | D28: Industrial- Improved Land- Leather | E28: =IF(ISERROR(VLOOKUP(B28,Reference!$A$2:$F$201,4,FALSE))=TRUE,0,VLOOKUP(RIGHT(B28,5),Reference!$A$2:$F$201,4,FALSE)) -> 0 | F28: 0 | G28: 0 | H28: 0 | I28: =VLOOKUP(RIGHT(B28,5),Reference!$A$2:$H$196,3,FALSE) -> 0
B29: 30106 | D29: Industrial- Manufacturing- Leather | E29: 0 | F29: =IF(ISERROR(VLOOKUP(B29,Reference!$A$2:$F$201,4,FALSE))=TRUE,0,VLOOKUP(RIGHT(B29,5),Reference!$A$2:$F$201,4,FALSE)) -> 0 | G29: 0 | H29: 0 | I29: =VLOOKUP(RIGHT(B29,5),Reference!$A$2:$H$196,3,FALSE) -> 0
B30: 30406 | D30: Industrial- Support/ Out Buildings Only- Leather | E30: 0 | F30: =IF(ISERROR(VLOOKUP(B30,Reference!$A$2:$F$201,4,FALSE))=TRUE,0,VLOOKUP(RIGHT(B30,5),Reference!$A$2:$F$201,4,FALSE)) -> 0 | G30: 0 | H30: 0 | I30: =VLOOKUP(RIGHT(B30,5),Reference!$A$2:$H$196,3,FALSE) -> 0
B31: 39906 | D31: Industrial- Personal Property- Textiles | E31: 0 | F31: 0 | G31: =IF(ISERROR(VLOOKUP(B31,Reference!$A$2:$F$201,4,FALSE))=TRUE,0,VLOOKUP(RIGHT(B31,5),Reference!$A$2:$F$201,4,FALSE)) -> 0 | H31: =E31+F31+G31 -> 0 | I31: =VLOOKUP(RIGHT(B31,5),Reference!$A$2:$H$196,3,FALSE) -> 0
D32: Sub Total of Line 506 | E32: =SUM(E28:E31) -> 0 | F32: =SUM(F28:F31) -> 0 | G32: =SUM(G28:G31) -> 0 | H32: =SUM(H28:H31) -> 0 | I32: =SUM(I28:I31) -> 0

Sheet Page 6
A1: Industrial Property
A2: Line | B2: DOR | C2: NAICS | D2: Primary Activity | E2: LAND (FMV) | F2: Improvements (FMV) | G2: Personal Property (FMV) | H2: Total Fair Market Value | I2: TOTAL ASSESSED VALUE
A3: 507 | B3: 30007 | C3: 3211 thru 3219 | D3: Industrial- Improved Land- Wood Product | E3: =IF(ISERROR(VLOOKUP(B3,Reference!$A$2:$F$201,4,FALSE))=TRUE,0,VLOOKUP(RIGHT(B3,5),Reference!$A$2:$F$201,4,FALSE)) -> 0 | F3: 0 | G3: 0 | H3: =E3+F3+G3 -> 0 | I3: =IF(H3<>0,VLOOKUP(RIGHT(B3,5),Reference!$A$2:$H$196,3,FALSE),0) -> 0
B4: 30107 | D4: Industrial- Manufacturing- Wood Product | E4: 0 | F4: =IF(ISERROR(VLOOKUP(B4,Reference!$A$2:$F$201,4,FALSE))=TRUE,0,VLOOKUP(RIGHT(B4,5),Reference!$A$2:$F$201,4,FALSE)) -> 0 | G4: 0 | H4: =E4+F4+G4 -> 0 | I4: =IF(H4<>0,VLOOKUP(RIGHT(B4,5),Reference!$A$2:$H$196,3,FALSE),0) -> 0
B5: 30407 | D5: Industrial- Support/Out Building Only- Wood Product | E5: 0 | F5: =IF(ISERROR(VLOOKUP(B5,Reference!$A$2:$F$201,4,FALSE))=TRUE,0,VLOOKUP(RIGHT(B5,5),Reference!$A$2:$F$201,4,FALSE)) -> 0 | G5: 0 | H5: 0 | I5: =IF(H5<>0,VLOOKUP(RIGHT(B5,5),Reference!$A$2:$H$196,3,FALSE),0) -> 0
B6: 39907 | D6: Industrial- Personal Property- Wood Product | E6: 0 | F6: 0 | G6: =IF(ISERROR(VLOOKUP(B6,Reference!$A$2:$F$201,4,FALSE))=TRUE,0,VLOOKUP(RIGHT(B6,5),Reference!$A$2:$F$201,4,FALSE)) -> 0 | H6: =E6+F6+G6 -> 0 | I6: =IF(H6<>0,VLOOKUP(RIGHT(B6,5),Reference!$A$2:$H$196,3,FALSE),0) -> 0
D7: Sub Total of Line 507 | E7: =SUM(E3:E6) -> 0 | F7: =SUM(F3:F6) -> 0 | G7: =SUM(G3:G6) -> 0 | H7: =SUM(H3:H6) -> 0 | I7: =SUM(I3:I6) -> 0
A8: 508 | B8: 30008 | C8: 3221 thru 3222 | D8: Industrial- Improved Land- Paper | E8: =IF(ISERROR(VLOOKUP(B8,Reference!$A$2:$F$201,4,FALSE))=TRUE,0,VLOOKUP(RIGHT(B8,5),Reference!$A$2:$F$201,4,FALSE)) -> 0 | F8: 0 | G8: 0 | H8: 0 | I8: =IF(H8<>0,VLOOKUP(RIGHT(B8,5),Reference!$A$2:$H$196,3,FALSE),0) -> 0
B9: 30108 | D9: Industrial- Manufacturing- Paper | E9: 0 | F9: =IF(ISERROR(VLOOKUP(B9,Reference!$A$2:$F$201,4,FALSE))=TRUE,0,VLOOKUP(RIGHT(B9,5),Reference!$A$2:$F$201,4,FALSE)) -> 0 | G9: 0 | H9: 0 | I9: =IF(H9<>0,VLOOKUP(RIGHT(B9,5),Reference!$A$2:$H$196,3,FALSE),0) -> 0
B10: 30408 | D10: Industrial- Support/Out Building Only- Paper | E10: 0 | F10: =IF(ISERROR(VLOOKUP(B10,Reference!$A$2:$F$201,4,FALSE))=TRUE,0,VLOOKUP(RIGHT(B10,5),Reference!$A$2:$F$201,4,FALSE)) -> 0 | G10: 0 | H10: 0 | I10: =IF(H10<>0,VLOOKUP(RIGHT(B10,5),Reference!$A$2:$H$196,3,FALSE),0) -> 0
B11: 39908 | D11: Industrial- Personal Property- Paper | E11: 0 | F11: 0 | G11: =IF(ISERROR(VLOOKUP(B11,Reference!$A$2:$F$201,4,FALSE))=TRUE,0,VLOOKUP(RIGHT(B11,5),Reference!$A$2:$F$201,4,FALSE)) -> 0 | H11: =E11+F11+G11 -> 0 | I11: =IF(H11<>0,VLOOKUP(RIGHT(B11,5),Reference!$A$2:$H$196,3,FALSE),0) -> 0
D12: Sub Total of Line 508 | E12: =SUM(E8:E11) -> 0 | F12: =SUM(F8:F11) -> 0 | G12: =SUM(G8:G11) -> 0 | H12: =SUM(H8:H11) -> 0 | I12: =SUM(I8:I11) -> 0
A13: 509 | B13: 30009 | C13: 3231 | D13: Industrial- Improved Land- Printing | E13: =IF(ISERROR(VLOOKUP(B13,Reference!$A$2:$F$201,4,FALSE))=TRUE,0,VLOOKUP(RIGHT(B13,5),Reference!$A$2:$F$201,4,FALSE)) -> 0 | F13: 0 | G13: 0 | H13: 0 | I13: =IF(H13<>0,VLOOKUP(RIGHT(B13,5),Reference!$A$2:$H$196,3,FALSE),0) -> 0
B14: 30109 | D14: Industrial- Manufacturing- Printing | E14: 0 | F14: =IF(ISERROR(VLOOKUP(B14,Reference!$A$2:$F$201,4,FALSE))=TRUE,0,VLOOKUP(RIGHT(B14,5),Reference!$A$2:$F$201,4,FALSE)) -> 0 | G14: 0 | H14: 0 | I14: =IF(H14<>0,VLOOKUP(RIGHT(B14,5),Reference!$A$2:$H$196,3,FALSE),0) -> 0
B15: 30409 | D15: Industrial- Support/Out Building Only- Printing | E15: 0 | F15: =IF(ISERROR(VLOOKUP(B15,Reference!$A$2:$F$201,4,FALSE))=TRUE,0,VLOOKUP(RIGHT(B15,5),Reference!$A$2:$F$201,4,FALSE)) -> 0 | G15: 0 | H15: 0 | I15: =IF(H15<>0,VLOOKUP(RIGHT(B15,5),Reference!$A$2:$H$196,3,FALSE),0) -> 0
B16: 39909 | D16: Industrial- Personal Property- Printing | E16: 0 | F16: 0 | G16: =IF(ISERROR(VLOOKUP(B16,Reference!$A$2:$F$201,4,FALSE))=TRUE,0,VLOOKUP(RIGHT(B16,5),Reference!$A$2:$F$201,4,FALSE)) -> 0 | H16: =E16+F16+G16 -> 0 | I16: =IF(H16<>0,VLOOKUP(RIGHT(B16,5),Reference!$A$2:$H$196,3,FALSE),0) -> 0
D17: Sub Total of Line 509 | E17: =SUM(E13:E16) -> 0 | F17: =SUM(F13:F16) -> 0 | G17: =SUM(G13:G16) -> 0 | H17: =SUM(H13:H16) -> 0 | I17: =SUM(I13:I16) -> 0
A18: 510 | B18: 30010 | C18: 3252 thru 3259 | D18: Industrial- Improved Land- Chemical | E18: =IF(ISERROR(VLOOKUP(B18,Reference!$A$2:$F$201,4,FALSE))=TRUE,0,VLOOKUP(RIGHT(B18,5),Reference!$A$2:$F$201,4,FALSE)) -> 0 | F18: 0 | G18: 0 | H18: 0 | I18: =IF(H18<>0,VLOOKUP(RIGHT(B18,5),Reference!$A$2:$H$196,3,FALSE),0) -> 0
B19: 30110 | D19: Industrial- Manufacturing- Chemical | E19: 0 | F19: =IF(ISERROR(VLOOKUP(B19,Reference!$A$2:$F$201,4,FALSE))=TRUE,0,VLOOKUP(RIGHT(B19,5),Reference!$A$2:$F$201,4,FALSE)) -> 0 | G19: 0 | H19: 0 | I19: =IF(H19<>0,VLOOKUP(RIGHT(B19,5),Reference!$A$2:$H$196,3,FALSE),0) -> 0
B20: 30410 | D20: Industrial- Support/Out Building Only- Chemical | E20: 0 | F20: =IF(ISERROR(VLOOKUP(B20,Reference!$A$2:$F$201,4,FALSE))=TRUE,0,VLOOKUP(RIGHT(B20,5),Reference!$A$2:$F$201,4,FALSE)) -> 0 | G20: 0 | H20: 0 | I20: =IF(H20<>0,VLOOKUP(RIGHT(B20,5),Reference!$A$2:$H$196,3,FALSE),0) -> 0
B21: 39910 | D21: Industrial- Personal Property- Chemical | E21: 0 | F21: 0 | G21: =IF(ISERROR(VLOOKUP(B21,Reference!$A$2:$F$201,4,FALSE))=TRUE,0,VLOOKUP(RIGHT(B21,5),Reference!$A$2:$F$201,4,FALSE)) -> 0 | H21: =E21+F21+G21 -> 0 | I21: =IF(H21<>0,VLOOKUP(RIGHT(B21,5),Reference!$A$2:$H$196,3,FALSE),0) -> 0
D22: Sub Total of Line 510 | E22: =SUM(E18:E21) -> 0 | F22: =SUM(F18:F21) -> 0 | G22: =SUM(G18:G21) -> 0 | H22: =SUM(H18:H21) -> 0 | I22: =SUM(I18:I21) -> 0
A23: 511 | B23: 30011 | C23: 3261 thru 3262 | D23: Industrial- Improved Land- Plastic/Rubber | E23: =IF(ISERROR(VLOOKUP(B23,Reference!$A$2:$F$201,4,FALSE))=TRUE,0,VLOOKUP(RIGHT(B23,5),Reference!$A$2:$F$201,4,FALSE)) -> 0 | F23: 0 | G23: 0 | H23: 0 | I23: =IF(H23<>0,VLOOKUP(RIGHT(B23,5),Reference!$A$2:$H$196,3,FALSE),0) -> 0
B24: 30111 | D24: Industrial- Manufacturing- Plastic/Rubber | E24: 0 | F24: =IF(ISERROR(VLOOKUP(B24,Reference!$A$2:$F$201,4,FALSE))=TRUE,0,VLOOKUP(RIGHT(B24,5),Reference!$A$2:$F$201,4,FALSE)) -> 0 | G24: 0 | H24: 0 | I24: =IF(H24<>0,VLOOKUP(RIGHT(B24,5),Reference!$A$2:$H$196,3,FALSE),0) -> 0
B25: 30411 | D25: Industrial- Support/Out Building Only- Plastic/Rubber | E25: 0 | F25: =IF(ISERROR(VLOOKUP(B25,Reference!$A$2:$F$201,4,FALSE))=TRUE,0,VLOOKUP(RIGHT(B25,5),Reference!$A$2:$F$201,4,FALSE)) -> 0 | G25: 0 | H25: 0 | I25: =IF(H25<>0,VLOOKUP(RIGHT(B25,5),Reference!$A$2:$H$196,3,FALSE),0) -> 0
B26: 39911 | D26: Industrial- Personal Property- Plastic/Rubber | E26: 0 | F26: 0 | G26: =IF(ISERROR(VLOOKUP(B26,Reference!$A$2:$F$201,4,FALSE))=TRUE,0,VLOOKUP(RIGHT(B26,5),Reference!$A$2:$F$201,4,FALSE)) -> 0 | H26: =E26+F26+G26 -> 0 | I26: =IF(H26<>0,VLOOKUP(RIGHT(B26,5),Reference!$A$2:$H$196,3,FALSE),0) -> 0
D27: Sub Total of Line 511 | E27: =SUM(E23:E26) -> 0 | F27: =SUM(F23:F26) -> 0 | G27: =SUM(G23:G26) -> 0 | H27: =SUM(H23:H26) -> 0 | I27: =SUM(I23:I26) -> 0
A28: 512 | B28: 30012 | C28: 3271 thru 3279 | D28: Industrial- Improved Land- Non-Metallic Mineral Product | E28: =IF(ISERROR(VLOOKUP(B28,Reference!$A$2:$F$201,4,FALSE))=TRUE,0,VLOOKUP(RIGHT(B28,5),Reference!$A$2:$F$201,4,FALSE)) -> 0 | F28: 0 | G28: 0 | H28: 0 | I28: =IF(H28<>0,VLOOKUP(RIGHT(B28,5),Reference!$A$2:$H$196,3,FALSE),0) -> 0
B29: 30112 | D29: Industrial- Manufacturing- Non-Metallic Mineral Product | E29: 0 | F29: =IF(ISERROR(VLOOKUP(B29,Reference!$A$2:$F$201,4,FALSE))=TRUE,0,VLOOKUP(RIGHT(B29,5),Reference!$A$2:$F$201,4,FALSE)) -> 0 | G29: 0 | H29: 0 | I29: =IF(H29<>0,VLOOKUP(RIGHT(B29,5),Reference!$A$2:$H$196,3,FALSE),0) -> 0
B30: 30412 | D30: Industrial- Support/Out Building Only- Non-Metallic Mineral Product | E30: 0 | F30: =IF(ISERROR(VLOOKUP(B30,Reference!$A$2:$F$201,4,FALSE))=TRUE,0,VLOOKUP(RIGHT(B30,5),Reference!$A$2:$F$201,4,FALSE)) -> 0 | G30: 0 | H30: 0 | I30: =IF(H30<>0,VLOOKUP(RIGHT(B30,5),Reference!$A$2:$H$196,3,FALSE),0) -> 0
B31: 39912 | D31: Industrial- Personal Property- Non-Metallic Mineral Product | E31: 0 | F31: 0 | G31: =IF(ISERROR(VLOOKUP(B31,Reference!$A$2:$F$201,4,FALSE))=TRUE,0,VLOOKUP(RIGHT(B31,5),Reference!$A$2:$F$201,4,FALSE)) -> 0 | H31: 0 | I31: =IF(H31<>0,VLOOKUP(RIGHT(B31,5),Reference!$A$2:$H$196,3,FALSE),0) -> 0
D32: Sub Total of Line 512 | E32: =SUM(E28:E31) -> 0 | F32: =SUM(F28:F31) -> 0 | G32: =SUM(G28:G31) -> 0 | H32: =SUM(H28:H31) -> 0 | I32: =SUM(I28:I31) -> 0

Sheet Page 7
A1: Industrial Property
A2: Line | B2: DOR | C2: NAICS | D2: Primary Activity | E2: LAND (FMV) | F2: Improvements (FMV) | G2: Personal Property (FMV) | H2: Total Fair Market Value | I2: TOTAL ASSESSED VALUE
A3: 513 | B3: 30013 | C3: 3311 thru 3315 | D3: Industrial- Improved Land- Primary Metal Manufacturing | E3: =IF(ISERROR(VLOOKUP(B3,Reference!$A$2:$F$201,4,FALSE))=TRUE,0,VLOOKUP(RIGHT(B3,5),Reference!$A$2:$F$201,4,FALSE)) -> 0 | F3: 0 | G3: 0 | H3: =E3+F3+G3 -> 0 | I3: =IF(H3<>0,VLOOKUP(RIGHT(B3,5),Reference!$A$2:$H$196,3,FALSE),0) -> 0
B4: 30113 | D4: Industrial- Manufacturing- Primary Metal Manufacturing | E4: 0 | F4: =IF(ISERROR(VLOOKUP(B4,Reference!$A$2:$F$201,4,FALSE))=TRUE,0,VLOOKUP(RIGHT(B4,5),Reference!$A$2:$F$201,4,FALSE)) -> 0 | G4: 0 | H4: =E4+F4+G4 -> 0 | I4: =IF(H4<>0,VLOOKUP(RIGHT(B4,5),Reference!$A$2:$H$196,3,FALSE),0) -> 0
B5: 30413 | D5: Industrial- Support/Out Building Only- Primary Metal Manufacturing | E5: 0 | F5: =IF(ISERROR(VLOOKUP(B5,Reference!$A$2:$F$201,4,FALSE))=TRUE,0,VLOOKUP(RIGHT(B5,5),Reference!$A$2:$F$201,4,FALSE)) -> 0 | G5: 0 | H5: 0 | I5: =IF(H5<>0,VLOOKUP(RIGHT(B5,5),Reference!$A$2:$H$196,3,FALSE),0) -> 0
B6: 39913 | D6: Industrial- Personal Property- Primary Metal Manufacturing | E6: 0 | F6: 0 | G6: =IF(ISERROR(VLOOKUP(B6,Reference!$A$2:$F$201,4,FALSE))=TRUE,0,VLOOKUP(RIGHT(B6,5),Reference!$A$2:$F$201,4,FALSE)) -> 0 | H6: =E6+F6+G6 -> 0 | I6: =IF(H6<>0,VLOOKUP(RIGHT(B6,5),Reference!$A$2:$H$196,3,FALSE),0) -> 0
D7: Sub Total of Line 513 | E7: =SUM(E3:E6) -> 0 | F7: =SUM(F3:F6) -> 0 | G7: =SUM(G3:G6) -> 0 | H7: =SUM(H3:H6) -> 0 | I7: =SUM(I3:I6) -> 0
A8: 514 | B8: 30014 | C8: 3321 thru 3329 | D8: Industrial- Improved Land- Fabricated Metal | E8: =IF(ISERROR(VLOOKUP(B8,Reference!$A$2:$F$201,4,FALSE))=TRUE,0,VLOOKUP(RIGHT(B8,5),Reference!$A$2:$F$201,4,FALSE)) -> 0 | F8: 0 | G8: 0 | H8: 0 | I8: =IF(H8<>0,VLOOKUP(RIGHT(B8,5),Reference!$A$2:$H$196,3,FALSE),0) -> 0
B9: 30114 | D9: Industrial- Manufacturing- Fabricated Metal | E9: 0 | F9: =IF(ISERROR(VLOOKUP(B9,Reference!$A$2:$F$201,4,FALSE))=TRUE,0,VLOOKUP(RIGHT(B9,5),Reference!$A$2:$F$201,4,FALSE)) -> 0 | G9: 0 | H9: 0 | I9: =IF(H9<>0,VLOOKUP(RIGHT(B9,5),Reference!$A$2:$H$196,3,FALSE),0) -> 0
B10: 30414 | D10: Industrial- Support/Out Building Only- Fabricated Metal | E10: 0 | F10: =IF(ISERROR(VLOOKUP(B10,Reference!$A$2:$F$201,4,FALSE))=TRUE,0,VLOOKUP(RIGHT(B10,5),Reference!$A$2:$F$201,4,FALSE)) -> 0 | G10: 0 | H10: 0 | I10: =IF(H10<>0,VLOOKUP(RIGHT(B10,5),Reference!$A$2:$H$196,3,FALSE),0) -> 0
B11: 39914 | D11: Industrial- Personal Property- Fabricated Metal | E11: 0 | F11: 0 | G11: =IF(ISERROR(VLOOKUP(B11,Reference!$A$2:$F$201,4,FALSE))=TRUE,0,VLOOKUP(RIGHT(B11,5),Reference!$A$2:$F$201,4,FALSE)) -> 0 | H11: =E11+F11+G11 -> 0 | I11: =IF(H11<>0,VLOOKUP(RIGHT(B11,5),Reference!$A$2:$H$196,3,FALSE),0) -> 0
D12: Sub Total of Line 514 | E12: =SUM(E8:E11) -> 0 | F12: =SUM(F8:F11) -> 0 | G12: =SUM(G8:G11) -> 0 | H12: =SUM(H8:H11) -> 0 | I12: =SUM(I8:I11) -> 0
A13: 515 | B13: 30015 | C13: 3331 thru 3339 | D13: Industrial- Improved Land- Machinery Manufacturing | E13: =IF(ISERROR(VLOOKUP(B13,Reference!$A$2:$F$201,4,FALSE))=TRUE,0,VLOOKUP(RIGHT(B13,5),Reference!$A$2:$F$201,4,FALSE)) -> 0 | F13: 0 | G13: 0 | H13: 0 | I13: =IF(H13<>0,VLOOKUP(RIGHT(B13,5),Reference!$A$2:$H$196,3,FALSE),0) -> 0
B14: 30115 | D14: Industrial- Manufacturing- Machinery Manufacturing | E14: 0 | F14: =IF(ISERROR(VLOOKUP(B14,Reference!$A$2:$F$201,4,FALSE))=TRUE,0,VLOOKUP(RIGHT(B14,5),Reference!$A$2:$F$201,4,FALSE)) -> 0 | G14: 0 | H14: 0 | I14: =IF(H14<>0,VLOOKUP(RIGHT(B14,5),Reference!$A$2:$H$196,3,FALSE),0) -> 0
B15: 30415 | D15: Industrial- Support/Out Building Only- Machinery Manufacturing | E15: 0 | F15: =IF(ISERROR(VLOOKUP(B15,Reference!$A$2:$F$201,4,FALSE))=TRUE,0,VLOOKUP(RIGHT(B15,5),Reference!$A$2:$F$201,4,FALSE)) -> 0 | G15: 0 | H15: 0 | I15: =IF(H15<>0,VLOOKUP(RIGHT(B15,5),Reference!$A$2:$H$196,3,FALSE),0) -> 0
B16: 39915 | D16: Industrial- Personal Property- Machinery Manufacturing | E16: 0 | F16: 0 | G16: =IF(ISERROR(VLOOKUP(B16,Reference!$A$2:$F$201,4,FALSE))=TRUE,0,VLOOKUP(RIGHT(B16,5),Reference!$A$2:$F$201,4,FALSE)) -> 0 | H16: =E16+F16+G16 -> 0 | I16: =IF(H16<>0,VLOOKUP(RIGHT(B16,5),Reference!$A$2:$H$196,3,FALSE),0) -> 0
D17: Sub Total of Line 515 | E17: =SUM(E13:E16) -> 0 | F17: =SUM(F13:F16) -> 0 | G17: =SUM(G13:G16) -> 0 | H17: =SUM(H13:H16) -> 0 | I17: =SUM(I13:I16) -> 0
A18: 516 | B18: 30016 | C18: 3341 thru 3346 | D18: Industrial- Improved Land- Computer/Electronic Manufacturing | E18: =IF(ISERROR(VLOOKUP(B18,Reference!$A$2:$F$201,4,FALSE))=TRUE,0,VLOOKUP(RIGHT(B18,5),Reference!$A$2:$F$201,4,FALSE)) -> 0 | F18: 0 | G18: 0 | H18: 0 | I18: =IF(H18<>0,VLOOKUP(RIGHT(B18,5),Reference!$A$2:$H$196,3,FALSE),0) -> 0
B19: 30116 | D19: Industrial- Manufacturing- Computer/Electronic Manufacturing | E19: 0 | F19: =IF(ISERROR(VLOOKUP(B19,Reference!$A$2:$F$201,4,FALSE))=TRUE,0,VLOOKUP(RIGHT(B19,5),Reference!$A$2:$F$201,4,FALSE)) -> 0 | G19: 0 | H19: 0 | I19: =IF(H19<>0,VLOOKUP(RIGHT(B19,5),Reference!$A$2:$H$196,3,FALSE),0) -> 0
B20: 30416 | D20: Industrial- Support/Out Building Only- Computer/Electronic Manufacturing | E20: 0 | F20: =IF(ISERROR(VLOOKUP(B20,Reference!$A$2:$F$201,4,FALSE))=TRUE,0,VLOOKUP(RIGHT(B20,5),Reference!$A$2:$F$201,4,FALSE)) -> 0 | G20: 0 | H20: 0 | I20: =IF(H20<>0,VLOOKUP(RIGHT(B20,5),Reference!$A$2:$H$196,3,FALSE),0) -> 0
B21: 39916 | D21: Industrial- Personal Property- Computer/Electronic Manufacturing | E21: 0 | F21: 0 | G21: =IF(ISERROR(VLOOKUP(B21,Reference!$A$2:$F$201,4,FALSE))=TRUE,0,VLOOKUP(RIGHT(B21,5),Reference!$A$2:$F$201,4,FALSE)) -> 0 | H21: =E21+F21+G21 -> 0 | I21: =IF(H21<>0,VLOOKUP(RIGHT(B21,5),Reference!$A$2:$H$196,3,FALSE),0) -> 0
D22: Sub Total of Line 516 | E22: =SUM(E18:E21) -> 0 | F22: =SUM(F18:F21) -> 0 | G22: =SUM(G18:G21) -> 0 | H22: =SUM(H18:H21) -> 0 | I22: =SUM(I18:I21) -> 0
A23: 517 | B23: 30017 | C23: 3351 thru 3359 | D23: Industrial- Improved Land- Electrical/Appliance/Component Manufacturing | E23: =IF(ISERROR(VLOOKUP(B23,Reference!$A$2:$F$201,4,FALSE))=TRUE,0,VLOOKUP(RIGHT(B23,5),Reference!$A$2:$F$201,4,FALSE)) -> 0 | F23: 0 | G23: 0 | H23: 0 | I23: =IF(H23<>0,VLOOKUP(RIGHT(B23,5),Reference!$A$2:$H$196,3,FALSE),0) -> 0
B24: 30117 | D24: Industrial- Manufacturing- Electrical/Appliance/Component Manufacturing | E24: 0 | F24: =IF(ISERROR(VLOOKUP(B24,Reference!$A$2:$F$201,4,FALSE))=TRUE,0,VLOOKUP(RIGHT(B24,5),Reference!$A$2:$F$201,4,FALSE)) -> 0 | G24: 0 | H24: 0 | I24: =IF(H24<>0,VLOOKUP(RIGHT(B24,5),Reference!$A$2:$H$196,3,FALSE),0) -> 0
B25: 30417 | D25: Industrial- Support/Out Building Only- Electrical/Appliance/Component Manufacturing | E25: 0 | F25: =IF(ISERROR(VLOOKUP(B25,Reference!$A$2:$F$201,4,FALSE))=TRUE,0,VLOOKUP(RIGHT(B25,5),Reference!$A$2:$F$201,4,FALSE)) -> 0 | G25: 0 | H25: 0 | I25: =IF(H25<>0,VLOOKUP(RIGHT(B25,5),Reference!$A$2:$H$196,3,FALSE),0) -> 0
B26: 39917 | D26: Industrial- Personal Property- Electrical/Appliance/Component Manufacturing | E26: 0 | F26: 0 | G26: =IF(ISERROR(VLOOKUP(B26,Reference!$A$2:$F$201,4,FALSE))=TRUE,0,VLOOKUP(RIGHT(B26,5),Reference!$A$2:$F$201,4,FALSE)) -> 0 | H26: =E26+F26+G26 -> 0 | I26: =IF(H26<>0,VLOOKUP(RIGHT(B26,5),Reference!$A$2:$H$196,3,FALSE),0) -> 0
D27: Sub Total of Line 517 | E27: =SUM(E23:E26) -> 0 | F27: =SUM(F23:F26) -> 0 | G27: =SUM(G23:G26) -> 0 | H27: =SUM(H23:H26) -> 0 | I27: =SUM(I23:I26) -> 0
A28: 518 | B28: 30018 | C28: 3361 thru 3369 | D28: Industrial- Improved Land- Transportation Equipment | E28: =IF(ISERROR(VLOOKUP(B28,Reference!$A$2:$F$201,4,FALSE))=TRUE,0,VLOOKUP(RIGHT(B28,5),Reference!$A$2:$F$201,4,FALSE)) -> 0 | F28: 0 | G28: 0 | H28: 0 | I28: =IF(H28<>0,VLOOKUP(RIGHT(B28,5),Reference!$A$2:$H$196,3,FALSE),0) -> 0
B29: 30118 | D29: Industrial- Manufacturing- Transportation Equipment | E29: 0 | F29: =IF(ISERROR(VLOOKUP(B29,Reference!$A$2:$F$201,4,FALSE))=TRUE,0,VLOOKUP(RIGHT(B29,5),Reference!$A$2:$F$201,4,FALSE)) -> 0 | G29: 0 | H29: 0 | I29: =IF(H29<>0,VLOOKUP(RIGHT(B29,5),Reference!$A$2:$H$196,3,FALSE),0) -> 0
B30: 30418 | D30: Industrial- Support/Out Building Only- Transportation Equipment | E30: 0 | F30: =IF(ISERROR(VLOOKUP(B30,Reference!$A$2:$F$201,4,FALSE))=TRUE,0,VLOOKUP(RIGHT(B30,5),Reference!$A$2:$F$201,4,FALSE)) -> 0 | G30: 0 | H30: 0 | I30: =IF(H30<>0,VLOOKUP(RIGHT(B30,5),Reference!$A$2:$H$196,3,FALSE),0) -> 0
B31: 39918 | D31: Industrial- Personal Property- Transportation Equipment | E31: 0 | F31: 0 | G31: =IF(ISERROR(VLOOKUP(B31,Reference!$A$2:$F$201,4,FALSE))=TRUE,0,VLOOKUP(RIGHT(B31,5),Reference!$A$2:$F$201,4,FALSE)) -> 0 | H31: =E31+F31+G31 -> 0 | I31: =IF(H31<>0,VLOOKUP(RIGHT(B31,5),Reference!$A$2:$H$196,3,FALSE),0) -> 0
D32: Sub Total of Line 518 | E32: =SUM(E28:E31) -> 0 | F32: =SUM(F28:F31) -> 0 | G32: =SUM(G28:G31) -> 0 | H32: =SUM(H28:H31) -> 0 | I32: =SUM(I28:I31) -> 0

Sheet Page 8
A1: Industrial Property
A2: Line | B2: DOR | C2: NAICS | D2: Primary Activity | E2: LAND (FMV) | F2: Improvements (FMV) | G2: Personal Property (FMV) | H2: Total Fair Market Value | I2: TOTAL ASSESSED VALUE
A3: 519 | B3: 30019 | C3: 3371 thru 3379 | D3: Industrial- Improved Land- Furniture | E3: =IF(ISERROR(VLOOKUP(B3,Reference!$A$2:$F$201,4,FALSE))=TRUE,0,VLOOKUP(RIGHT(B3,5),Reference!$A$2:$F$201,4,FALSE)) -> 0 | F3: 0 | G3: 0 | H3: =E3+F3+G3 -> 0 | I3: =IF(H3<>0,VLOOKUP(RIGHT(B3,5),Reference!$A$2:$H$196,3,FALSE),0) -> 0
B4: 30119 | D4: Industrial- Manufacturing- Furniture | E4: 0 | F4: =IF(ISERROR(VLOOKUP(B4,Reference!$A$2:$F$201,4,FALSE))=TRUE,0,VLOOKUP(RIGHT(B4,5),Reference!$A$2:$F$201,4,FALSE)) -> 0 | G4: 0 | H4: =E4+F4+G4 -> 0 | I4: =IF(H4<>0,VLOOKUP(RIGHT(B4,5),Reference!$A$2:$H$196,3,FALSE),0) -> 0
B5: 30419 | D5: Industrial- Support/Out Building Only- Furniture | E5: 0 | F5: =IF(ISERROR(VLOOKUP(B5,Reference!$A$2:$F$201,4,FALSE))=TRUE,0,VLOOKUP(RIGHT(B5,5),Reference!$A$2:$F$201,4,FALSE)) -> 0 | G5: 0 | H5: 0 | I5: =IF(H5<>0,VLOOKUP(RIGHT(B5,5),Reference!$A$2:$H$196,3,FALSE),0) -> 0
B6: 39919 | D6: Industrial- Personal Property- Furniture | E6: 0 | F6: 0 | G6: =IF(ISERROR(VLOOKUP(B6,Reference!$A$2:$F$201,4,FALSE))=TRUE,0,VLOOKUP(RIGHT(B6,5),Reference!$A$2:$F$201,4,FALSE)) -> 0 | H6: =E6+F6+G6 -> 0 | I6: =IF(H6<>0,VLOOKUP(RIGHT(B6,5),Reference!$A$2:$H$196,3,FALSE),0) -> 0
D7: Sub Total of Line 519 | E7: =SUM(E3:E6) -> 0 | F7: =SUM(F3:F6) -> 0 | G7: =SUM(G3:G6) -> 0 | H7: =SUM(H3:H6) -> 0 | I7: =SUM(I3:I6) -> 0
A8: 520 | B8: 30020 | C8: 3391 | D8: Industrial- Improved Land- Medical Equipment/Supplies | E8: =IF(ISERROR(VLOOKUP(B8,Reference!$A$2:$F$201,4,FALSE))=TRUE,0,VLOOKUP(RIGHT(B8,5),Reference!$A$2:$F$201,4,FALSE)) -> 0 | F8: 0 | G8: 0 | H8: 0 | I8: =IF(H8<>0,VLOOKUP(RIGHT(B8,5),Reference!$A$2:$H$196,3,FALSE),0) -> 0
B9: 30120 | D9: Industrial- Manufacturing- Medical Equipment/Supplies | E9: 0 | F9: =IF(ISERROR(VLOOKUP(B9,Reference!$A$2:$F$201,4,FALSE))=TRUE,0,VLOOKUP(RIGHT(B9,5),Reference!$A$2:$F$201,4,FALSE)) -> 0 | G9: 0 | H9: 0 | I9: =IF(H9<>0,VLOOKUP(RIGHT(B9,5),Reference!$A$2:$H$196,3,FALSE),0) -> 0
B10: 30420 | D10: Industrial- Support/Out Building Only- Medical Equipment/Supplies | E10: 0 | F10: =IF(ISERROR(VLOOKUP(B10,Reference!$A$2:$F$201,4,FALSE))=TRUE,0,VLOOKUP(RIGHT(B10,5),Reference!$A$2:$F$201,4,FALSE)) -> 0 | G10: 0 | H10: 0 | I10: =IF(H10<>0,VLOOKUP(RIGHT(B10,5),Reference!$A$2:$H$196,3,FALSE),0) -> 0
B11: 39920 | D11: Industrial- Personal Property- Medical Equipment/Supplies | E11: 0 | F11: 0 | G11: =IF(ISERROR(VLOOKUP(B11,Reference!$A$2:$F$201,4,FALSE))=TRUE,0,VLOOKUP(RIGHT(B11,5),Reference!$A$2:$F$201,4,FALSE)) -> 0 | H11: =E11+F11+G11 -> 0 | I11: =IF(H11<>0,VLOOKUP(RIGHT(B11,5),Reference!$A$2:$H$196,3,FALSE),0) -> 0
D12: Sub Total of Line 520 | E12: =SUM(E8:E11) -> 0 | F12: =SUM(F8:F11) -> 0 | G12: =SUM(G8:G11) -> 0 | H12: =SUM(H8:H11) -> 0 | I12: =SUM(I8:I11) -> 0
A13: 521 | B13: 30021 | C13: 3399 | D13: Industrial- Improved Land- Jewelry/Silverware/Plate Ware | E13: =IF(ISERROR(VLOOKUP(B13,Reference!$A$2:$F$201,4,FALSE))=TRUE,0,VLOOKUP(RIGHT(B13,5),Reference!$A$2:$F$201,4,FALSE)) -> 0 | F13: 0 | G13: 0 | H13: 0 | I13: =IF(H13<>0,VLOOKUP(RIGHT(B13,5),Reference!$A$2:$H$196,3,FALSE),0) -> 0
B14: 30121 | D14: Industrial- Manufacturing- Jewelry/Silverware/Plate Ware | E14: 0 | F14: =IF(ISERROR(VLOOKUP(B14,Reference!$A$2:$F$201,4,FALSE))=TRUE,0,VLOOKUP(RIGHT(B14,5),Reference!$A$2:$F$201,4,FALSE)) -> 0 | G14: 0 | H14: 0 | I14: =IF(H14<>0,VLOOKUP(RIGHT(B14,5),Reference!$A$2:$H$196,3,FALSE),0) -> 0
B15: 30421 | D15: Industrial- Support/Out Building Only- Jewelry/Silverware/Plate Ware | E15: 0 | F15: =IF(ISERROR(VLOOKUP(B15,Reference!$A$2:$F$201,4,FALSE))=TRUE,0,VLOOKUP(RIGHT(B15,5),Reference!$A$2:$F$201,4,FALSE)) -> 0 | G15: 0 | H15: 0 | I15: =IF(H15<>0,VLOOKUP(RIGHT(B15,5),Reference!$A$2:$H$196,3,FALSE),0) -> 0
B16: 39921 | D16: Industrial- Personal Property- Jewelry/Silverware/Plate Ware | E16: 0 | F16: 0 | G16: =IF(ISERROR(VLOOKUP(B16,Reference!$A$2:$F$201,4,FALSE))=TRUE,0,VLOOKUP(RIGHT(B16,5),Reference!$A$2:$F$201,4,FALSE)) -> 0 | H16: =E16+F16+G16 -> 0 | I16: =IF(H16<>0,VLOOKUP(RIGHT(B16,5),Reference!$A$2:$H$196,3,FALSE),0) -> 0
D17: Sub Total of Line 521 | E17: =SUM(E13:E16) -> 0 | F17: =SUM(F13:F16) -> 0 | G17: =SUM(G13:G16) -> 0 | H17: =SUM(H13:H16) -> 0 | I17: =SUM(I13:I16) -> 0
A18: 522 | B18: 30022 | C18: 2111 | D18: Industrial- Improved Land- Oil and Gas Extraction | E18: =IF(ISERROR(VLOOKUP(B18,Reference!$A$2:$F$201,4,FALSE))=TRUE,0,VLOOKUP(RIGHT(B18,5),Reference!$A$2:$F$201,4,FALSE)) -> 0 | F18: 0 | G18: 0 | H18: 0 | I18: =IF(H18<>0,VLOOKUP(RIGHT(B18,5),Reference!$A$2:$H$196,3,FALSE),0) -> 0
B19: 30222 | D19: Industrial- Mineral Co. Improvements- Oil and Gas Extraction | E19: 0 | F19: =IF(ISERROR(VLOOKUP(B19,Reference!$A$2:$F$201,4,FALSE))=TRUE,0,VLOOKUP(RIGHT(B19,5),Reference!$A$2:$F$201,4,FALSE)) -> 0 | G19: 0 | H19: 0 | I19: =IF(H19<>0,VLOOKUP(RIGHT(B19,5),Reference!$A$2:$H$196,3,FALSE),0) -> 0
B20: 30422 | D20: Industrial- Support/Out Building Only- Oil and Gas Extraction | E20: 0 | F20: =IF(ISERROR(VLOOKUP(B20,Reference!$A$2:$F$201,4,FALSE))=TRUE,0,VLOOKUP(RIGHT(B20,5),Reference!$A$2:$F$201,4,FALSE)) -> 0 | G20: 0 | H20: 0 | I20: =IF(H20<>0,VLOOKUP(RIGHT(B20,5),Reference!$A$2:$H$196,3,FALSE),0) -> 0
B21: 39922 | D21: Industrial- Personal Property- Oil and Gas Extraction | E21: 0 | F21: 0 | G21: =IF(ISERROR(VLOOKUP(B21,Reference!$A$2:$F$201,4,FALSE))=TRUE,0,VLOOKUP(RIGHT(B21,5),Reference!$A$2:$F$201,4,FALSE)) -> 0 | H21: =E21+F21+G21 -> 0 | I21: =IF(H21<>0,VLOOKUP(RIGHT(B21,5),Reference!$A$2:$H$196,3,FALSE),0) -> 0
D22: Sub Total of Line 522 | E22: =SUM(E18:E21) -> 0 | F22: =SUM(F18:F21) -> 0 | G22: =SUM(G18:G21) -> 0 | H22: =SUM(H18:H21) -> 0 | I22: =SUM(I18:I21) -> 0
A23: 523 | B23: 30023 | C23: 2121 | D23: Industrial- Improved Land- Coal Mining | E23: =IF(ISERROR(VLOOKUP(B23,Reference!$A$2:$F$201,4,FALSE))=TRUE,0,VLOOKUP(RIGHT(B23,5),Reference!$A$2:$F$201,4,FALSE)) -> 0 | F23: 0 | G23: 0 | H23: 0 | I23: =IF(H23<>0,VLOOKUP(RIGHT(B23,5),Reference!$A$2:$H$196,3,FALSE),0) -> 0
B24: 30223 | D24: Industrial- Mineral Co. Improvements- Coal Mining | E24: 0 | F24: =IF(ISERROR(VLOOKUP(B24,Reference!$A$2:$F$201,4,FALSE))=TRUE,0,VLOOKUP(RIGHT(B24,5),Reference!$A$2:$F$201,4,FALSE)) -> 0 | G24: 0 | H24: 0 | I24: =IF(H24<>0,VLOOKUP(RIGHT(B24,5),Reference!$A$2:$H$196,3,FALSE),0) -> 0
B25: 30423 | D25: Industrial- Support/Out Building Only- Coal Mining | E25: 0 | F25: =IF(ISERROR(VLOOKUP(B25,Reference!$A$2:$F$201,4,FALSE))=TRUE,0,VLOOKUP(RIGHT(B25,5),Reference!$A$2:$F$201,4,FALSE)) -> 0 | G25: 0 | H25: 0 | I25: =IF(H25<>0,VLOOKUP(RIGHT(B25,5),Reference!$A$2:$H$196,3,FALSE),0) -> 0
B26: 39923 | D26: Industrial- Personal Property- Coal Mining | E26: 0 | F26: 0 | G26: =IF(ISERROR(VLOOKUP(B26,Reference!$A$2:$F$201,4,FALSE))=TRUE,0,VLOOKUP(RIGHT(B26,5),Reference!$A$2:$F$201,4,FALSE)) -> 0 | H26: =E26+F26+G26 -> 0 | I26: =IF(H26<>0,VLOOKUP(RIGHT(B26,5),Reference!$A$2:$H$196,3,FALSE),0) -> 0
D27: Sub Total of Line 523 | E27: =SUM(E23:E26) -> 0 | F27: =SUM(F23:F26) -> 0 | G27: =SUM(G23:G26) -> 0 | H27: =SUM(H23:H26) -> 0 | I27: =SUM(I23:I26) -> 0
A28: 524 | B28: 30024 | C28: 2122 | D28: Industrial- Improved Land- Metal Ore Mining | E28: =IF(ISERROR(VLOOKUP(B28,Reference!$A$2:$F$201,4,FALSE))=TRUE,0,VLOOKUP(RIGHT(B28,5),Reference!$A$2:$F$201,4,FALSE)) -> 0 | F28: 0 | G28: 0 | H28: 0 | I28: =IF(H28<>0,VLOOKUP(RIGHT(B28,5),Reference!$A$2:$H$196,3,FALSE),0) -> 0
B29: 30224 | D29: Industrial- Mineral Co. Improvements- Metal Ore Mining | E29: 0 | F29: =IF(ISERROR(VLOOKUP(B29,Reference!$A$2:$F$201,4,FALSE))=TRUE,0,VLOOKUP(RIGHT(B29,5),Reference!$A$2:$F$201,4,FALSE)) -> 0 | G29: 0 | H29: 0 | I29: =IF(H29<>0,VLOOKUP(RIGHT(B29,5),Reference!$A$2:$H$196,3,FALSE),0) -> 0
B30: 30424 | D30: Industrial- Support/Out Building Only- Metal Ore Mining | E30: 0 | F30: =IF(ISERROR(VLOOKUP(B30,Reference!$A$2:$F$201,4,FALSE))=TRUE,0,VLOOKUP(RIGHT(B30,5),Reference!$A$2:$F$201,4,FALSE)) -> 0 | G30: 0 | H30: 0 | I30: =IF(H30<>0,VLOOKUP(RIGHT(B30,5),Reference!$A$2:$H$196,3,FALSE),0) -> 0
B31: 39924 | D31: Industrial- Personal Property- Metal Ore Mining | E31: 0 | F31: 0 | G31: =IF(ISERROR(VLOOKUP(B31,Reference!$A$2:$F$201,4,FALSE))=TRUE,0,VLOOKUP(RIGHT(B31,5),Reference!$A$2:$F$201,4,FALSE)) -> 0 | H31: =E31+F31+G31 -> 0 | I31: =IF(H31<>0,VLOOKUP(RIGHT(B31,5),Reference!$A$2:$H$196,3,FALSE),0) -> 0
D32: Sub Total of Line 524 | E32: =SUM(E28:E31) -> 0 | F32: =SUM(F28:F31) -> 0 | G32: =SUM(G28:G31) -> 0 | H32: =SUM(H28:H31) -> 0 | I32: =SUM(I28:I31) -> 0

Sheet Page 9
A1: Industrial Property
A2: Line | B2: DOR | C2: NAICS | D2: Primary Activity | E2: LAND (FMV) | F2: Improvements (FMV) | G2: Personal Property (FMV) | H2: Total Fair Market Value | I2: TOTAL ASSESSED VALUE
A3: 525 | B3: 30025 | C3: 2123 | D3: Industrial- Improved Land- Non-Metal Mining | E3: =IF(ISERROR(VLOOKUP(B3,Reference!$A$2:$F$201,4,FALSE))=TRUE,0,VLOOKUP(RIGHT(B3,5),Reference!$A$2:$F$201,4,FALSE)) -> 0 | F3: 0 | G3: 0 | H3: =E3+F3+G3 -> 0 | I3: =IF(H3<>0,VLOOKUP(RIGHT(B3,5),Reference!$A$2:$H$196,3,FALSE),0) -> 0
B4: 30225 | D4: Industrial- Mineral Co. Improvements- Non-Metal Mining | E4: 0 | F4: =IF(ISERROR(VLOOKUP(B4,Reference!$A$2:$F$201,4,FALSE))=TRUE,0,VLOOKUP(RIGHT(B4,5),Reference!$A$2:$F$201,4,FALSE)) -> 0 | G4: 0 | H4: =E4+F4+G4 -> 0 | I4: =IF(H4<>0,VLOOKUP(RIGHT(B4,5),Reference!$A$2:$H$196,3,FALSE),0) -> 0
B5: 30425 | D5: Industrial- Support/Out Building Only- Non-Metal Mining | E5: 0 | F5: =IF(ISERROR(VLOOKUP(B5,Reference!$A$2:$F$201,4,FALSE))=TRUE,0,VLOOKUP(RIGHT(B5,5),Reference!$A$2:$F$201,4,FALSE)) -> 0 | G5: 0 | H5: 0 | I5: =IF(H5<>0,VLOOKUP(RIGHT(B5,5),Reference!$A$2:$H$196,3,FALSE),0) -> 0
B6: 39925 | D6: Industrial- Personal Property- Non-Metal Mining | E6: 0 | F6: 0 | G6: =IF(ISERROR(VLOOKUP(B6,Reference!$A$2:$F$201,4,FALSE))=TRUE,0,VLOOKUP(RIGHT(B6,5),Reference!$A$2:$F$201,4,FALSE)) -> 0 | H6: =E6+F6+G6 -> 0 | I6: =IF(H6<>0,VLOOKUP(RIGHT(B6,5),Reference!$A$2:$H$196,3,FALSE),0) -> 0
D7: Sub Total of Line 525 | E7: =SUM(E3:E6) -> 0 | F7: =SUM(F3:F6) -> 0 | G7: =SUM(G3:G6) -> 0 | H7: =SUM(H3:H6) -> 0 | I7: =SUM(I3:I6) -> 0
A8: 526 | B8: 30026 | C8: 3241 | D8: Industrial- Improved Land- Petroleum & Coal Product Manufacturing | E8: =IF(ISERROR(VLOOKUP(B8,Reference!$A$2:$F$201,4,FALSE))=TRUE,0,VLOOKUP(RIGHT(B8,5),Reference!$A$2:$F$201,4,FALSE)) -> 0 | F8: 0 | G8: 0 | H8: 0 | I8: =IF(H8<>0,VLOOKUP(RIGHT(B8,5),Reference!$A$2:$H$196,3,FALSE),0) -> 0
B9: 30126 | D9: Industrial- Mineral Co. Improvements- Petroleum & Coal Product Manufacturing | E9: 0 | F9: =IF(ISERROR(VLOOKUP(B9,Reference!$A$2:$F$201,4,FALSE))=TRUE,0,VLOOKUP(RIGHT(B9,5),Reference!$A$2:$F$201,4,FALSE)) -> 0 | G9: 0 | H9: 0 | I9: =IF(H9<>0,VLOOKUP(RIGHT(B9,5),Reference!$A$2:$H$196,3,FALSE),0) -> 0
B10: 30426 | D10: Industrial- Support/Out Building Only- Petroleum & Coal Product Manufacturing | E10: 0 | F10: =IF(ISERROR(VLOOKUP(B10,Reference!$A$2:$F$201,4,FALSE))=TRUE,0,VLOOKUP(RIGHT(B10,5),Reference!$A$2:$F$201,4,FALSE)) -> 0 | G10: 0 | H10: 0 | I10: =IF(H10<>0,VLOOKUP(RIGHT(B10,5),Reference!$A$2:$H$196,3,FALSE),0) -> 0
B11: 39926 | D11: Industrial- Personal Property- Petroleum & Coal Product Manufacturing | E11: 0 | F11: 0 | G11: =IF(ISERROR(VLOOKUP(B11,Reference!$A$2:$F$201,4,FALSE))=TRUE,0,VLOOKUP(RIGHT(B11,5),Reference!$A$2:$F$201,4,FALSE)) -> 0 | H11: =E11+F11+G11 -> 0 | I11: =IF(H11<>0,VLOOKUP(RIGHT(B11,5),Reference!$A$2:$H$196,3,FALSE),0) -> 0
D12: Sub Total of Line 526 | E12: =SUM(E8:E11) -> 0 | F12: =SUM(F8:F11) -> 0 | G12: =SUM(G8:G11) -> 0 | H12: =SUM(H8:H11) -> 0 | I12: =SUM(I8:I11) -> 0
A13: 527 | B13: 30027 | C13: 3251 | D13: Industrial- Improved Land- Basic Chemical Manufacturing | E13: =IF(ISERROR(VLOOKUP(B13,Reference!$A$2:$F$201,4,FALSE))=TRUE,0,VLOOKUP(RIGHT(B13,5),Reference!$A$2:$F$201,4,FALSE)) -> 0 | F13: 0 | G13: 0 | H13: 0 | I13: =IF(H13<>0,VLOOKUP(RIGHT(B13,5),Reference!$A$2:$H$196,3,FALSE),0) -> 0
B14: 30127 | D14: Industrial- Mineral Co. Improvements- Basic Chemical Manufacturing | E14: 0 | F14: =IF(ISERROR(VLOOKUP(B14,Reference!$A$2:$F$201,4,FALSE))=TRUE,0,VLOOKUP(RIGHT(B14,5),Reference!$A$2:$F$201,4,FALSE)) -> 0 | G14: 0 | H14: 0 | I14: =IF(H14<>0,VLOOKUP(RIGHT(B14,5),Reference!$A$2:$H$196,3,FALSE),0) -> 0
B15: 30427 | D15: Industrial- Support/Out Building Only- Basic Chemical Manufacturing | E15: 0 | F15: =IF(ISERROR(VLOOKUP(B15,Reference!$A$2:$F$201,4,FALSE))=TRUE,0,VLOOKUP(RIGHT(B15,5),Reference!$A$2:$F$201,4,FALSE)) -> 0 | G15: 0 | H15: 0 | I15: =IF(H15<>0,VLOOKUP(RIGHT(B15,5),Reference!$A$2:$H$196,3,FALSE),0) -> 0
B16: 39927 | D16: Industrial- Personal Property- Basic Chemical Manufacturing | E16: 0 | F16: 0 | G16: =IF(ISERROR(VLOOKUP(B16,Reference!$A$2:$F$201,4,FALSE))=TRUE,0,VLOOKUP(RIGHT(B16,5),Reference!$A$2:$F$201,4,FALSE)) -> 0 | H16: =E16+F16+G16 -> 0 | I16: =IF(H16<>0,VLOOKUP(RIGHT(B16,5),Reference!$A$2:$H$196,3,FALSE),0) -> 0
D17: Sub Total of Line 527 | E17: =SUM(E13:E16) -> 0 | F17: =SUM(F13:F16) -> 0 | G17: =SUM(G13:G16) -> 0 | H17: =SUM(H13:H16) -> 0 | I17: =SUM(I13:I16) -> 0
A18: 528 | B18: 30028 | C18: 4861 thru 4869 | D18: Industrial- Improved Land- Pipeline Transportation | E18: =IF(ISERROR(VLOOKUP(B18,Reference!$A$2:$F$201,4,FALSE))=TRUE,0,VLOOKUP(RIGHT(B18,5),Reference!$A$2:$F$201,4,FALSE)) -> 0 | F18: 0 | G18: 0 | H18: 0 | I18: =IF(H18<>0,VLOOKUP(RIGHT(B18,5),Reference!$A$2:$H$196,3,FALSE),0) -> 0
B19: 30329 | D19: Industrial- Mineral Co. Improvements- Pipeline Transportation | E19: 0 | F19: =IF(ISERROR(VLOOKUP(B19,Reference!$A$2:$F$201,4,FALSE))=TRUE,0,VLOOKUP(RIGHT(B19,5),Reference!$A$2:$F$201,4,FALSE)) -> 0 | G19: 0 | H19: 0 | I19: =IF(H19<>0,VLOOKUP(RIGHT(B19,5),Reference!$A$2:$H$196,3,FALSE),0) -> 0
B20: 30428 | D20: Industrial- Support/Out Building Only- Pipeline Transportation | E20: 0 | F20: =IF(ISERROR(VLOOKUP(B20,Reference!$A$2:$F$201,4,FALSE))=TRUE,0,VLOOKUP(RIGHT(B20,5),Reference!$A$2:$F$201,4,FALSE)) -> 0 | G20: 0 | H20: 0 | I20: =IF(H20<>0,VLOOKUP(RIGHT(B20,5),Reference!$A$2:$H$196,3,FALSE),0) -> 0
B21: 39928 | D21: Industrial- Personal Property- Pipeline Transportation | E21: 0 | F21: 0 | G21: =IF(ISERROR(VLOOKUP(B21,Reference!$A$2:$F$201,4,FALSE))=TRUE,0,VLOOKUP(RIGHT(B21,5),Reference!$A$2:$F$201,4,FALSE)) -> 0 | H21: =E21+F21+G21 -> 0 | I21: =IF(H21<>0,VLOOKUP(RIGHT(B21,5),Reference!$A$2:$H$196,3,FALSE),0) -> 0
D22: Sub Total of Line 528 | E22: =SUM(E18:E21) -> 0 | F22: =SUM(F18:F21) -> 0 | G22: =SUM(G18:G21) -> 0 | H22: =SUM(H18:H21) -> 0 | I22: =SUM(I18:I21) -> 0
A23: 529 | B23: 30029 | C23: 2211 | D23: Industrial- Improved Land- Electrical Power Generation | E23: =IF(ISERROR(VLOOKUP(B23,Reference!$A$2:$F$201,4,FALSE))=TRUE,0,VLOOKUP(RIGHT(B23,5),Reference!$A$2:$F$201,4,FALSE)) -> 0 | F23: 0 | G23: 0 | H23: =E23+F23+G23 -> 0 | I23: =IF(H23<>0,VLOOKUP(RIGHT(B23,5),Reference!$A$2:$H$196,3,FALSE),0) -> 0
B24: 30129 | D24: Industrial- Mineral Co. Improvements- Electrical Power Generation | E24: 0 | F24: =IF(ISERROR(VLOOKUP(B24,Reference!$A$2:$F$201,4,FALSE))=TRUE,0,VLOOKUP(RIGHT(B24,5),Reference!$A$2:$F$201,4,FALSE)) -> 0 | G24: 0 | H24: 0 | I24: =IF(H24<>0,VLOOKUP(RIGHT(B24,5),Reference!$A$2:$H$196,3,FALSE),0) -> 0
B25: 30429 | D25: Industrial- Support/Out Building Only- Electrical Power Generation | E25: 0 | F25: =IF(ISERROR(VLOOKUP(B25,Reference!$A$2:$F$201,4,FALSE))=TRUE,0,VLOOKUP(RIGHT(B25,5),Reference!$A$2:$F$201,4,FALSE)) -> 0 | G25: 0 | H25: 0 | I25: =IF(H25<>0,VLOOKUP(RIGHT(B25,5),Reference!$A$2:$H$196,3,FALSE),0) -> 0
B26: 39929 | D26: Industrial- Personal Property- Electrical Power Generation | E26: 0 | F26: 0 | G26: =IF(ISERROR(VLOOKUP(B26,Reference!$A$2:$F$201,4,FALSE))=TRUE,0,VLOOKUP(RIGHT(B26,5),Reference!$A$2:$F$201,4,FALSE)) -> 0 | H26: =E26+F26+G26 -> 0 | I26: =IF(H26<>0,VLOOKUP(RIGHT(B26,5),Reference!$A$2:$H$196,3,FALSE),0) -> 0
D27: Sub Total of Line 529 | E27: =SUM(E23:E26) -> 0 | F27: =SUM(F23:F26) -> 0 | G27: =SUM(G23:G26) -> 0 | H27: =SUM(H23:H26) -> 0 | I27: =SUM(I23:I26) -> 0
A28: 531 | B28: 00300 | D28: Vacant Industrial Land | E28: =IF(ISERROR(VLOOKUP(B28,Reference!$A$2:$F$201,4,FALSE))=TRUE,0,VLOOKUP(RIGHT(B28,5),Reference!$A$2:$F$201,4,FALSE)) -> 0 | F28: 0 | G28: 0 | H28: 0 | I28: =IF(H28<>0,VLOOKUP(RIGHT(B28,5),Reference!$A$2:$H$196,3,FALSE),0) -> 0
D29: Sub Total of Line 531 | E29: =SUM(E28) -> 0 | F29: =SUM(F28) -> 0 | G29: =SUM(G28) -> 0 | H29: =SUM(H28) -> 0 | I29: =SUM(I28) -> 0
A30: D "Total Industrial Property" | E30: ='Page 5'!E7+'Page 5'!E12+'Page 5'!E17+'Page 5'!E22+'Page 5'!E27+'Page 5'!E32+'Page 6'!E7+'Page 6'!E12+'Page 6'!E17+'Page 6'!E22+'Page 6'!E27+'Page 6'!E32+'Page 7'!E7+'Page 7'!E12+'Page 7'!E17+'Page 7'!E22+'Page 7'!E27+'Page 7'!E32+'Page 8'!E7+'Page 8'!E12+'Page 8'!E17+'Page 8'!E22+'Page 8'!E27+'Page 8'!E32+'Page 9'!E7+'Page 9'!E12+'Page 9'!E17+'Page 9'!E22+E27+'Page 9'!E29 -> 0 | F30: ='Page 5'!F7+'Page 5'!F12+'Page 5'!F17+'Page 5'!F22+'Page 5'!F27+'Page 5'!F32+'Page 6'!F7+'Page 6'!F12+'Page 6'!F17+'Page 6'!F22+'Page 6'!F27+'Page 6'!F32+'Page 7'!F7+'Page 7'!F12+'Page 7'!F17+'Page 7'!F22+'Page 7'!F27+'Page 7'!F32+'Page 8'!F7+'Page 8'!F12+'Page 8'!F17+'Page 8'!F22+'Page 8'!F27+'Page 8'!F32+'Page 9'!F7+'Page 9'!F12+'Page 9'!F17+'Page 9'!F22+F27+'Page 9'!F29 -> 0 | G30: ='Page 5'!G7+'Page 5'!G12+'Page 5'!G17+'Page 5'!G22+'Page 5'!G27+'Page 5'!G32+'Page 6'!G7+'Page 6'!G12+'Page 6'!G17+'Page 6'!G22+'Page 6'!G27+'Page 6'!G32+'Page 7'!G7+'Page 7'!G12+'Page 7'!G17+'Page 7'!G22+'Page 7'!G27+'Page 7'!G32+'Page 8'!G7+'Page 8'!G12+'Page 8'!G17+'Page 8'!G22+'Page 8'!G27+'Page 8'!G32+'Page 9'!G7+'Page 9'!G12+'Page 9'!G17+'Page 9'!G22+G27+'Page 9'!G29 -> 0 | H30: ='Page 5'!H7+'Page 5'!H12+'Page 5'!H17+'Page 5'!H22+'Page 5'!H27+'Page 5'!H32+'Page 6'!H7+'Page 6'!H12+'Page 6'!H17+'Page 6'!H22+'Page 6'!H27+'Page 6'!H32+'Page 7'!H7+'Page 7'!H12+'Page 7'!H17+'Page 7'!H22+'Page 7'!H27+'Page 7'!H32+'Page 8'!H7+'Page 8'!H12+'Page 8'!H17+'Page 8'!H22+'Page 8'!H27+'Page 8'!H32+'Page 9'!H7+'Page 9'!H12+'Page 9'!H17+'Page 9'!H22+H27+'Page 9'!H29 -> 0 | I30: ='Page 5'!I7+'Page 5'!I12+'Page 5'!I17+'Page 5'!I22+'Page 5'!I27+'Page 5'!I32+'Page 6'!I7+'Page 6'!I12+'Page 6'!I17+'Page 6'!I22+'Page 6'!I27+'Page 6'!I32+'Page 7'!I7+'Page 7'!I12+'Page 7'!I17+'Page 7'!I22+'Page 7'!I27+'Page 7'!I32+'Page 8'!I7+'Page 8'!I12+'Page 8'!I17+'Page 8'!I22+'Page 8'!I27+'Page 8'!I32+'Page 9'!I7+'Page 9'!I12+'Page 9'!I17+'Page 9'!I22+I27+'Page 9'!I29 -> 0

Sheet Page 10
A1: Pollution Control Exemptions Granted 2024
A2: Abstract Line | B2: Classification | C2: FMV of Exemption Requested | D2: FMV of Exemption Granted | E2: Assessed Value
A35: Totals | C35: =SUM(C3:C34) -> 0 | D35: =SUM(D3:D34) -> 0 | E35: =SUM(E3:E34) -> 0

Sheet Page 11
A1: Fire Control Exemptions Granted 2024
A2: Abstract Line | B2: Classification | C2: FMV of Exemption Requested | D2: FMV of Exemption Granted | E2: Assessed Value
A35: Totals | C35: =SUM(C3:C34) -> 0 | D35: =SUM(D3:D34) -> 0 | E35: =SUM(E3:E34) -> 0

Sheet Page 12
A1: Vacant Land Valuation - Wyo. Stat. Ann. 39-13-103(b)(xvii)
A2: Abstract Line | B2: Classification | C2: FMV not using present worth methodology | D2: Assessed Value | E2: FMV using present worth methodology | F2: Assessed Value
B3: Example: North Hills, 5 lots
A35: Totals | C35: =SUM(C3:C34) -> 0 | D35: =SUM(D3:D34) -> 0 | E35: =SUM(E3:E34) -> 0 | F35: =SUM(F3:F34) -> 0

Sheet Page 13
A1: Exemption for Economic Development Property- Wyo. Stat. ann. 39-11-105(a)(xxxvii) - Effective January 1, 2011
A2: Abstract Line | B2: Classification | C2: FMV Without Exemption | D2: Assessed Value | E2: FMV With Exemption | F2: Assessed Value
A35: Totals | C35: =SUM(C3:C34) -> 0 | D35: =SUM(D3:D34) -> 0 | E35: =SUM(E3:E34) -> 0 | F35: =SUM(F3:F34) -> 0

Sheet Page 14
A1: Properties Held by County Under Tax Purchase
A2: Line | B2: Classification | C2: Fair Market Value | D2: Assessed Value
A3: 100 | B3: Irrigated Lands | D3: =C3*0.095 -> 0
A4: 200 | B4: Dry Crop Lands | D4: =C4*0.095 -> 0
A5: 300 | B5: Range Lands | D5: 0
A6: 301 | B6: Residential Lands | D6: 0
A7: 302 | B7: Residential Improvements | D7: 0
A8: 303 | B8: Commercial Lands | D8: 0
A9: 304 | B9: Commercial Improvements | D9: 0
A10: 401 | B10: Residential Personal Property | D10: 0
A11: 402 | B11: Commercial Personal Property | D11: 0
A12: 500-A | B12: Industrial Land | D12: =C12*0.115 -> 0
A13: 500-B | B13: Industrial Improvements | D13: =C13*0.115 -> 0
A14: 500-C | B14: Industrial Personal Property | D14: =C14*0.115 -> 0
A15: TOTAL PROPERTIES HELD UNDER TAX PURCHASE | C15: =SUM(C3:C14) -> 0 | D15: =SUM(D3:D14) -> 0

Sheet Page 15
A1: 4% Taxable Value Increase Cap Exemptions | F1: 1. Run the SBOE Residential Exemption query in Listbuilder
A2: Wyo. Stat. Ann. 39-13-103(b)(xvii) | F2: 2. Export the results into Excel.
A3: Abstract Code | B3: Fair Market Value | C3: Total FMV Exemptions | D3: Assessed Value | E3: Total AV Exemptions | F3: 3. Highlight only the cells with data, copy, and paste here. -->
A4: =M4 -> 0 | B4: =G4 -> 0 | C4: =I4 -> 0 | D4: =J4 -> 0 | E4: =L4 -> 0
A5: =M5 -> 0 | B5: =G5 -> 0 | C5: =I5 -> 0 | D5: =J5 -> 0 | E5: =L5 -> 0
A6: 0 | B6: 0 | C6: 0 | D6: 0 | E6: 0
A7: 0 | B7: 0 | C7: 0 | D7: 0 | E7: 0
A8: 0 | B8: 0 | C8: 0 | D8: 0 | E8: 0
A9: 0 | B9: 0 | C9: 0 | D9: 0 | E9: 0
A10: 0 | B10: 0 | C10: 0 | D10: 0 | E10: 0
A11: 0 | B11: 0 | C11: 0 | D11: 0 | E11: 0
A12: 0 | B12: 0 | C12: 0 | D12: 0 | E12: 0

Sheet Test
A1: STATEEQUIVABSTCODE | B1: CountOfACCOUNTNO | C1: SumOfRAWASSDVAL | D1: SumOfACTVAL | E1: SumOfACRES | F1: SumOfSQFT | G1: CLASSIFICATIONID | H1: SORTORDER
A2: 00101 | B2: =VALUE(A2) -> 101 | C2: =B2 -> 101 | D2: 101 | E2: 101 | F2: 101 | H2: =LEFT(A2,1) -> 0
A3: 00102 | B3: 102 | C3: 102 | D3: 102 | E3: 102 | F3: 102 | H3: 0
A4: 00103 | B4: 103 | C4: 103 | D4: 103 | E4: 103 | F4: 103 | H4: 0
A5: 00400 | B5: 400 | C5: 400 | D5: 400 | E5: 400 | F5: 400 | H5: 0
A6: 00200 | B6: 200 | C6: 200 | D6: 200 | E6: 200 | F6: 200 | H6: 0
A7: 00300 | B7: 300 | C7: 300 | D7: 300 | E7: 300 | F7: 300 | H7: 0
A8: 10001 | B8: 10001 | C8: 10001 | D8: 10001 | E8: 10001 | F8: 10001 | H8: 1
A9: 10002 | B9: 10002 | C9: 10002 | D9: 10002 | E9: 10002 | F9: 10002 | H9: 1
A10: 10003 | B10: 10003 | C10: 10003 | D10: 10003 | E10: 10003 | F10: 10003 | H10: 1
A11: 10004 | B11: 10004 | C11: 10004 | D11: 10004 | E11: 10004 | F11: 10004 | H11: 1
A12: 10005 | B12: 10005 | C12: 10005 | D12: 10005 | E12: 10005 | F12: 10005 | H12: 1
A13: 10101 | B13: 10101 | C13: 10101 | D13: 10101 | E13: 10101 | F13: 10101 | H13: 1
A14: 10102 | B14: 10102 | C14: 10102 | D14: 10102 | E14: 10102 | F14: 10102 | H14: 1
A15: 10200 | B15: 10200 | C15: 10200 | D15: 10200 | E15: 10200 | F15: 10200 | H15: 1
A16: 10401 | B16: 10401 | C16: 10401 | D16: 10401 | E16: 10401 | F16: 10401 | H16: 1
A17: 10402 | B17: 10402 | C17: 10402 | D17: 10402 | E17: 10402 | F17: 10402 | H17: 1
A18: 10500 | B18: 10500 | C18: 10500 | D18: 10500 | E18: 10500 | F18: 10500 | H18: 1
A19: 10600 | B19: 10600 | C19: 10600 | D19: 10600 | E19: 10600 | F19: 10600 | H19: 1
A20: 10103 | B20: 10103 | C20: 10103 | D20: 10103 | E20: 10103 | F20: 10103 | H20: 1
A21: 10403 | B21: 10403 | C21: 10403 | D21: 10403 | E21: 10403 | F21: 10403 | H21: 1
A22: 20000 | B22: 20000 | C22: =B22 -> 20000 | D22: 20000 | E22: 20000 | F22: 20000 | H22: 2
A23: 20100 | B23: 20100 | C23: 20100 | D23: 20100 | E23: 20100 | F23: 20100 | H23: 2
A24: 20200 | B24: 20200 | C24: 20200 | D24: 20200 | E24: 20200 | F24: 20200 | H24: 2
A25: 20300 | B25: 20300 | C25: 20300 | D25: 20300 | E25: 20300 | F25: 20300 | H25: 2
A26: 20400 | B26: 20400 | C26: 20400 | D26: 20400 | E26: 20400 | F26: 20400 | H26: 2
A27: 20500 | B27: 20500 | C27: 20500 | D27: 20500 | E27: 20500 | F27: 20500 | H27: 2
A28: 20600 | B28: 20600 | C28: 20600 | D28: 20600 | E28: 20600 | F28: 20600 | H28: 2
A29: 20701 | B29: 20701 | C29: 20701 | D29: 20701 | E29: 20701 | F29: 20701 | H29: 2
A30: 20702 | B30: 20702 | C30: 20702 | D30: 20702 | E30: 20702 | F30: 20702 | H30: 2
A31: 20703 | B31: 20703 | C31: 20703 | D31: 20703 | E31: 20703 | F31: 20703 | H31: 2
A32: 20800 | B32: 20800 | C32: 20800 | D32: 20800 | E32: 20800 | F32: 20800 | H32: 2
A33: 20900 | B33: 20900 | C33: 20900 | D33: 20900 | E33: 20900 | F33: 20900 | H33: 2
A34: 21000 | B34: 21000 | C34: 21000 | D34: 21000 | E34: 21000 | F34: 21000 | H34: 2
A35: 21100 | B35: 21100 | C35: 21100 | D35: 21100 | E35: 21100 | F35: 21100 | H35: 2
A36: 21201 | B36: 21201 | C36: 21201 | D36: 21201 | E36: 21201 | F36: 21201 | H36: 2
A37: 21301 | B37: 21301 | C37: 21301 | D37: 21301 | E37: 21301 | F37: 21301 | H37: 2
A38: 21302 | B38: 21302 | C38: 21302 | D38: 21302 | E38: 21302 | F38: 21302 | H38: 2
A39: 21303 | B39: 21303 | C39: 21303 | D39: 21303 | E39: 21303 | F39: 21303 | H39: 2
A40: 21304 | B40: 21304 | C40: 21304 | D40: 21304 | E40: 21304 | F40: 21304 | H40: 2
A41: 29900 | B41: 29900 | C41: 29900 | D41: 29900 | E41: 29900 | F41: 29900 | H41: 2
A42: 30001 | B42: 30001 | C42: =B42 -> 30001 | D42: 30001 | E42: 30001 | F42: 30001 | H42: 3
A43: 30101 | B43: 30101 | C43: 30101 | D43: 30101 | E43: 30101 | F43: 30101 | H43: 3
A44: 30401 | B44: 30401 | C44: 30401 | D44: 30401 | E44: 30401 | F44: 30401 | H44: 3
A45: 39901 | B45: 39901 | C45: 39901 | D45: 39901 | E45: 39901 | F45: 39901 | H45: 3
A46: 30002 | B46: 30002 | C46: 30002 | D46: 30002 | E46: 30002 | F46: 30002 | H46: 3
A47: 30102 | B47: 30102 | C47: 30102 | D47: 30102 | E47: 30102 | F47: 30102 | H47: 3
A48: 30402 | B48: 30402 | C48: 30402 | D48: 30402 | E48: 30402 | F48: 30402 | H48: 3
A49: 39902 | B49: 39902 | C49: 39902 | D49: 39902 | E49: 39902 | F49: 39902 | H49: 3
A50: 30003 | B50: 30003 | C50: 30003 | D50: 30003 | E50: 30003 | F50: 30003 | H50: 3
A51: 30103 | B51: 30103 | C51: 30103 | D51: 30103 | E51: 30103 | F51: 30103 | H51: 3
A52: 30403 | B52: 30403 | C52: 30403 | D52: 30403 | E52: 30403 | F52: 30403 | H52: 3
A53: 39903 | B53: 39903 | C53: 39903 | D53: 39903 | E53: 39903 | F53: 39903 | H53: 3
A54: 30004 | B54: 30004 | C54: 30004 | D54: 30004 | E54: 30004 | F54: 30004 | H54: 3
A55: 30104 | B55: 30104 | C55: 30104 | D55: 30104 | E55: 30104 | F55: 30104 | H55: 3
A56: 30404 | B56: 30404 | C56: 30404 | D56: 30404 | E56: 30404 | F56: 30404 | H56: 3
A57: 39904 | B57: 39904 | C57: 39904 | D57: 39904 | E57: 39904 | F57: 39904 | H57: 3
A58: 30005 | B58: 30005 | C58: 30005 | D58: 30005 | E58: 30005 | F58: 30005 | H58: 3
A59: 30105 | B59: 30105 | C59: 30105 | D59: 30105 | E59: 30105 | F59: 30105 | H59: 3
A60: 30405 | B60: 30405 | C60: 30405 | D60: 30405 | E60: 30405 | F60: 30405 | H60: 3
A61: 39905 | B61: 39905 | C61: 39905 | D61: 39905 | E61: 39905 | F61: 39905 | H61: 3
A62: 30006 | B62: 30006 | C62: =B62 -> 30006 | D62: 30006 | E62: 30006 | F62: 30006 | H62: 3
A63: 30106 | B63: 30106 | C63: 30106 | D63: 30106 | E63: 30106 | F63: 30106 | H63: 3
A64: 30406 | B64: 30406 | C64: 30406 | D64: 30406 | E64: 30406 | F64: 30406 | H64: 3
A65: 39906 | B65: 39906 | C65: 39906 | D65: 39906 | E65: 39906 | F65: 39906 | H65: 3
A66: 30007 | B66: =VALUE(A66) -> 30007 | C66: 30007 | D66: 30007 | E66: 30007 | F66: 30007 | H66: =LEFT(A66,1) -> 3
A67: 30107 | B67: 30107 | C67: 30107 | D67: 30107 | E67: 30107 | F67: 30107 | H67: 3
A68: 30407 | B68: 30407 | C68: 30407 | D68: 30407 | E68: 30407 | F68: 30407 | H68: 3
A69: 39907 | B69: 39907 | C69: 39907 | D69: 39907 | E69: 39907 | F69: 39907 | H69: 3
A70: 30008 | B70: 30008 | C70: 30008 | D70: 30008 | E70: 30008 | F70: 30008 | H70: 3
A71: 30108 | B71: 30108 | C71: 30108 | D71: 30108 | E71: 30108 | F71: 30108 | H71: 3
A72: 30408 | B72: 30408 | C72: 30408 | D72: 30408 | E72: 30408 | F72: 30408 | H72: 3
A73: 39908 | B73: 39908 | C73: 39908 | D73: 39908 | E73: 39908 | F73: 39908 | H73: 3
A74: 30009 | B74: 30009 | C74: 30009 | D74: 30009 | E74: 30009 | F74: 30009 | H74: 3
A75: 30109 | B75: 30109 | C75: 30109 | D75: 30109 | E75: 30109 | F75: 30109 | H75: 3
A76: 30409 | B76: 30409 | C76: 30409 | D76: 30409 | E76: 30409 | F76: 30409 | H76: 3
A77: 39909 | B77: 39909 | C77: 39909 | D77: 39909 | E77: 39909 | F77: 39909 | H77: 3
A78: 30010 | B78: 30010 | C78: 30010 | D78: 30010 | E78: 30010 | F78: 30010 | H78: 3
A79: 30110 | B79: 30110 | C79: 30110 | D79: 30110 | E79: 30110 | F79: 30110 | H79: 3
A80: 30410 | B80: 30410 | C80: 30410 | D80: 30410 | E80: 30410 | F80: 30410 | H80: 3
A81: 39910 | B81: 39910 | C81: 39910 | D81: 39910 | E81: 39910 | F81: 39910 | H81: 3
A82: 30011 | B82: 30011 | C82: =B82 -> 30011 | D82: 30011 | E82: 30011 | F82: 30011 | H82: 3
A83: 30111 | B83: 30111 | C83: 30111 | D83: 30111 | E83: 30111 | F83: 30111 | H83: 3
A84: 30411 | B84: 30411 | C84: 30411 | D84: 30411 | E84: 30411 | F84: 30411 | H84: 3
A85: 39911 | B85: 39911 | C85: 39911 | D85: 39911 | E85: 39911 | F85: 39911 | H85: 3
A86: 30012 | B86: 30012 | C86: 30012 | D86: 30012 | E86: 30012 | F86: 30012 | H86: 3
A87: 30112 | B87: 30112 | C87: 30112 | D87: 30112 | E87: 30112 | F87: 30112 | H87: 3
A88: 30412 | B88: 30412 | C88: 30412 | D88: 30412 | E88: 30412 | F88: 30412 | H88: 3
A89: 39912 | B89: 39912 | C89: 39912 | D89: 39912 | E89: 39912 | F89: 39912 | H89: 3
A90: 30013 | B90: 30013 | C90: 30013 | D90: 30013 | E90: 30013 | F90: 30013 | H90: 3
A91: 30113 | B91: 30113 | C91: 30113 | D91: 30113 | E91: 30113 | F91: 30113 | H91: 3
A92: 30413 | B92: 30413 | C92: 30413 | D92: 30413 | E92: 30413 | F92: 30413 | H92: 3
A93: 39913 | B93: 39913 | C93: 39913 | D93: 39913 | E93: 39913 | F93: 39913 | H93: 3
A94: 30014 | B94: 30014 | C94: 30014 | D94: 30014 | E94: 30014 | F94: 30014 | H94: 3
A95: 30114 | B95: 30114 | C95: 30114 | D95: 30114 | E95: 30114 | F95: 30114 | H95: 3
A96: 30414 | B96: 30414 | C96: 30414 | D96: 30414 | E96: 30414 | F96: 30414 | H96: 3
A97: 39914 | B97: 39914 | C97: 39914 | D97: 39914 | E97: 39914 | F97: 39914 | H97: 3
A98: 30015 | B98: 30015 | C98: 30015 | D98: 30015 | E98: 30015 | F98: 30015 | H98: 3
A99: 30115 | B99: 30115 | C99: 30115 | D99: 30115 | E99: 30115 | F99: 30115 | H99: 3
A100: 30415 | B100: 30415 | C100: 30415 | D100: 30415 | E100: 30415 | F100: 30415 | H100: 3
A101: 39915 | B101: 39915 | C101: 39915 | D101: 39915 | E101: 39915 | F101: 39915 | H101: 3
A102: 30016 | B102: 30016 | C102: =B102 -> 30016 | D102: 30016 | E102: 30016 | F102: 30016 | H102: 3
A103: 30116 | B103: 30116 | C103: 30116 | D103: 30116 | E103: 30116 | F103: 30116 | H103: 3
A104: 30416 | B104: 30416 | C104: 30416 | D104: 30416 | E104: 30416 | F104: 30416 | H104: 3
A105: 39916 | B105: 39916 | C105: 39916 | D105: 39916 | E105: 39916 | F105: 39916 | H105: 3
A106: 30017 | B106: 30017 | C106: 30017 | D106: 30017 | E106: 30017 | F106: 30017 | H106: 3
A107: 30117 | B107: 30117 | C107: 30117 | D107: 30117 | E107: 30117 | F107: 30117 | H107: 3
A108: 30417 | B108: 30417 | C108: 30417 | D108: 30417 | E108: 30417 | F108: 30417 | H108: 3
A109: 39917 | B109: 39917 | C109: 39917 | D109: 39917 | E109: 39917 | F109: 39917 | H109: 3
A110: 30018 | B110: 30018 | C110: 30018 | D110: 30018 | E110: 30018 | F110: 30018 | H110: 3
A111: 30118 | B111: 30118 | C111: 30118 | D111: 30118 | E111: 30118 | F111: 30118 | H111: 3
A112: 30418 | B112: 30418 | C112: 30418 | D112: 30418 | E112: 30418 | F112: 30418 | H112: 3
A113: 39918 | B113: 39918 | C113: 39918 | D113: 39918 | E113: 39918 | F113: 39918 | H113: 3
A114: 30019 | B114: 30019 | C114: 30019 | D114: 30019 | E114: 30019 | F114: 30019 | H114: 3
A115: 30119 | B115: 30119 | C115: 30119 | D115: 30119 | E115: 30119 | F115: 30119 | H115: 3
A116: 30419 | B116: 30419 | C116: 30419 | D116: 30419 | E116: 30419 | F116: 30419 | H116: 3
A117: 39919 | B117: 39919 | C117: 39919 | D117: 39919 | E117: 39919 | F117: 39919 | H117: 3
A118: 30020 | B118: 30020 | C118: 30020 | D118: 30020 | E118: 30020 | F118: 30020 | H118: 3
A119: 30120 | B119: 30120 | C119: 30120 | D119: 30120 | E119: 30120 | F119: 30120 | H119: 3
A120: 30420 | B120: 30420 | C120: 30420 | D120: 30420 | E120: 30420 | F120: 30420 | H120: 3
A121: 39920 | B121: 39920 | C121: 39920 | D121: 39920 | E121: 39920 | F121: 39920 | H121: 3
A122: 30021 | B122: 30021 | C122: =B122 -> 30021 | D122: 30021 | E122: 30021 | F122: 30021 | H122: 3
A123: 30121 | B123: 30121 | C123: 30121 | D123: 30121 | E123: 30121 | F123: 30121 | H123: 3
A124: 30421 | B124: 30421 | C124: 30421 | D124: 30421 | E124: 30421 | F124: 30421 | H124: 3
A125: 39921 | B125: 39921 | C125: 39921 | D125: 39921 | E125: 39921 | F125: 39921 | H125: 3
A126: 30022 | B126: 30022 | C126: 30022 | D126: 30022 | E126: 30022 | F126: 30022 | H126: 3
A127: 30222 | B127: 30222 | C127: 30222 | D127: 30222 | E127: 30222 | F127: 30222 | H127: 3
A128: 30422 | B128: 30422 | C128: 30422 | D128: 30422 | E128: 30422 | F128: 30422 | H128: 3
A129: 39922 | B129: 39922 | C129: 39922 | D129: 39922 | E129: 39922 | F129: 39922 | H129: 3
A130: 30023 | B130: =VALUE(A130) -> 30023 | C130: 30023 | D130: 30023 | E130: 30023 | F130: 30023 | H130: =LEFT(A130,1) -> 3
A131: 30223 | B131: 30223 | C131: 30223 | D131: 30223 | E131: 30223 | F131: 30223 | H131: 3
A132: 30423 | B132: 30423 | C132: 30423 | D132: 30423 | E132: 30423 | F132: 30423 | H132: 3
A133: 39923 | B133: 39923 | C133: 39923 | D133: 39923 | E133: 39923 | F133: 39923 | H133: 3
A134: 30024 | B134: 30024 | C134: 30024 | D134: 30024 | E134: 30024 | F134: 30024 | H134: 3
A135: 30224 | B135: 30224 | C135: 30224 | D135: 30224 | E135: 30224 | F135: 30224 | H135: 3
A136: 30424 | B136: 30424 | C136: 30424 | D136: 30424 | E136: 30424 | F136: 30424 | H136: 3
A137: 39924 | B137: 39924 | C137: 39924 | D137: 39924 | E137: 39924 | F137: 39924 | H137: 3
A138: 30025 | B138: 30025 | C138: 30025 | D138: 30025 | E138: 30025 | F138: 30025 | H138: 3
A139: 30225 | B139: 30225 | C139: 30225 | D139: 30225 | E139: 30225 | F139: 30225 | H139: 3
A140: 30425 | B140: 30425 | C140: 30425 | D140: 30425 | E140: 30425 | F140: 30425 | H140: 3
A141: 39925 | B141: 39925 | C141: 39925 | D141: 39925 | E141: 39925 | F141: 39925 | H141: 3
A142: 30026 | B142: 30026 | C142: =B142 -> 30026 | D142: 30026 | E142: 30026 | F142: 30026 | H142: 3
A143: 30126 | B143: 30126 | C143: 30126 | D143: 30126 | E143: 30126 | F143: 30126 | H143: 3
A144: 30426 | B144: 30426 | C144: 30426 | D144: 30426 | E144: 30426 | F144: 30426 | H144: 3
A145: 39926 | B145: 39926 | C145: 39926 | D145: 39926 | E145: 39926 | F145: 39926 | H145: 3
A146: 30027 | B146: 30027 | C146: 30027 | D146: 30027 | E146: 30027 | F146: 30027 | H146: 3
A147: 30127 | B147: 30127 | C147: 30127 | D147: 30127 | E147: 30127 | F147: 30127 | H147: 3
A148: 30427 | B148: 30427 | C148: 30427 | D148: 30427 | E148: 30427 | F148: 30427 | H148: 3
A149: 39927 | B149: 39927 | C149: 39927 | D149: 39927 | E149: 39927 | F149: 39927 | H149: 3
A150: 30028 | B150: 30028 | C150: 30028 | D150: 30028 | E150: 30028 | F150: 30028 | H150: 3
A151: 30329 | B151: 30329 | C151: 30329 | D151: 30329 | E151: 30329 | F151: 30329 | H151: 3
A152: 30428 | B152: 30428 | C152: 30428 | D152: 30428 | E152: 30428 | F152: 30428 | H152: 3
A153: 39928 | B153: 39928 | C153: 39928 | D153: 39928 | E153: 39928 | F153: 39928 | H153: 3
A154: 30088 | B154: 30088 | C154: 30088 | D154: 30088 | E154: 30088 | F154: 30088 | H154: 3
A155: 30188 | B155: 30188 | C155: 30188 | D155: 30188 | E155: 30188 | F155: 30188 | H155: 3
A156: 30488 | B156: 30488 | C156: 30488 | D156: 30488 | E156: 30488 | F156: 30488 | H156: 3
A157: 39988 | B157: 39988 | C157: 39988 | D157: 39988 | E157: 39988 | F157: 39988 | H157: 3
A158: 40101 | B158: 40101 | C158: 40101 | D158: 40101 | E158: 40101 | F158: 40101 | H158: 4
A159: 40102 | B159: 40102 | C159: 40102 | D159: 40102 | E159: 40102 | F159: 40102 | H159: 4
A160: 40103 | B160: 40103 | C160: 40103 | D160: 40103 | E160: 40103 | F160: 40103 | H160: 4
A161: 40104 | B161: 40104 | C161: 40104 | D161: 40104 | E161: 40104 | F161: 40104 | H161: 4
A162: 40105 | B162: 40105 | C162: =B162 -> 40105 | D162: 40105 | E162: 40105 | F162: 40105 | H162: 4
A163: 40106 | B163: 40106 | C163: 40106 | D163: 40106 | E163: 40106 | F163: 40106 | H163: 4
A164: 40107 | B164: 40107 | C164: 40107 | D164: 40107 | E164: 40107 | F164: 40107 | H164: 4
A165: 40201 | B165: 40201 | C165: 40201 | D165: 40201 | E165: 40201 | F165: 40201 | H165: 4
A166: 40202 | B166: 40202 | C166: 40202 | D166: 40202 | E166: 40202 | F166: 40202 | H166: 4
A167: 40203 | B167: 40203 | C167: 40203 | D167: 40203 | E167: 40203 | F167: 40203 | H167: 4
A168: 40204 | B168: 40204 | C168: 40204 | D168: 40204 | E168: 40204 | F168: 40204 | H168: 4
A169: 40205 | B169: 40205 | C169: 40205 | D169: 40205 | E169: 40205 | F169: 40205 | H169: 4
A170: 40206 | B170: 40206 | C170: 40206 | D170: 40206 | E170: 40206 | F170: 40206 | H170: 4
A171: 40207 | B171: 40207 | C171: 40207 | D171: 40207 | E171: 40207 | F171: 40207 | H171: 4
A172: 40208 | B172: 40208 | C172: 40208 | D172: 40208 | E172: 40208 | F172: 40208 | H172: 4
A173: 40209 | B173: 40209 | C173: 40209 | D173: 40209 | E173: 40209 | F173: 40209 | H173: 4
A174: 40301 | B174: 40301 | C174: 40301 | D174: 40301 | E174: 40301 | F174: 40301 | H174: 4
A175: 40302 | B175: 40302 | C175: 40302 | D175: 40302 | E175: 40302 | F175: 40302 | H175: 4
A176: 40303 | B176: 40303 | C176: 40303 | D176: 40303 | E176: 40303 | F176: 40303 | H176: 4
A177: 40304 | B177: 40304 | C177: 40304 | D177: 40304 | E177: 40304 | F177: 40304 | H177: 4
A178: 40305 | B178: 40305 | C178: 40305 | D178: 40305 | E178: 40305 | F178: 40305 | H178: 4
A179: 40306 | B179: 40306 | C179: 40306 | D179: 40306 | E179: 40306 | F179: 40306 | H179: 4
A180: 40307 | B180: 40307 | C180: 40307 | D180: 40307 | E180: 40307 | F180: 40307 | H180: 4
A181: 40308 | B181: 40308 | C181: 40308 | D181: 40308 | E181: 40308 | F181: 40308 | H181: 4
A182: 40309 | B182: 40309 | C182: =B182 -> 40309 | D182: 40309 | E182: 40309 | F182: 40309 | H182: 4
A183: 40310 | B183: 40310 | C183: 40310 | D183: 40310 | E183: 40310 | F183: 40310 | H183: 4
A184: 40311 | B184: 40311 | C184: 40311 | D184: 40311 | E184: 40311 | F184: 40311 | H184: 4
A185: 40312 | B185: 40312 | C185: 40312 | D185: 40312 | E185: 40312 | F185: 40312 | H185: 4
A186: 40313 | B186: 40313 | C186: 40313 | D186: 40313 | E186: 40313 | F186: 40313 | H186: 4
A187: 40314 | B187: 40314 | C187: 40314 | D187: 40314 | E187: 40314 | F187: 40314 | H187: 4
A188: 40315 | B188: 40315 | C188: 40315 | D188: 40315 | E188: 40315 | F188: 40315 | H188: 4
A189: 40316 | B189: 40316 | C189: 40316 | D189: 40316 | E189: 40316 | F189: 40316 | H189: 4
A190: 40317 | B190: 40317 | C190: 40317 | D190: 40317 | E190: 40317 | F190: 40317 | H190: 4
A191: 40318 | B191: 40318 | C191: 40318 | D191: 40318 | E191: 40318 | F191: 40318 | H191: 4
A192: 40319 | B192: =VALUE(A192) -> 40319 | C192: 40319 | D192: 40319 | E192: 40319 | F192: 40319 | H192: =LEFT(A192,1) -> 4
A193: 40320 | B193: 40320 | C193: 40320 | D193: 40320 | E193: 40320 | F193: 40320 | H193: 4
A194: 40321 | B194: 40321 | C194: 40321 | D194: 40321 | E194: 40321 | F194: 40321 | H194: 4
A195: 40322 | B195: 40322 | C195: 40322 | D195: 40322 | E195: 40322 | F195: 40322 | H195: 4
A196: 40323 | B196: 40323 | C196: =B196 -> 40323 | D196: 40323 | E196: 40323 | F196: 40323 | H196: 4
A197: 40324 | B197: 40324 | C197: 40324 | D197: 40324 | E197: 40324 | F197: 40324 | H197: 4
B200: =SUM(B2:B197) -> 5962600 | C200: =SUM(C2:C197) -> 5962600 | D200: =SUM(D2:D197) -> 5962600 | E200: =SUM(E2:E197) -> 5962600 | F200: =SUM(F2:F197) -> 5962600

Sheet Paste
B1: <-- Paste Short Absract Summary Excel Sheet here
B2: Instructions:
B3: 1. In Listbuilder, run the RW Short Abstract Summary with View set to XLS.
B4: 2. RW will produce on Excel spreadsheet. Paste the whole sheet onto the sheet in THIS workbook called Paste (this sheet) in the Abstract Form.
B5: 3. Double check the first page of the Abstract Form corresponds to the RealWare Short Abstract Summary.

Sheet Reference
B1: CountOfACCOUNTNO | C1: SumOfRAWASSDVAL | D1: SumOfACTVAL | E1: SumOfACRES | F1: SumOfSQFT | H1: IRRIGATED CROP | I1: 40101 | J1: II LRA 1-2-3 | K1: 4008 | L1: =K2 -> 3279
A2: 00101 | B2: =IF(ISERROR(VLOOKUP($A2,Paste!$B$5:$T$500,4,FALSE))=TRUE,0,VLOOKUP($A2,Paste!$B$5:$T$500,4,FALSE)) -> 0 | C2: =IF(ISERROR(VLOOKUP($A2,Paste!$B$5:$T$500,8,FALSE))=TRUE,0,VLOOKUP($A2,Paste!$B$5:$T$500,8,FALSE)) -> 0 | D2: =IF(ISERROR(VLOOKUP($A2,Paste!$B$5:$T$500,11,FALSE))=TRUE,0,VLOOKUP($A2,Paste!$B$5:$T$500,11,FALSE)) -> 0 | E2: =IF(ISERROR(VLOOKUP($A2,Paste!$B$5:$T$500,16,FALSE))=TRUE,0,VLOOKUP($A2,Paste!$B$5:$T$500,16,FALSE)) -> 0 | F2: =IF(ISERROR(VLOOKUP($A2,Paste!$B$5:$T$500,19,FALSE))=TRUE,0,VLOOKUP($A2,Paste!$B$5:$T$500,19,FALSE)) -> 0 | I2: 40102 | J2: III LRA 1-2-3 | K2: 3279 | L2: =K3 -> 2550
A3: 00102 | B3: =IF(ISERROR(VLOOKUP($A3,Paste!$B$5:$T$500,4,FALSE))=TRUE,0,VLOOKUP($A3,Paste!$B$5:$T$500,4,FALSE)) -> 0 | C3: =IF(ISERROR(VLOOKUP($A3,Paste!$B$5:$T$500,8,FALSE))=TRUE,0,VLOOKUP($A3,Paste!$B$5:$T$500,8,FALSE)) -> 0 | D3: =IF(ISERROR(VLOOKUP($A3,Paste!$B$5:$T$500,11,FALSE))=TRUE,0,VLOOKUP($A3,Paste!$B$5:$T$500,11,FALSE)) -> 0 | E3: =IF(ISERROR(VLOOKUP($A3,Paste!$B$5:$T$500,16,FALSE))=TRUE,0,VLOOKUP($A3,Paste!$B$5:$T$500,16,FALSE)) -> 0 | F3: =IF(ISERROR(VLOOKUP($A3,Paste!$B$5:$T$500,19,FALSE))=TRUE,0,VLOOKUP($A3,Paste!$B$5:$T$500,19,FALSE)) -> 0 | I3: 40103 | J3: IV LRA 1-2-3 | K3: 2550 | L3: =K4 -> 1822
A4: 00103 | B4: =IF(ISERROR(VLOOKUP($A4,Paste!$B$5:$T$500,4,FALSE))=TRUE,0,VLOOKUP($A4,Paste!$B$5:$T$500,4,FALSE)) -> 0 | C4: =IF(ISERROR(VLOOKUP($A4,Paste!$B$5:$T$500,8,FALSE))=TRUE,0,VLOOKUP($A4,Paste!$B$5:$T$500,8,FALSE)) -> 0 | D4: =IF(ISERROR(VLOOKUP($A4,Paste!$B$5:$T$500,11,FALSE))=TRUE,0,VLOOKUP($A4,Paste!$B$5:$T$500,11,FALSE)) -> 0 | E4: =IF(ISERROR(VLOOKUP($A4,Paste!$B$5:$T$500,16,FALSE))=TRUE,0,VLOOKUP($A4,Paste!$B$5:$T$500,16,FALSE)) -> 0 | F4: =IF(ISERROR(VLOOKUP($A4,Paste!$B$5:$T$500,19,FALSE))=TRUE,0,VLOOKUP($A4,Paste!$B$5:$T$500,19,FALSE)) -> 0 | I4: 40104 | J4: V-VIII LRA 1-2-3 | K4: 1822 | L4: 729
A5: 00200 | B5: =IF(ISERROR(VLOOKUP($A5,Paste!$B$5:$T$500,4,FALSE))=TRUE,0,VLOOKUP($A5,Paste!$B$5:$T$500,4,FALSE)) -> 0 | C5: =IF(ISERROR(VLOOKUP($A5,Paste!$B$5:$T$500,8,FALSE))=TRUE,0,VLOOKUP($A5,Paste!$B$5:$T$500,8,FALSE)) -> 0 | D5: =IF(ISERROR(VLOOKUP($A5,Paste!$B$5:$T$500,11,FALSE))=TRUE,0,VLOOKUP($A5,Paste!$B$5:$T$500,11,FALSE)) -> 0 | E5: =IF(ISERROR(VLOOKUP($A5,Paste!$B$5:$T$500,16,FALSE))=TRUE,0,VLOOKUP($A5,Paste!$B$5:$T$500,16,FALSE)) -> 0 | F5: =IF(ISERROR(VLOOKUP($A5,Paste!$B$5:$T$500,19,FALSE))=TRUE,0,VLOOKUP($A5,Paste!$B$5:$T$500,19,FALSE)) -> 0
A6: 00300 | B6: =IF(ISERROR(VLOOKUP($A6,Paste!$B$5:$T$500,4,FALSE))=TRUE,0,VLOOKUP($A6,Paste!$B$5:$T$500,4,FALSE)) -> 0 | C6: =IF(ISERROR(VLOOKUP($A6,Paste!$B$5:$T$500,8,FALSE))=TRUE,0,VLOOKUP($A6,Paste!$B$5:$T$500,8,FALSE)) -> 0 | D6: =IF(ISERROR(VLOOKUP($A6,Paste!$B$5:$T$500,11,FALSE))=TRUE,0,VLOOKUP($A6,Paste!$B$5:$T$500,11,FALSE)) -> 0 | E6: =IF(ISERROR(VLOOKUP($A6,Paste!$B$5:$T$500,16,FALSE))=TRUE,0,VLOOKUP($A6,Paste!$B$5:$T$500,16,FALSE)) -> 0 | F6: =IF(ISERROR(VLOOKUP($A6,Paste!$B$5:$T$500,19,FALSE))=TRUE,0,VLOOKUP($A6,Paste!$B$5:$T$500,19,FALSE)) -> 0 | I6: 40105 | J6: III LRA 4-5 | K6: 2915 | L6: =K7 -> 2186
A7: 00400 | B7: =IF(ISERROR(VLOOKUP($A7,Paste!$B$5:$T$500,4,FALSE))=TRUE,0,VLOOKUP($A7,Paste!$B$5:$T$500,4,FALSE)) -> 0 | C7: =IF(ISERROR(VLOOKUP($A7,Paste!$B$5:$T$500,8,FALSE))=TRUE,0,VLOOKUP($A7,Paste!$B$5:$T$500,8,FALSE)) -> 0 | D7: =IF(ISERROR(VLOOKUP($A7,Paste!$B$5:$T$500,11,FALSE))=TRUE,0,VLOOKUP($A7,Paste!$B$5:$T$500,11,FALSE)) -> 0 | E7: =IF(ISERROR(VLOOKUP($A7,Paste!$B$5:$T$500,16,FALSE))=TRUE,0,VLOOKUP($A7,Paste!$B$5:$T$500,16,FALSE)) -> 0 | F7: =IF(ISERROR(VLOOKUP($A7,Paste!$B$5:$T$500,19,FALSE))=TRUE,0,VLOOKUP($A7,Paste!$B$5:$T$500,19,FALSE)) -> 0 | I7: 40106 | J7: IV LRA 4-5 | K7: 2186 | L7: =K8 -> 1457
A8: 10001 | B8: =IF(ISERROR(VLOOKUP($A8,Paste!$B$5:$T$500,4,FALSE))=TRUE,0,VLOOKUP($A8,Paste!$B$5:$T$500,4,FALSE)) -> 0 | C8: =IF(ISERROR(VLOOKUP($A8,Paste!$B$5:$T$500,8,FALSE))=TRUE,0,VLOOKUP($A8,Paste!$B$5:$T$500,8,FALSE)) -> 0 | D8: =IF(ISERROR(VLOOKUP($A8,Paste!$B$5:$T$500,11,FALSE))=TRUE,0,VLOOKUP($A8,Paste!$B$5:$T$500,11,FALSE)) -> 0 | E8: =IF(ISERROR(VLOOKUP($A8,Paste!$B$5:$T$500,16,FALSE))=TRUE,0,VLOOKUP($A8,Paste!$B$5:$T$500,16,FALSE)) -> 0 | F8: =IF(ISERROR(VLOOKUP($A8,Paste!$B$5:$T$500,19,FALSE))=TRUE,0,VLOOKUP($A8,Paste!$B$5:$T$500,19,FALSE)) -> 0 | I8: 40107 | J8: V-VIII LRA 4-5 | K8: 1457 | L8: 729
A9: 10002 | B9: =IF(ISERROR(VLOOKUP($A9,Paste!$B$5:$T$500,4,FALSE))=TRUE,0,VLOOKUP($A9,Paste!$B$5:$T$500,4,FALSE)) -> 0 | C9: =IF(ISERROR(VLOOKUP($A9,Paste!$B$5:$T$500,8,FALSE))=TRUE,0,VLOOKUP($A9,Paste!$B$5:$T$500,8,FALSE)) -> 0 | D9: =IF(ISERROR(VLOOKUP($A9,Paste!$B$5:$T$500,11,FALSE))=TRUE,0,VLOOKUP($A9,Paste!$B$5:$T$500,11,FALSE)) -> 0 | E9: =IF(ISERROR(VLOOKUP($A9,Paste!$B$5:$T$500,16,FALSE))=TRUE,0,VLOOKUP($A9,Paste!$B$5:$T$500,16,FALSE)) -> 0 | F9: =IF(ISERROR(VLOOKUP($A9,Paste!$B$5:$T$500,19,FALSE))=TRUE,0,VLOOKUP($A9,Paste!$B$5:$T$500,19,FALSE)) -> 0 | I9: =I8 -> 40107 | J9: =J8 -> V-VIII LRA 4-5 | K9: =K8 -> 1457 | L9: =L8 -> 729
A10: 10003 | B10: =IF(ISERROR(VLOOKUP($A10,Paste!$B$5:$T$500,4,FALSE))=TRUE,0,VLOOKUP($A10,Paste!$B$5:$T$500,4,FALSE)) -> 0 | C10: =IF(ISERROR(VLOOKUP($A10,Paste!$B$5:$T$500,8,FALSE))=TRUE,0,VLOOKUP($A10,Paste!$B$5:$T$500,8,FALSE)) -> 0 | D10: =IF(ISERROR(VLOOKUP($A10,Paste!$B$5:$T$500,11,FALSE))=TRUE,0,VLOOKUP($A10,Paste!$B$5:$T$500,11,FALSE)) -> 0 | E10: =IF(ISERROR(VLOOKUP($A10,Paste!$B$5:$T$500,16,FALSE))=TRUE,0,VLOOKUP($A10,Paste!$B$5:$T$500,16,FALSE)) -> 0 | F10: =IF(ISERROR(VLOOKUP($A10,Paste!$B$5:$T$500,19,FALSE))=TRUE,0,VLOOKUP($A10,Paste!$B$5:$T$500,19,FALSE)) -> 0 | H10: DR CROP | I10: 40201 | J10: III LRA 4-5 | K10: 535 | L10: =K11 -> 440
A11: 10004 | B11: =IF(ISERROR(VLOOKUP($A11,Paste!$B$5:$T$500,4,FALSE))=TRUE,0,VLOOKUP($A11,Paste!$B$5:$T$500,4,FALSE)) -> 0 | C11: =IF(ISERROR(VLOOKUP($A11,Paste!$B$5:$T$500,8,FALSE))=TRUE,0,VLOOKUP($A11,Paste!$B$5:$T$500,8,FALSE)) -> 0 | D11: =IF(ISERROR(VLOOKUP($A11,Paste!$B$5:$T$500,11,FALSE))=TRUE,0,VLOOKUP($A11,Paste!$B$5:$T$500,11,FALSE)) -> 0 | E11: =IF(ISERROR(VLOOKUP($A11,Paste!$B$5:$T$500,16,FALSE))=TRUE,0,VLOOKUP($A11,Paste!$B$5:$T$500,16,FALSE)) -> 0 | F11: =IF(ISERROR(VLOOKUP($A11,Paste!$B$5:$T$500,19,FALSE))=TRUE,0,VLOOKUP($A11,Paste!$B$5:$T$500,19,FALSE)) -> 0 | I11: 40202 | J11: IV LRA 1-2-3 | K11: 440 | L11: =K12 -> 346
A12: 10005 | B12: =IF(ISERROR(VLOOKUP($A12,Paste!$B$5:$T$500,4,FALSE))=TRUE,0,VLOOKUP($A12,Paste!$B$5:$T$500,4,FALSE)) -> 0 | C12: =IF(ISERROR(VLOOKUP($A12,Paste!$B$5:$T$500,8,FALSE))=TRUE,0,VLOOKUP($A12,Paste!$B$5:$T$500,8,FALSE)) -> 0 | D12: =IF(ISERROR(VLOOKUP($A12,Paste!$B$5:$T$500,11,FALSE))=TRUE,0,VLOOKUP($A12,Paste!$B$5:$T$500,11,FALSE)) -> 0 | E12: =IF(ISERROR(VLOOKUP($A12,Paste!$B$5:$T$500,16,FALSE))=TRUE,0,VLOOKUP($A12,Paste!$B$5:$T$500,16,FALSE)) -> 0 | F12: =IF(ISERROR(VLOOKUP($A12,Paste!$B$5:$T$500,19,FALSE))=TRUE,0,VLOOKUP($A12,Paste!$B$5:$T$500,19,FALSE)) -> 0 | I12: 40203 | J12: V-VIII LRA 1-2-3 | K12: 346 | L12: 204
A13: 10101 | B13: =IF(ISERROR(VLOOKUP($A13,Paste!$B$5:$T$500,4,FALSE))=TRUE,0,VLOOKUP($A13,Paste!$B$5:$T$500,4,FALSE)) -> 0 | C13: =IF(ISERROR(VLOOKUP($A13,Paste!$B$5:$T$500,8,FALSE))=TRUE,0,VLOOKUP($A13,Paste!$B$5:$T$500,8,FALSE)) -> 0 | D13: =IF(ISERROR(VLOOKUP($A13,Paste!$B$5:$T$500,11,FALSE))=TRUE,0,VLOOKUP($A13,Paste!$B$5:$T$500,11,FALSE)) -> 0 | E13: =IF(ISERROR(VLOOKUP($A13,Paste!$B$5:$T$500,16,FALSE))=TRUE,0,VLOOKUP($A13,Paste!$B$5:$T$500,16,FALSE)) -> 0 | F13: =IF(ISERROR(VLOOKUP($A13,Paste!$B$5:$T$500,19,FALSE))=TRUE,0,VLOOKUP($A13,Paste!$B$5:$T$500,19,FALSE)) -> 0
A14: 10102 | B14: =IF(ISERROR(VLOOKUP($A14,Paste!$B$5:$T$500,4,FALSE))=TRUE,0,VLOOKUP($A14,Paste!$B$5:$T$500,4,FALSE)) -> 0 | C14: =IF(ISERROR(VLOOKUP($A14,Paste!$B$5:$T$500,8,FALSE))=TRUE,0,VLOOKUP($A14,Paste!$B$5:$T$500,8,FALSE)) -> 0 | D14: =IF(ISERROR(VLOOKUP($A14,Paste!$B$5:$T$500,11,FALSE))=TRUE,0,VLOOKUP($A14,Paste!$B$5:$T$500,11,FALSE)) -> 0 | E14: =IF(ISERROR(VLOOKUP($A14,Paste!$B$5:$T$500,16,FALSE))=TRUE,0,VLOOKUP($A14,Paste!$B$5:$T$500,16,FALSE)) -> 0 | F14: =IF(ISERROR(VLOOKUP($A14,Paste!$B$5:$T$500,19,FALSE))=TRUE,0,VLOOKUP($A14,Paste!$B$5:$T$500,19,FALSE)) -> 0 | I14: 40204 | J14: III LRA 4 | K14: 488 | L14: =K15 -> 346
A15: 10103 | B15: =IF(ISERROR(VLOOKUP($A15,Paste!$B$5:$T$500,4,FALSE))=TRUE,0,VLOOKUP($A15,Paste!$B$5:$T$500,4,FALSE)) -> 0 | C15: =IF(ISERROR(VLOOKUP($A15,Paste!$B$5:$T$500,8,FALSE))=TRUE,0,VLOOKUP($A15,Paste!$B$5:$T$500,8,FALSE)) -> 0 | D15: =IF(ISERROR(VLOOKUP($A15,Paste!$B$5:$T$500,11,FALSE))=TRUE,0,VLOOKUP($A15,Paste!$B$5:$T$500,11,FALSE)) -> 0 | E15: =IF(ISERROR(VLOOKUP($A15,Paste!$B$5:$T$500,16,FALSE))=TRUE,0,VLOOKUP($A15,Paste!$B$5:$T$500,16,FALSE)) -> 0 | F15: =IF(ISERROR(VLOOKUP($A15,Paste!$B$5:$T$500,19,FALSE))=TRUE,0,VLOOKUP($A15,Paste!$B$5:$T$500,19,FALSE)) -> 0 | I15: 40205 | J15: IV LRA 4 | K15: 346 | L15: =K16 -> 252
A16: 10200 | B16: =IF(ISERROR(VLOOKUP($A16,Paste!$B$5:$T$500,4,FALSE))=TRUE,0,VLOOKUP($A16,Paste!$B$5:$T$500,4,FALSE)) -> 0 | C16: =IF(ISERROR(VLOOKUP($A16,Paste!$B$5:$T$500,8,FALSE))=TRUE,0,VLOOKUP($A16,Paste!$B$5:$T$500,8,FALSE)) -> 0 | D16: =IF(ISERROR(VLOOKUP($A16,Paste!$B$5:$T$500,11,FALSE))=TRUE,0,VLOOKUP($A16,Paste!$B$5:$T$500,11,FALSE)) -> 0 | E16: =IF(ISERROR(VLOOKUP($A16,Paste!$B$5:$T$500,16,FALSE))=TRUE,0,VLOOKUP($A16,Paste!$B$5:$T$500,16,FALSE)) -> 0 | F16: =IF(ISERROR(VLOOKUP($A16,Paste!$B$5:$T$500,19,FALSE))=TRUE,0,VLOOKUP($A16,Paste!$B$5:$T$500,19,FALSE)) -> 0 | I16: 40206 | J16: V-VIII LRA 4 | K16: 252 | L16: 157
A17: 10401 | B17: =IF(ISERROR(VLOOKUP($A17,Paste!$B$5:$T$500,4,FALSE))=TRUE,0,VLOOKUP($A17,Paste!$B$5:$T$500,4,FALSE)) -> 0 | C17: =IF(ISERROR(VLOOKUP($A17,Paste!$B$5:$T$500,8,FALSE))=TRUE,0,VLOOKUP($A17,Paste!$B$5:$T$500,8,FALSE)) -> 0 | D17: =IF(ISERROR(VLOOKUP($A17,Paste!$B$5:$T$500,11,FALSE))=TRUE,0,VLOOKUP($A17,Paste!$B$5:$T$500,11,FALSE)) -> 0 | E17: =IF(ISERROR(VLOOKUP($A17,Paste!$B$5:$T$500,16,FALSE))=TRUE,0,VLOOKUP($A17,Paste!$B$5:$T$500,16,FALSE)) -> 0 | F17: =IF(ISERROR(VLOOKUP($A17,Paste!$B$5:$T$500,19,FALSE))=TRUE,0,VLOOKUP($A17,Paste!$B$5:$T$500,19,FALSE)) -> 0
A18: 10402 | B18: =IF(ISERROR(VLOOKUP($A18,Paste!$B$5:$T$500,4,FALSE))=TRUE,0,VLOOKUP($A18,Paste!$B$5:$T$500,4,FALSE)) -> 0 | C18: =IF(ISERROR(VLOOKUP($A18,Paste!$B$5:$T$500,8,FALSE))=TRUE,0,VLOOKUP($A18,Paste!$B$5:$T$500,8,FALSE)) -> 0 | D18: =IF(ISERROR(VLOOKUP($A18,Paste!$B$5:$T$500,11,FALSE))=TRUE,0,VLOOKUP($A18,Paste!$B$5:$T$500,11,FALSE)) -> 0 | E18: =IF(ISERROR(VLOOKUP($A18,Paste!$B$5:$T$500,16,FALSE))=TRUE,0,VLOOKUP($A18,Paste!$B$5:$T$500,16,FALSE)) -> 0 | F18: =IF(ISERROR(VLOOKUP($A18,Paste!$B$5:$T$500,19,FALSE))=TRUE,0,VLOOKUP($A18,Paste!$B$5:$T$500,19,FALSE)) -> 0 | I18: 40207 | J18: III LRA 5 | K18: 724 | L18: =K19 -> 535
A19: 10403 | B19: =IF(ISERROR(VLOOKUP($A19,Paste!$B$5:$T$500,4,FALSE))=TRUE,0,VLOOKUP($A19,Paste!$B$5:$T$500,4,FALSE)) -> 0 | C19: =IF(ISERROR(VLOOKUP($A19,Paste!$B$5:$T$500,8,FALSE))=TRUE,0,VLOOKUP($A19,Paste!$B$5:$T$500,8,FALSE)) -> 0 | D19: =IF(ISERROR(VLOOKUP($A19,Paste!$B$5:$T$500,11,FALSE))=TRUE,0,VLOOKUP($A19,Paste!$B$5:$T$500,11,FALSE)) -> 0 | E19: =IF(ISERROR(VLOOKUP($A19,Paste!$B$5:$T$500,16,FALSE))=TRUE,0,VLOOKUP($A19,Paste!$B$5:$T$500,16,FALSE)) -> 0 | F19: =IF(ISERROR(VLOOKUP($A19,Paste!$B$5:$T$500,19,FALSE))=TRUE,0,VLOOKUP($A19,Paste!$B$5:$T$500,19,FALSE)) -> 0 | I19: 40208 | J19: IV LRA 5 | K19: 535 | L19: =K20 -> 346
A20: 10500 | B20: =IF(ISERROR(VLOOKUP($A20,Paste!$B$5:$T$500,4,FALSE))=TRUE,0,VLOOKUP($A20,Paste!$B$5:$T$500,4,FALSE)) -> 0 | C20: =IF(ISERROR(VLOOKUP($A20,Paste!$B$5:$T$500,8,FALSE))=TRUE,0,VLOOKUP($A20,Paste!$B$5:$T$500,8,FALSE)) -> 0 | D20: =IF(ISERROR(VLOOKUP($A20,Paste!$B$5:$T$500,11,FALSE))=TRUE,0,VLOOKUP($A20,Paste!$B$5:$T$500,11,FALSE)) -> 0 | E20: =IF(ISERROR(VLOOKUP($A20,Paste!$B$5:$T$500,16,FALSE))=TRUE,0,VLOOKUP($A20,Paste!$B$5:$T$500,16,FALSE)) -> 0 | F20: =IF(ISERROR(VLOOKUP($A20,Paste!$B$5:$T$500,19,FALSE))=TRUE,0,VLOOKUP($A20,Paste!$B$5:$T$500,19,FALSE)) -> 0 | I20: 40209 | J20: V-VIII LRA 5 | K20: 346 | L20: 252
A21: 10600 | B21: =IF(ISERROR(VLOOKUP($A21,Paste!$B$5:$T$500,4,FALSE))=TRUE,0,VLOOKUP($A21,Paste!$B$5:$T$500,4,FALSE)) -> 0 | C21: =IF(ISERROR(VLOOKUP($A21,Paste!$B$5:$T$500,8,FALSE))=TRUE,0,VLOOKUP($A21,Paste!$B$5:$T$500,8,FALSE)) -> 0 | D21: =IF(ISERROR(VLOOKUP($A21,Paste!$B$5:$T$500,11,FALSE))=TRUE,0,VLOOKUP($A21,Paste!$B$5:$T$500,11,FALSE)) -> 0 | E21: =IF(ISERROR(VLOOKUP($A21,Paste!$B$5:$T$500,16,FALSE))=TRUE,0,VLOOKUP($A21,Paste!$B$5:$T$500,16,FALSE)) -> 0 | F21: =IF(ISERROR(VLOOKUP($A21,Paste!$B$5:$T$500,19,FALSE))=TRUE,0,VLOOKUP($A21,Paste!$B$5:$T$500,19,FALSE)) -> 0 | H21: RANGE LAND | I21: 40301 | J21: 1 LRA1 | K21: 1087 | L21: 649
A22: 20000 | B22: =IF(ISERROR(VLOOKUP($A22,Paste!$B$5:$T$500,4,FALSE))=TRUE,0,VLOOKUP($A22,Paste!$B$5:$T$500,4,FALSE)) -> 0 | C22: =IF(ISERROR(VLOOKUP($A22,Paste!$B$5:$T$500,8,FALSE))=TRUE,0,VLOOKUP($A22,Paste!$B$5:$T$500,8,FALSE)) -> 0 | D22: =IF(ISERROR(VLOOKUP($A22,Paste!$B$5:$T$500,11,FALSE))=TRUE,0,VLOOKUP($A22,Paste!$B$5:$T$500,11,FALSE)) -> 0 | E22: =IF(ISERROR(VLOOKUP($A22,Paste!$B$5:$T$500,16,FALSE))=TRUE,0,VLOOKUP($A22,Paste!$B$5:$T$500,16,FALSE)) -> 0 | F22: =IF(ISERROR(VLOOKUP($A22,Paste!$B$5:$T$500,19,FALSE))=TRUE,0,VLOOKUP($A22,Paste!$B$5:$T$500,19,FALSE)) -> 0 | I22: 40302 | J22: 2 LRA1 | K22: 362 | L22: =K23 -> 272
A23: 20100 | B23: =IF(ISERROR(VLOOKUP($A23,Paste!$B$5:$T$500,4,FALSE))=TRUE,0,VLOOKUP($A23,Paste!$B$5:$T$500,4,FALSE)) -> 0 | C23: =IF(ISERROR(VLOOKUP($A23,Paste!$B$5:$T$500,8,FALSE))=TRUE,0,VLOOKUP($A23,Paste!$B$5:$T$500,8,FALSE)) -> 0 | D23: =IF(ISERROR(VLOOKUP($A23,Paste!$B$5:$T$500,11,FALSE))=TRUE,0,VLOOKUP($A23,Paste!$B$5:$T$500,11,FALSE)) -> 0 | E23: =IF(ISERROR(VLOOKUP($A23,Paste!$B$5:$T$500,16,FALSE))=TRUE,0,VLOOKUP($A23,Paste!$B$5:$T$500,16,FALSE)) -> 0 | F23: =IF(ISERROR(VLOOKUP($A23,Paste!$B$5:$T$500,19,FALSE))=TRUE,0,VLOOKUP($A23,Paste!$B$5:$T$500,19,FALSE)) -> 0 | I23: 40303 | J23: 3 LRA1 | K23: 272 | L23: 181
A24: 20200 | B24: =IF(ISERROR(VLOOKUP($A24,Paste!$B$5:$T$500,4,FALSE))=TRUE,0,VLOOKUP($A24,Paste!$B$5:$T$500,4,FALSE)) -> 0 | C24: =IF(ISERROR(VLOOKUP($A24,Paste!$B$5:$T$500,8,FALSE))=TRUE,0,VLOOKUP($A24,Paste!$B$5:$T$500,8,FALSE)) -> 0 | D24: =IF(ISERROR(VLOOKUP($A24,Paste!$B$5:$T$500,11,FALSE))=TRUE,0,VLOOKUP($A24,Paste!$B$5:$T$500,11,FALSE)) -> 0 | E24: =IF(ISERROR(VLOOKUP($A24,Paste!$B$5:$T$500,16,FALSE))=TRUE,0,VLOOKUP($A24,Paste!$B$5:$T$500,16,FALSE)) -> 0 | F24: =IF(ISERROR(VLOOKUP($A24,Paste!$B$5:$T$500,19,FALSE))=TRUE,0,VLOOKUP($A24,Paste!$B$5:$T$500,19,FALSE)) -> 0 | I24: 40304 | J24: 4 LRA1 | K24: 181 | L24: 136
A25: 20300 | B25: =IF(ISERROR(VLOOKUP($A25,Paste!$B$5:$T$500,4,FALSE))=TRUE,0,VLOOKUP($A25,Paste!$B$5:$T$500,4,FALSE)) -> 0 | C25: =IF(ISERROR(VLOOKUP($A25,Paste!$B$5:$T$500,8,FALSE))=TRUE,0,VLOOKUP($A25,Paste!$B$5:$T$500,8,FALSE)) -> 0 | D25: =IF(ISERROR(VLOOKUP($A25,Paste!$B$5:$T$500,11,FALSE))=TRUE,0,VLOOKUP($A25,Paste!$B$5:$T$500,11,FALSE)) -> 0 | E25: =IF(ISERROR(VLOOKUP($A25,Paste!$B$5:$T$500,16,FALSE))=TRUE,0,VLOOKUP($A25,Paste!$B$5:$T$500,16,FALSE)) -> 0 | F25: =IF(ISERROR(VLOOKUP($A25,Paste!$B$5:$T$500,19,FALSE))=TRUE,0,VLOOKUP($A25,Paste!$B$5:$T$500,19,FALSE)) -> 0 | I25: 40305 | J25: 5 LRA1 | K25: 136 | L25: 91
A26: 20400 | B26: =IF(ISERROR(VLOOKUP($A26,Paste!$B$5:$T$500,4,FALSE))=TRUE,0,VLOOKUP($A26,Paste!$B$5:$T$500,4,FALSE)) -> 0 | C26: =IF(ISERROR(VLOOKUP($A26,Paste!$B$5:$T$500,8,FALSE))=TRUE,0,VLOOKUP($A26,Paste!$B$5:$T$500,8,FALSE)) -> 0 | D26: =IF(ISERROR(VLOOKUP($A26,Paste!$B$5:$T$500,11,FALSE))=TRUE,0,VLOOKUP($A26,Paste!$B$5:$T$500,11,FALSE)) -> 0 | E26: =IF(ISERROR(VLOOKUP($A26,Paste!$B$5:$T$500,16,FALSE))=TRUE,0,VLOOKUP($A26,Paste!$B$5:$T$500,16,FALSE)) -> 0 | F26: =IF(ISERROR(VLOOKUP($A26,Paste!$B$5:$T$500,19,FALSE))=TRUE,0,VLOOKUP($A26,Paste!$B$5:$T$500,19,FALSE)) -> 0 | I26: 40306 | J26: W LRA1 | K26: 91 | L26: 10
A27: 20500 | B27: =IF(ISERROR(VLOOKUP($A27,Paste!$B$5:$T$500,4,FALSE))=TRUE,0,VLOOKUP($A27,Paste!$B$5:$T$500,4,FALSE)) -> 0 | C27: =IF(ISERROR(VLOOKUP($A27,Paste!$B$5:$T$500,8,FALSE))=TRUE,0,VLOOKUP($A27,Paste!$B$5:$T$500,8,FALSE)) -> 0 | D27: =IF(ISERROR(VLOOKUP($A27,Paste!$B$5:$T$500,11,FALSE))=TRUE,0,VLOOKUP($A27,Paste!$B$5:$T$500,11,FALSE)) -> 0 | E27: =IF(ISERROR(VLOOKUP($A27,Paste!$B$5:$T$500,16,FALSE))=TRUE,0,VLOOKUP($A27,Paste!$B$5:$T$500,16,FALSE)) -> 0 | F27: =IF(ISERROR(VLOOKUP($A27,Paste!$B$5:$T$500,19,FALSE))=TRUE,0,VLOOKUP($A27,Paste!$B$5:$T$500,19,FALSE)) -> 0
A28: 20600 | B28: =IF(ISERROR(VLOOKUP($A28,Paste!$B$5:$T$500,4,FALSE))=TRUE,0,VLOOKUP($A28,Paste!$B$5:$T$500,4,FALSE)) -> 0 | C28: =IF(ISERROR(VLOOKUP($A28,Paste!$B$5:$T$500,8,FALSE))=TRUE,0,VLOOKUP($A28,Paste!$B$5:$T$500,8,FALSE)) -> 0 | D28: =IF(ISERROR(VLOOKUP($A28,Paste!$B$5:$T$500,11,FALSE))=TRUE,0,VLOOKUP($A28,Paste!$B$5:$T$500,11,FALSE)) -> 0 | E28: =IF(ISERROR(VLOOKUP($A28,Paste!$B$5:$T$500,16,FALSE))=TRUE,0,VLOOKUP($A28,Paste!$B$5:$T$500,16,FALSE)) -> 0 | F28: =IF(ISERROR(VLOOKUP($A28,Paste!$B$5:$T$500,19,FALSE))=TRUE,0,VLOOKUP($A28,Paste!$B$5:$T$500,19,FALSE)) -> 0 | I28: 40307 | J28: 1 LRA2 | K28: 1054 | L28: 498
A29: 20701 | B29: =IF(ISERROR(VLOOKUP($A29,Paste!$B$5:$T$500,4,FALSE))=TRUE,0,VLOOKUP($A29,Paste!$B$5:$T$500,4,FALSE)) -> 0 | C29: =IF(ISERROR(VLOOKUP($A29,Paste!$B$5:$T$500,8,FALSE))=TRUE,0,VLOOKUP($A29,Paste!$B$5:$T$500,8,FALSE)) -> 0 | D29: =IF(ISERROR(VLOOKUP($A29,Paste!$B$5:$T$500,11,FALSE))=TRUE,0,VLOOKUP($A29,Paste!$B$5:$T$500,11,FALSE)) -> 0 | E29: =IF(ISERROR(VLOOKUP($A29,Paste!$B$5:$T$500,16,FALSE))=TRUE,0,VLOOKUP($A29,Paste!$B$5:$T$500,16,FALSE)) -> 0 | F29: =IF(ISERROR(VLOOKUP($A29,Paste!$B$5:$T$500,19,FALSE))=TRUE,0,VLOOKUP($A29,Paste!$B$5:$T$500,19,FALSE)) -> 0 | I29: 40308 | J29: 2 LRA2 | K29: 272 | L29: 181
A30: 20702 | B30: =IF(ISERROR(VLOOKUP($A30,Paste!$B$5:$T$500,4,FALSE))=TRUE,0,VLOOKUP($A30,Paste!$B$5:$T$500,4,FALSE)) -> 0 | C30: =IF(ISERROR(VLOOKUP($A30,Paste!$B$5:$T$500,8,FALSE))=TRUE,0,VLOOKUP($A30,Paste!$B$5:$T$500,8,FALSE)) -> 0 | D30: =IF(ISERROR(VLOOKUP($A30,Paste!$B$5:$T$500,11,FALSE))=TRUE,0,VLOOKUP($A30,Paste!$B$5:$T$500,11,FALSE)) -> 0 | E30: =IF(ISERROR(VLOOKUP($A30,Paste!$B$5:$T$500,16,FALSE))=TRUE,0,VLOOKUP($A30,Paste!$B$5:$T$500,16,FALSE)) -> 0 | F30: =IF(ISERROR(VLOOKUP($A30,Paste!$B$5:$T$500,19,FALSE))=TRUE,0,VLOOKUP($A30,Paste!$B$5:$T$500,19,FALSE)) -> 0 | I30: 40309 | J30: 3 LRA2 | K30: 181 | L30: 136
A31: 20703 | B31: =IF(ISERROR(VLOOKUP($A31,Paste!$B$5:$T$500,4,FALSE))=TRUE,0,VLOOKUP($A31,Paste!$B$5:$T$500,4,FALSE)) -> 0 | C31: =IF(ISERROR(VLOOKUP($A31,Paste!$B$5:$T$500,8,FALSE))=TRUE,0,VLOOKUP($A31,Paste!$B$5:$T$500,8,FALSE)) -> 0 | D31: =IF(ISERROR(VLOOKUP($A31,Paste!$B$5:$T$500,11,FALSE))=TRUE,0,VLOOKUP($A31,Paste!$B$5:$T$500,11,FALSE)) -> 0 | E31: =IF(ISERROR(VLOOKUP($A31,Paste!$B$5:$T$500,16,FALSE))=TRUE,0,VLOOKUP($A31,Paste!$B$5:$T$500,16,FALSE)) -> 0 | F31: =IF(ISERROR(VLOOKUP($A31,Paste!$B$5:$T$500,19,FALSE))=TRUE,0,VLOOKUP($A31,Paste!$B$5:$T$500,19,FALSE)) -> 0 | I31: 40310 | J31: 4 LRA2 | K31: 136 | L31: 91
A32: 20800 | B32: =IF(ISERROR(VLOOKUP($A32,Paste!$B$5:$T$500,4,FALSE))=TRUE,0,VLOOKUP($A32,Paste!$B$5:$T$500,4,FALSE)) -> 0 | C32: =IF(ISERROR(VLOOKUP($A32,Paste!$B$5:$T$500,8,FALSE))=TRUE,0,VLOOKUP($A32,Paste!$B$5:$T$500,8,FALSE)) -> 0 | D32: =IF(ISERROR(VLOOKUP($A32,Paste!$B$5:$T$500,11,FALSE))=TRUE,0,VLOOKUP($A32,Paste!$B$5:$T$500,11,FALSE)) -> 0 | E32: =IF(ISERROR(VLOOKUP($A32,Paste!$B$5:$T$500,16,FALSE))=TRUE,0,VLOOKUP($A32,Paste!$B$5:$T$500,16,FALSE)) -> 0 | F32: =IF(ISERROR(VLOOKUP($A32,Paste!$B$5:$T$500,19,FALSE))=TRUE,0,VLOOKUP($A32,Paste!$B$5:$T$500,19,FALSE)) -> 0 | I32: 40311 | J32: 5 LRA2 | K32: 91 | L32: 45
A33: 20900 | B33: =IF(ISERROR(VLOOKUP($A33,Paste!$B$5:$T$500,4,FALSE))=TRUE,0,VLOOKUP($A33,Paste!$B$5:$T$500,4,FALSE)) -> 0 | C33: =IF(ISERROR(VLOOKUP($A33,Paste!$B$5:$T$500,8,FALSE))=TRUE,0,VLOOKUP($A33,Paste!$B$5:$T$500,8,FALSE)) -> 0 | D33: =IF(ISERROR(VLOOKUP($A33,Paste!$B$5:$T$500,11,FALSE))=TRUE,0,VLOOKUP($A33,Paste!$B$5:$T$500,11,FALSE)) -> 0 | E33: =IF(ISERROR(VLOOKUP($A33,Paste!$B$5:$T$500,16,FALSE))=TRUE,0,VLOOKUP($A33,Paste!$B$5:$T$500,16,FALSE)) -> 0 | F33: =IF(ISERROR(VLOOKUP($A33,Paste!$B$5:$T$500,19,FALSE))=TRUE,0,VLOOKUP($A33,Paste!$B$5:$T$500,19,FALSE)) -> 0 | I33: 40312 | J33: W LRA2 | K33: 45 | L33: 10
A34: 21000 | B34: =IF(ISERROR(VLOOKUP($A34,Paste!$B$5:$T$500,4,FALSE))=TRUE,0,VLOOKUP($A34,Paste!$B$5:$T$500,4,FALSE)) -> 0 | C34: =IF(ISERROR(VLOOKUP($A34,Paste!$B$5:$T$500,8,FALSE))=TRUE,0,VLOOKUP($A34,Paste!$B$5:$T$500,8,FALSE)) -> 0 | D34: =IF(ISERROR(VLOOKUP($A34,Paste!$B$5:$T$500,11,FALSE))=TRUE,0,VLOOKUP($A34,Paste!$B$5:$T$500,11,FALSE)) -> 0 | E34: =IF(ISERROR(VLOOKUP($A34,Paste!$B$5:$T$500,16,FALSE))=TRUE,0,VLOOKUP($A34,Paste!$B$5:$T$500,16,FALSE)) -> 0 | F34: =IF(ISERROR(VLOOKUP($A34,Paste!$B$5:$T$500,19,FALSE))=TRUE,0,VLOOKUP($A34,Paste!$B$5:$T$500,19,FALSE)) -> 0
A35: 21100 | B35: =IF(ISERROR(VLOOKUP($A35,Paste!$B$5:$T$500,4,FALSE))=TRUE,0,VLOOKUP($A35,Paste!$B$5:$T$500,4,FALSE)) -> 0 | C35: =IF(ISERROR(VLOOKUP($A35,Paste!$B$5:$T$500,8,FALSE))=TRUE,0,VLOOKUP($A35,Paste!$B$5:$T$500,8,FALSE)) -> 0 | D35: =IF(ISERROR(VLOOKUP($A35,Paste!$B$5:$T$500,11,FALSE))=TRUE,0,VLOOKUP($A35,Paste!$B$5:$T$500,11,FALSE)) -> 0 | E35: =IF(ISERROR(VLOOKUP($A35,Paste!$B$5:$T$500,16,FALSE))=TRUE,0,VLOOKUP($A35,Paste!$B$5:$T$500,16,FALSE)) -> 0 | F35: =IF(ISERROR(VLOOKUP($A35,Paste!$B$5:$T$500,19,FALSE))=TRUE,0,VLOOKUP($A35,Paste!$B$5:$T$500,19,FALSE)) -> 0 | I35: 40313 | J35: 1 LRA3 | K35: 906 | L35: 433
A36: 21201 | B36: =IF(ISERROR(VLOOKUP($A36,Paste!$B$5:$T$500,4,FALSE))=TRUE,0,VLOOKUP($A36,Paste!$B$5:$T$500,4,FALSE)) -> 0 | C36: =IF(ISERROR(VLOOKUP($A36,Paste!$B$5:$T$500,8,FALSE))=TRUE,0,VLOOKUP($A36,Paste!$B$5:$T$500,8,FALSE)) -> 0 | D36: =IF(ISERROR(VLOOKUP($A36,Paste!$B$5:$T$500,11,FALSE))=TRUE,0,VLOOKUP($A36,Paste!$B$5:$T$500,11,FALSE)) -> 0 | E36: =IF(ISERROR(VLOOKUP($A36,Paste!$B$5:$T$500,16,FALSE))=TRUE,0,VLOOKUP($A36,Paste!$B$5:$T$500,16,FALSE)) -> 0 | F36: =IF(ISERROR(VLOOKUP($A36,Paste!$B$5:$T$500,19,FALSE))=TRUE,0,VLOOKUP($A36,Paste!$B$5:$T$500,19,FALSE)) -> 0 | I36: 40314 | J36: 2 LRA3 | K36: 181 | L36: =K37 -> 136
A37: 21301 | B37: =IF(ISERROR(VLOOKUP($A37,Paste!$B$5:$T$500,4,FALSE))=TRUE,0,VLOOKUP($A37,Paste!$B$5:$T$500,4,FALSE)) -> 0 | C37: =IF(ISERROR(VLOOKUP($A37,Paste!$B$5:$T$500,8,FALSE))=TRUE,0,VLOOKUP($A37,Paste!$B$5:$T$500,8,FALSE)) -> 0 | D37: =IF(ISERROR(VLOOKUP($A37,Paste!$B$5:$T$500,11,FALSE))=TRUE,0,VLOOKUP($A37,Paste!$B$5:$T$500,11,FALSE)) -> 0 | E37: =IF(ISERROR(VLOOKUP($A37,Paste!$B$5:$T$500,16,FALSE))=TRUE,0,VLOOKUP($A37,Paste!$B$5:$T$500,16,FALSE)) -> 0 | F37: =IF(ISERROR(VLOOKUP($A37,Paste!$B$5:$T$500,19,FALSE))=TRUE,0,VLOOKUP($A37,Paste!$B$5:$T$500,19,FALSE)) -> 0 | I37: 40315 | J37: 3 LRA3 | K37: 136 | L37: =K38 -> 91
A38: 21302 | B38: =IF(ISERROR(VLOOKUP($A38,Paste!$B$5:$T$500,4,FALSE))=TRUE,0,VLOOKUP($A38,Paste!$B$5:$T$500,4,FALSE)) -> 0 | C38: =IF(ISERROR(VLOOKUP($A38,Paste!$B$5:$T$500,8,FALSE))=TRUE,0,VLOOKUP($A38,Paste!$B$5:$T$500,8,FALSE)) -> 0 | D38: =IF(ISERROR(VLOOKUP($A38,Paste!$B$5:$T$500,11,FALSE))=TRUE,0,VLOOKUP($A38,Paste!$B$5:$T$500,11,FALSE)) -> 0 | E38: =IF(ISERROR(VLOOKUP($A38,Paste!$B$5:$T$500,16,FALSE))=TRUE,0,VLOOKUP($A38,Paste!$B$5:$T$500,16,FALSE)) -> 0 | F38: =IF(ISERROR(VLOOKUP($A38,Paste!$B$5:$T$500,19,FALSE))=TRUE,0,VLOOKUP($A38,Paste!$B$5:$T$500,19,FALSE)) -> 0 | I38: 40316 | J38: 4 LRA3 | K38: 91 | L38: 45
A39: 21303 | B39: =IF(ISERROR(VLOOKUP($A39,Paste!$B$5:$T$500,4,FALSE))=TRUE,0,VLOOKUP($A39,Paste!$B$5:$T$500,4,FALSE)) -> 0 | C39: =IF(ISERROR(VLOOKUP($A39,Paste!$B$5:$T$500,8,FALSE))=TRUE,0,VLOOKUP($A39,Paste!$B$5:$T$500,8,FALSE)) -> 0 | D39: =IF(ISERROR(VLOOKUP($A39,Paste!$B$5:$T$500,11,FALSE))=TRUE,0,VLOOKUP($A39,Paste!$B$5:$T$500,11,FALSE)) -> 0 | E39: =IF(ISERROR(VLOOKUP($A39,Paste!$B$5:$T$500,16,FALSE))=TRUE,0,VLOOKUP($A39,Paste!$B$5:$T$500,16,FALSE)) -> 0 | F39: =IF(ISERROR(VLOOKUP($A39,Paste!$B$5:$T$500,19,FALSE))=TRUE,0,VLOOKUP($A39,Paste!$B$5:$T$500,19,FALSE)) -> 0 | I39: 40317 | J39: 5 LRA3 | K39: 45 | L39: 23
A40: 21304 | B40: =IF(ISERROR(VLOOKUP($A40,Paste!$B$5:$T$500,4,FALSE))=TRUE,0,VLOOKUP($A40,Paste!$B$5:$T$500,4,FALSE)) -> 0 | C40: =IF(ISERROR(VLOOKUP($A40,Paste!$B$5:$T$500,8,FALSE))=TRUE,0,VLOOKUP($A40,Paste!$B$5:$T$500,8,FALSE)) -> 0 | D40: =IF(ISERROR(VLOOKUP($A40,Paste!$B$5:$T$500,11,FALSE))=TRUE,0,VLOOKUP($A40,Paste!$B$5:$T$500,11,FALSE)) -> 0 | E40: =IF(ISERROR(VLOOKUP($A40,Paste!$B$5:$T$500,16,FALSE))=TRUE,0,VLOOKUP($A40,Paste!$B$5:$T$500,16,FALSE)) -> 0 | F40: =IF(ISERROR(VLOOKUP($A40,Paste!$B$5:$T$500,19,FALSE))=TRUE,0,VLOOKUP($A40,Paste!$B$5:$T$500,19,FALSE)) -> 0 | I40: 40318 | J40: W LRA3 | K40: 23 | L40: 10
A41: 29900 | B41: =IF(ISERROR(VLOOKUP($A41,Paste!$B$5:$T$500,4,FALSE))=TRUE,0,VLOOKUP($A41,Paste!$B$5:$T$500,4,FALSE)) -> 0 | C41: =IF(ISERROR(VLOOKUP($A41,Paste!$B$5:$T$500,8,FALSE))=TRUE,0,VLOOKUP($A41,Paste!$B$5:$T$500,8,FALSE)) -> 0 | D41: =IF(ISERROR(VLOOKUP($A41,Paste!$B$5:$T$500,11,FALSE))=TRUE,0,VLOOKUP($A41,Paste!$B$5:$T$500,11,FALSE)) -> 0 | E41: =IF(ISERROR(VLOOKUP($A41,Paste!$B$5:$T$500,16,FALSE))=TRUE,0,VLOOKUP($A41,Paste!$B$5:$T$500,16,FALSE)) -> 0 | F41: =IF(ISERROR(VLOOKUP($A41,Paste!$B$5:$T$500,19,FALSE))=TRUE,0,VLOOKUP($A41,Paste!$B$5:$T$500,19,FALSE)) -> 0
A42: 30001 | B42: =IF(ISERROR(VLOOKUP($A42,Paste!$B$5:$T$500,4,FALSE))=TRUE,0,VLOOKUP($A42,Paste!$B$5:$T$500,4,FALSE)) -> 0 | C42: =IF(ISERROR(VLOOKUP($A42,Paste!$B$5:$T$500,8,FALSE))=TRUE,0,VLOOKUP($A42,Paste!$B$5:$T$500,8,FALSE)) -> 0 | D42: =IF(ISERROR(VLOOKUP($A42,Paste!$B$5:$T$500,11,FALSE))=TRUE,0,VLOOKUP($A42,Paste!$B$5:$T$500,11,FALSE)) -> 0 | E42: =IF(ISERROR(VLOOKUP($A42,Paste!$B$5:$T$500,16,FALSE))=TRUE,0,VLOOKUP($A42,Paste!$B$5:$T$500,16,FALSE)) -> 0 | F42: =IF(ISERROR(VLOOKUP($A42,Paste!$B$5:$T$500,19,FALSE))=TRUE,0,VLOOKUP($A42,Paste!$B$5:$T$500,19,FALSE)) -> 0 | I42: 40313 | J42: 1 LRA4 | K42: 906 | L42: 433
A43: 30002 | B43: =IF(ISERROR(VLOOKUP($A43,Paste!$B$5:$T$500,4,FALSE))=TRUE,0,VLOOKUP($A43,Paste!$B$5:$T$500,4,FALSE)) -> 0 | C43: =IF(ISERROR(VLOOKUP($A43,Paste!$B$5:$T$500,8,FALSE))=TRUE,0,VLOOKUP($A43,Paste!$B$5:$T$500,8,FALSE)) -> 0 | D43: =IF(ISERROR(VLOOKUP($A43,Paste!$B$5:$T$500,11,FALSE))=TRUE,0,VLOOKUP($A43,Paste!$B$5:$T$500,11,FALSE)) -> 0 | E43: =IF(ISERROR(VLOOKUP($A43,Paste!$B$5:$T$500,16,FALSE))=TRUE,0,VLOOKUP($A43,Paste!$B$5:$T$500,16,FALSE)) -> 0 | F43: =IF(ISERROR(VLOOKUP($A43,Paste!$B$5:$T$500,19,FALSE))=TRUE,0,VLOOKUP($A43,Paste!$B$5:$T$500,19,FALSE)) -> 0 | I43: 40314 | J43: 2 LRA4 | K43: 181 | L43: =K44 -> 136
A44: 30003 | B44: =IF(ISERROR(VLOOKUP($A44,Paste!$B$5:$T$500,4,FALSE))=TRUE,0,VLOOKUP($A44,Paste!$B$5:$T$500,4,FALSE)) -> 0 | C44: =IF(ISERROR(VLOOKUP($A44,Paste!$B$5:$T$500,8,FALSE))=TRUE,0,VLOOKUP($A44,Paste!$B$5:$T$500,8,FALSE)) -> 0 | D44: =IF(ISERROR(VLOOKUP($A44,Paste!$B$5:$T$500,11,FALSE))=TRUE,0,VLOOKUP($A44,Paste!$B$5:$T$500,11,FALSE)) -> 0 | E44: =IF(ISERROR(VLOOKUP($A44,Paste!$B$5:$T$500,16,FALSE))=TRUE,0,VLOOKUP($A44,Paste!$B$5:$T$500,16,FALSE)) -> 0 | F44: =IF(ISERROR(VLOOKUP($A44,Paste!$B$5:$T$500,19,FALSE))=TRUE,0,VLOOKUP($A44,Paste!$B$5:$T$500,19,FALSE)) -> 0 | I44: 40315 | J44: 3 LRA4 | K44: 136 | L44: =K45 -> 91
A45: 30004 | B45: =IF(ISERROR(VLOOKUP($A45,Paste!$B$5:$T$500,4,FALSE))=TRUE,0,VLOOKUP($A45,Paste!$B$5:$T$500,4,FALSE)) -> 0 | C45: =IF(ISERROR(VLOOKUP($A45,Paste!$B$5:$T$500,8,FALSE))=TRUE,0,VLOOKUP($A45,Paste!$B$5:$T$500,8,FALSE)) -> 0 | D45: =IF(ISERROR(VLOOKUP($A45,Paste!$B$5:$T$500,11,FALSE))=TRUE,0,VLOOKUP($A45,Paste!$B$5:$T$500,11,FALSE)) -> 0 | E45: =IF(ISERROR(VLOOKUP($A45,Paste!$B$5:$T$500,16,FALSE))=TRUE,0,VLOOKUP($A45,Paste!$B$5:$T$500,16,FALSE)) -> 0 | F45: =IF(ISERROR(VLOOKUP($A45,Paste!$B$5:$T$500,19,FALSE))=TRUE,0,VLOOKUP($A45,Paste!$B$5:$T$500,19,FALSE)) -> 0 | I45: 40316 | J45: 4 LRA4 | K45: 91 | L45: 45
A46: 30005 | B46: =IF(ISERROR(VLOOKUP($A46,Paste!$B$5:$T$500,4,FALSE))=TRUE,0,VLOOKUP($A46,Paste!$B$5:$T$500,4,FALSE)) -> 0 | C46: =IF(ISERROR(VLOOKUP($A46,Paste!$B$5:$T$500,8,FALSE))=TRUE,0,VLOOKUP($A46,Paste!$B$5:$T$500,8,FALSE)) -> 0 | D46: =IF(ISERROR(VLOOKUP($A46,Paste!$B$5:$T$500,11,FALSE))=TRUE,0,VLOOKUP($A46,Paste!$B$5:$T$500,11,FALSE)) -> 0 | E46: =IF(ISERROR(VLOOKUP($A46,Paste!$B$5:$T$500,16,FALSE))=TRUE,0,VLOOKUP($A46,Paste!$B$5:$T$500,16,FALSE)) -> 0 | F46: =IF(ISERROR(VLOOKUP($A46,Paste!$B$5:$T$500,19,FALSE))=TRUE,0,VLOOKUP($A46,Paste!$B$5:$T$500,19,FALSE)) -> 0 | I46: 40317 | J46: 5 LRA4 | K46: 45 | L46: 23
A47: 30006 | B47: =IF(ISERROR(VLOOKUP($A47,Paste!$B$5:$T$500,4,FALSE))=TRUE,0,VLOOKUP($A47,Paste!$B$5:$T$500,4,FALSE)) -> 0 | C47: =IF(ISERROR(VLOOKUP($A47,Paste!$B$5:$T$500,8,FALSE))=TRUE,0,VLOOKUP($A47,Paste!$B$5:$T$500,8,FALSE)) -> 0 | D47: =IF(ISERROR(VLOOKUP($A47,Paste!$B$5:$T$500,11,FALSE))=TRUE,0,VLOOKUP($A47,Paste!$B$5:$T$500,11,FALSE)) -> 0 | E47: =IF(ISERROR(VLOOKUP($A47,Paste!$B$5:$T$500,16,FALSE))=TRUE,0,VLOOKUP($A47,Paste!$B$5:$T$500,16,FALSE)) -> 0 | F47: =IF(ISERROR(VLOOKUP($A47,Paste!$B$5:$T$500,19,FALSE))=TRUE,0,VLOOKUP($A47,Paste!$B$5:$T$500,19,FALSE)) -> 0 | I47: 40318 | J47: W LRA4 | K47: 23 | L47: 10
A48: 30007 | B48: =IF(ISERROR(VLOOKUP($A48,Paste!$B$5:$T$500,4,FALSE))=TRUE,0,VLOOKUP($A48,Paste!$B$5:$T$500,4,FALSE)) -> 0 | C48: =IF(ISERROR(VLOOKUP($A48,Paste!$B$5:$T$500,8,FALSE))=TRUE,0,VLOOKUP($A48,Paste!$B$5:$T$500,8,FALSE)) -> 0 | D48: =IF(ISERROR(VLOOKUP($A48,Paste!$B$5:$T$500,11,FALSE))=TRUE,0,VLOOKUP($A48,Paste!$B$5:$T$500,11,FALSE)) -> 0 | E48: =IF(ISERROR(VLOOKUP($A48,Paste!$B$5:$T$500,16,FALSE))=TRUE,0,VLOOKUP($A48,Paste!$B$5:$T$500,16,FALSE)) -> 0 | F48: =IF(ISERROR(VLOOKUP($A48,Paste!$B$5:$T$500,19,FALSE))=TRUE,0,VLOOKUP($A48,Paste!$B$5:$T$500,19,FALSE)) -> 0
A49: 30008 | B49: =IF(ISERROR(VLOOKUP($A49,Paste!$B$5:$T$500,4,FALSE))=TRUE,0,VLOOKUP($A49,Paste!$B$5:$T$500,4,FALSE)) -> 0 | C49: =IF(ISERROR(VLOOKUP($A49,Paste!$B$5:$T$500,8,FALSE))=TRUE,0,VLOOKUP($A49,Paste!$B$5:$T$500,8,FALSE)) -> 0 | D49: =IF(ISERROR(VLOOKUP($A49,Paste!$B$5:$T$500,11,FALSE))=TRUE,0,VLOOKUP($A49,Paste!$B$5:$T$500,11,FALSE)) -> 0 | E49: =IF(ISERROR(VLOOKUP($A49,Paste!$B$5:$T$500,16,FALSE))=TRUE,0,VLOOKUP($A49,Paste!$B$5:$T$500,16,FALSE)) -> 0 | F49: =IF(ISERROR(VLOOKUP($A49,Paste!$B$5:$T$500,19,FALSE))=TRUE,0,VLOOKUP($A49,Paste!$B$5:$T$500,19,FALSE)) -> 0 | I49: 40319 | J49: 1 LRA5 | K49: 725 | L49: 346
A50: 30009 | B50: =IF(ISERROR(VLOOKUP($A50,Paste!$B$5:$T$500,4,FALSE))=TRUE,0,VLOOKUP($A50,Paste!$B$5:$T$500,4,FALSE)) -> 0 | C50: =IF(ISERROR(VLOOKUP($A50,Paste!$B$5:$T$500,8,FALSE))=TRUE,0,VLOOKUP($A50,Paste!$B$5:$T$500,8,FALSE)) -> 0 | D50: =IF(ISERROR(VLOOKUP($A50,Paste!$B$5:$T$500,11,FALSE))=TRUE,0,VLOOKUP($A50,Paste!$B$5:$T$500,11,FALSE)) -> 0 | E50: =IF(ISERROR(VLOOKUP($A50,Paste!$B$5:$T$500,16,FALSE))=TRUE,0,VLOOKUP($A50,Paste!$B$5:$T$500,16,FALSE)) -> 0 | F50: =IF(ISERROR(VLOOKUP($A50,Paste!$B$5:$T$500,19,FALSE))=TRUE,0,VLOOKUP($A50,Paste!$B$5:$T$500,19,FALSE)) -> 0 | I50: 40320 | J50: 2 LRA5 | K50: 136 | L50: =K51 -> 91
A51: 30010 | B51: =IF(ISERROR(VLOOKUP($A51,Paste!$B$5:$T$500,4,FALSE))=TRUE,0,VLOOKUP($A51,Paste!$B$5:$T$500,4,FALSE)) -> 0 | C51: =IF(ISERROR(VLOOKUP($A51,Paste!$B$5:$T$500,8,FALSE))=TRUE,0,VLOOKUP($A51,Paste!$B$5:$T$500,8,FALSE)) -> 0 | D51: =IF(ISERROR(VLOOKUP($A51,Paste!$B$5:$T$500,11,FALSE))=TRUE,0,VLOOKUP($A51,Paste!$B$5:$T$500,11,FALSE)) -> 0 | E51: =IF(ISERROR(VLOOKUP($A51,Paste!$B$5:$T$500,16,FALSE))=TRUE,0,VLOOKUP($A51,Paste!$B$5:$T$500,16,FALSE)) -> 0 | F51: =IF(ISERROR(VLOOKUP($A51,Paste!$B$5:$T$500,19,FALSE))=TRUE,0,VLOOKUP($A51,Paste!$B$5:$T$500,19,FALSE)) -> 0 | I51: 40321 | J51: 3 LRA5 | K51: 91 | L51: =K52 -> 45
A52: 30011 | B52: =IF(ISERROR(VLOOKUP($A52,Paste!$B$5:$T$500,4,FALSE))=TRUE,0,VLOOKUP($A52,Paste!$B$5:$T$500,4,FALSE)) -> 0 | C52: =IF(ISERROR(VLOOKUP($A52,Paste!$B$5:$T$500,8,FALSE))=TRUE,0,VLOOKUP($A52,Paste!$B$5:$T$500,8,FALSE)) -> 0 | D52: =IF(ISERROR(VLOOKUP($A52,Paste!$B$5:$T$500,11,FALSE))=TRUE,0,VLOOKUP($A52,Paste!$B$5:$T$500,11,FALSE)) -> 0 | E52: =IF(ISERROR(VLOOKUP($A52,Paste!$B$5:$T$500,16,FALSE))=TRUE,0,VLOOKUP($A52,Paste!$B$5:$T$500,16,FALSE)) -> 0 | F52: =IF(ISERROR(VLOOKUP($A52,Paste!$B$5:$T$500,19,FALSE))=TRUE,0,VLOOKUP($A52,Paste!$B$5:$T$500,19,FALSE)) -> 0 | I52: 40322 | J52: 4 LRA5 | K52: 45 | L52: 23
A53: 30012 | B53: =IF(ISERROR(VLOOKUP($A53,Paste!$B$5:$T$500,4,FALSE))=TRUE,0,VLOOKUP($A53,Paste!$B$5:$T$500,4,FALSE)) -> 0 | C53: =IF(ISERROR(VLOOKUP($A53,Paste!$B$5:$T$500,8,FALSE))=TRUE,0,VLOOKUP($A53,Paste!$B$5:$T$500,8,FALSE)) -> 0 | D53: =IF(ISERROR(VLOOKUP($A53,Paste!$B$5:$T$500,11,FALSE))=TRUE,0,VLOOKUP($A53,Paste!$B$5:$T$500,11,FALSE)) -> 0 | E53: =IF(ISERROR(VLOOKUP($A53,Paste!$B$5:$T$500,16,FALSE))=TRUE,0,VLOOKUP($A53,Paste!$B$5:$T$500,16,FALSE)) -> 0 | F53: =IF(ISERROR(VLOOKUP($A53,Paste!$B$5:$T$500,19,FALSE))=TRUE,0,VLOOKUP($A53,Paste!$B$5:$T$500,19,FALSE)) -> 0 | I53: 40323 | J53: 5 LRA5 | K53: 23 | L53: 10
A54: 30013 | B54: =IF(ISERROR(VLOOKUP($A54,Paste!$B$5:$T$500,4,FALSE))=TRUE,0,VLOOKUP($A54,Paste!$B$5:$T$500,4,FALSE)) -> 0 | C54: =IF(ISERROR(VLOOKUP($A54,Paste!$B$5:$T$500,8,FALSE))=TRUE,0,VLOOKUP($A54,Paste!$B$5:$T$500,8,FALSE)) -> 0 | D54: =IF(ISERROR(VLOOKUP($A54,Paste!$B$5:$T$500,11,FALSE))=TRUE,0,VLOOKUP($A54,Paste!$B$5:$T$500,11,FALSE)) -> 0 | E54: =IF(ISERROR(VLOOKUP($A54,Paste!$B$5:$T$500,16,FALSE))=TRUE,0,VLOOKUP($A54,Paste!$B$5:$T$500,16,FALSE)) -> 0 | F54: =IF(ISERROR(VLOOKUP($A54,Paste!$B$5:$T$500,19,FALSE))=TRUE,0,VLOOKUP($A54,Paste!$B$5:$T$500,19,FALSE)) -> 0 | I54: 40324 | J54: W LRA5 | K54: 10 | L54: 10
A55: 30014 | B55: =IF(ISERROR(VLOOKUP($A55,Paste!$B$5:$T$500,4,FALSE))=TRUE,0,VLOOKUP($A55,Paste!$B$5:$T$500,4,FALSE)) -> 0 | C55: =IF(ISERROR(VLOOKUP($A55,Paste!$B$5:$T$500,8,FALSE))=TRUE,0,VLOOKUP($A55,Paste!$B$5:$T$500,8,FALSE)) -> 0 | D55: =IF(ISERROR(VLOOKUP($A55,Paste!$B$5:$T$500,11,FALSE))=TRUE,0,VLOOKUP($A55,Paste!$B$5:$T$500,11,FALSE)) -> 0 | E55: =IF(ISERROR(VLOOKUP($A55,Paste!$B$5:$T$500,16,FALSE))=TRUE,0,VLOOKUP($A55,Paste!$B$5:$T$500,16,FALSE)) -> 0 | F55: =IF(ISERROR(VLOOKUP($A55,Paste!$B$5:$T$500,19,FALSE))=TRUE,0,VLOOKUP($A55,Paste!$B$5:$T$500,19,FALSE)) -> 0
A56: 30015 | B56: =IF(ISERROR(VLOOKUP($A56,Paste!$B$5:$T$500,4,FALSE))=TRUE,0,VLOOKUP($A56,Paste!$B$5:$T$500,4,FALSE)) -> 0 | C56: =IF(ISERROR(VLOOKUP($A56,Paste!$B$5:$T$500,8,FALSE))=TRUE,0,VLOOKUP($A56,Paste!$B$5:$T$500,8,FALSE)) -> 0 | D56: =IF(ISERROR(VLOOKUP($A56,Paste!$B$5:$T$500,11,FALSE))=TRUE,0,VLOOKUP($A56,Paste!$B$5:$T$500,11,FALSE)) -> 0 | E56: =IF(ISERROR(VLOOKUP($A56,Paste!$B$5:$T$500,16,FALSE))=TRUE,0,VLOOKUP($A56,Paste!$B$5:$T$500,16,FALSE)) -> 0 | F56: =IF(ISERROR(VLOOKUP($A56,Paste!$B$5:$T$500,19,FALSE))=TRUE,0,VLOOKUP($A56,Paste!$B$5:$T$500,19,FALSE)) -> 0
A57: 30016 | B57: =IF(ISERROR(VLOOKUP($A57,Paste!$B$5:$T$500,4,FALSE))=TRUE,0,VLOOKUP($A57,Paste!$B$5:$T$500,4,FALSE)) -> 0 | C57: =IF(ISERROR(VLOOKUP($A57,Paste!$B$5:$T$500,8,FALSE))=TRUE,0,VLOOKUP($A57,Paste!$B$5:$T$500,8,FALSE)) -> 0 | D57: =IF(ISERROR(VLOOKUP($A57,Paste!$B$5:$T$500,11,FALSE))=TRUE,0,VLOOKUP($A57,Paste!$B$5:$T$500,11,FALSE)) -> 0 | E57: =IF(ISERROR(VLOOKUP($A57,Paste!$B$5:$T$500,16,FALSE))=TRUE,0,VLOOKUP($A57,Paste!$B$5:$T$500,16,FALSE)) -> 0 | F57: =IF(ISERROR(VLOOKUP($A57,Paste!$B$5:$T$500,19,FALSE))=TRUE,0,VLOOKUP($A57,Paste!$B$5:$T$500,19,FALSE)) -> 0
A58: 30017 | B58: =IF(ISERROR(VLOOKUP($A58,Paste!$B$5:$T$500,4,FALSE))=TRUE,0,VLOOKUP($A58,Paste!$B$5:$T$500,4,FALSE)) -> 0 | C58: =IF(ISERROR(VLOOKUP($A58,Paste!$B$5:$T$500,8,FALSE))=TRUE,0,VLOOKUP($A58,Paste!$B$5:$T$500,8,FALSE)) -> 0 | D58: =IF(ISERROR(VLOOKUP($A58,Paste!$B$5:$T$500,11,FALSE))=TRUE,0,VLOOKUP($A58,Paste!$B$5:$T$500,11,FALSE)) -> 0 | E58: =IF(ISERROR(VLOOKUP($A58,Paste!$B$5:$T$500,16,FALSE))=TRUE,0,VLOOKUP($A58,Paste!$B$5:$T$500,16,FALSE)) -> 0 | F58: =IF(ISERROR(VLOOKUP($A58,Paste!$B$5:$T$500,19,FALSE))=TRUE,0,VLOOKUP($A58,Paste!$B$5:$T$500,19,FALSE)) -> 0
A59: 30018 | B59: =IF(ISERROR(VLOOKUP($A59,Paste!$B$5:$T$500,4,FALSE))=TRUE,0,VLOOKUP($A59,Paste!$B$5:$T$500,4,FALSE)) -> 0 | C59: =IF(ISERROR(VLOOKUP($A59,Paste!$B$5:$T$500,8,FALSE))=TRUE,0,VLOOKUP($A59,Paste!$B$5:$T$500,8,FALSE)) -> 0 | D59: =IF(ISERROR(VLOOKUP($A59,Paste!$B$5:$T$500,11,FALSE))=TRUE,0,VLOOKUP($A59,Paste!$B$5:$T$500,11,FALSE)) -> 0 | E59: =IF(ISERROR(VLOOKUP($A59,Paste!$B$5:$T$500,16,FALSE))=TRUE,0,VLOOKUP($A59,Paste!$B$5:$T$500,16,FALSE)) -> 0 | F59: =IF(ISERROR(VLOOKUP($A59,Paste!$B$5:$T$500,19,FALSE))=TRUE,0,VLOOKUP($A59,Paste!$B$5:$T$500,19,FALSE)) -> 0
A60: 30019 | B60: =IF(ISERROR(VLOOKUP($A60,Paste!$B$5:$T$500,4,FALSE))=TRUE,0,VLOOKUP($A60,Paste!$B$5:$T$500,4,FALSE)) -> 0 | C60: =IF(ISERROR(VLOOKUP($A60,Paste!$B$5:$T$500,8,FALSE))=TRUE,0,VLOOKUP($A60,Paste!$B$5:$T$500,8,FALSE)) -> 0 | D60: =IF(ISERROR(VLOOKUP($A60,Paste!$B$5:$T$500,11,FALSE))=TRUE,0,VLOOKUP($A60,Paste!$B$5:$T$500,11,FALSE)) -> 0 | E60: =IF(ISERROR(VLOOKUP($A60,Paste!$B$5:$T$500,16,FALSE))=TRUE,0,VLOOKUP($A60,Paste!$B$5:$T$500,16,FALSE)) -> 0 | F60: =IF(ISERROR(VLOOKUP($A60,Paste!$B$5:$T$500,19,FALSE))=TRUE,0,VLOOKUP($A60,Paste!$B$5:$T$500,19,FALSE)) -> 0
A61: 30020 | B61: =IF(ISERROR(VLOOKUP($A61,Paste!$B$5:$T$500,4,FALSE))=TRUE,0,VLOOKUP($A61,Paste!$B$5:$T$500,4,FALSE)) -> 0 | C61: =IF(ISERROR(VLOOKUP($A61,Paste!$B$5:$T$500,8,FALSE))=TRUE,0,VLOOKUP($A61,Paste!$B$5:$T$500,8,FALSE)) -> 0 | D61: =IF(ISERROR(VLOOKUP($A61,Paste!$B$5:$T$500,11,FALSE))=TRUE,0,VLOOKUP($A61,Paste!$B$5:$T$500,11,FALSE)) -> 0 | E61: =IF(ISERROR(VLOOKUP($A61,Paste!$B$5:$T$500,16,FALSE))=TRUE,0,VLOOKUP($A61,Paste!$B$5:$T$500,16,FALSE)) -> 0 | F61: =IF(ISERROR(VLOOKUP($A61,Paste!$B$5:$T$500,19,FALSE))=TRUE,0,VLOOKUP($A61,Paste!$B$5:$T$500,19,FALSE)) -> 0
A62: 30021 | B62: =IF(ISERROR(VLOOKUP($A62,Paste!$B$5:$T$500,4,FALSE))=TRUE,0,VLOOKUP($A62,Paste!$B$5:$T$500,4,FALSE)) -> 0 | C62: =IF(ISERROR(VLOOKUP($A62,Paste!$B$5:$T$500,8,FALSE))=TRUE,0,VLOOKUP($A62,Paste!$B$5:$T$500,8,FALSE)) -> 0 | D62: =IF(ISERROR(VLOOKUP($A62,Paste!$B$5:$T$500,11,FALSE))=TRUE,0,VLOOKUP($A62,Paste!$B$5:$T$500,11,FALSE)) -> 0 | E62: =IF(ISERROR(VLOOKUP($A62,Paste!$B$5:$T$500,16,FALSE))=TRUE,0,VLOOKUP($A62,Paste!$B$5:$T$500,16,FALSE)) -> 0 | F62: =IF(ISERROR(VLOOKUP($A62,Paste!$B$5:$T$500,19,FALSE))=TRUE,0,VLOOKUP($A62,Paste!$B$5:$T$500,19,FALSE)) -> 0
A63: 30022 | B63: =IF(ISERROR(VLOOKUP($A63,Paste!$B$5:$T$500,4,FALSE))=TRUE,0,VLOOKUP($A63,Paste!$B$5:$T$500,4,FALSE)) -> 0 | C63: =IF(ISERROR(VLOOKUP($A63,Paste!$B$5:$T$500,8,FALSE))=TRUE,0,VLOOKUP($A63,Paste!$B$5:$T$500,8,FALSE)) -> 0 | D63: =IF(ISERROR(VLOOKUP($A63,Paste!$B$5:$T$500,11,FALSE))=TRUE,0,VLOOKUP($A63,Paste!$B$5:$T$500,11,FALSE)) -> 0 | E63: =IF(ISERROR(VLOOKUP($A63,Paste!$B$5:$T$500,16,FALSE))=TRUE,0,VLOOKUP($A63,Paste!$B$5:$T$500,16,FALSE)) -> 0 | F63: =IF(ISERROR(VLOOKUP($A63,Paste!$B$5:$T$500,19,FALSE))=TRUE,0,VLOOKUP($A63,Paste!$B$5:$T$500,19,FALSE)) -> 0
A64: 30023 | B64: =IF(ISERROR(VLOOKUP($A64,Paste!$B$5:$T$500,4,FALSE))=TRUE,0,VLOOKUP($A64,Paste!$B$5:$T$500,4,FALSE)) -> 0 | C64: =IF(ISERROR(VLOOKUP($A64,Paste!$B$5:$T$500,8,FALSE))=TRUE,0,VLOOKUP($A64,Paste!$B$5:$T$500,8,FALSE)) -> 0 | D64: =IF(ISERROR(VLOOKUP($A64,Paste!$B$5:$T$500,11,FALSE))=TRUE,0,VLOOKUP($A64,Paste!$B$5:$T$500,11,FALSE)) -> 0 | E64: =IF(ISERROR(VLOOKUP($A64,Paste!$B$5:$T$500,16,FALSE))=TRUE,0,VLOOKUP($A64,Paste!$B$5:$T$500,16,FALSE)) -> 0 | F64: =IF(ISERROR(VLOOKUP($A64,Paste!$B$5:$T$500,19,FALSE))=TRUE,0,VLOOKUP($A64,Paste!$B$5:$T$500,19,FALSE)) -> 0
A65: 30024 | B65: =IF(ISERROR(VLOOKUP($A65,Paste!$B$5:$T$500,4,FALSE))=TRUE,0,VLOOKUP($A65,Paste!$B$5:$T$500,4,FALSE)) -> 0 | C65: =IF(ISERROR(VLOOKUP($A65,Paste!$B$5:$T$500,8,FALSE))=TRUE,0,VLOOKUP($A65,Paste!$B$5:$T$500,8,FALSE)) -> 0 | D65: =IF(ISERROR(VLOOKUP($A65,Paste!$B$5:$T$500,11,FALSE))=TRUE,0,VLOOKUP($A65,Paste!$B$5:$T$500,11,FALSE)) -> 0 | E65: =IF(ISERROR(VLOOKUP($A65,Paste!$B$5:$T$500,16,FALSE))=TRUE,0,VLOOKUP($A65,Paste!$B$5:$T$500,16,FALSE)) -> 0 | F65: =IF(ISERROR(VLOOKUP($A65,Paste!$B$5:$T$500,19,FALSE))=TRUE,0,VLOOKUP($A65,Paste!$B$5:$T$500,19,FALSE)) -> 0
A66: 30025 | B66: =IF(ISERROR(VLOOKUP($A66,Paste!$B$5:$T$500,4,FALSE))=TRUE,0,VLOOKUP($A66,Paste!$B$5:$T$500,4,FALSE)) -> 0 | C66: =IF(ISERROR(VLOOKUP($A66,Paste!$B$5:$T$500,8,FALSE))=TRUE,0,VLOOKUP($A66,Paste!$B$5:$T$500,8,FALSE)) -> 0 | D66: =IF(ISERROR(VLOOKUP($A66,Paste!$B$5:$T$500,11,FALSE))=TRUE,0,VLOOKUP($A66,Paste!$B$5:$T$500,11,FALSE)) -> 0 | E66: =IF(ISERROR(VLOOKUP($A66,Paste!$B$5:$T$500,16,FALSE))=TRUE,0,VLOOKUP($A66,Paste!$B$5:$T$500,16,FALSE)) -> 0 | F66: =IF(ISERROR(VLOOKUP($A66,Paste!$B$5:$T$500,19,FALSE))=TRUE,0,VLOOKUP($A66,Paste!$B$5:$T$500,19,FALSE)) -> 0
A67: 30026 | B67: =IF(ISERROR(VLOOKUP($A67,Paste!$B$5:$T$500,4,FALSE))=TRUE,0,VLOOKUP($A67,Paste!$B$5:$T$500,4,FALSE)) -> 0 | C67: =IF(ISERROR(VLOOKUP($A67,Paste!$B$5:$T$500,8,FALSE))=TRUE,0,VLOOKUP($A67,Paste!$B$5:$T$500,8,FALSE)) -> 0 | D67: =IF(ISERROR(VLOOKUP($A67,Paste!$B$5:$T$500,11,FALSE))=TRUE,0,VLOOKUP($A67,Paste!$B$5:$T$500,11,FALSE)) -> 0 | E67: =IF(ISERROR(VLOOKUP($A67,Paste!$B$5:$T$500,16,FALSE))=TRUE,0,VLOOKUP($A67,Paste!$B$5:$T$500,16,FALSE)) -> 0 | F67: =IF(ISERROR(VLOOKUP($A67,Paste!$B$5:$T$500,19,FALSE))=TRUE,0,VLOOKUP($A67,Paste!$B$5:$T$500,19,FALSE)) -> 0
A68: 30027 | B68: =IF(ISERROR(VLOOKUP($A68,Paste!$B$5:$T$500,4,FALSE))=TRUE,0,VLOOKUP($A68,Paste!$B$5:$T$500,4,FALSE)) -> 0 | C68: =IF(ISERROR(VLOOKUP($A68,Paste!$B$5:$T$500,8,FALSE))=TRUE,0,VLOOKUP($A68,Paste!$B$5:$T$500,8,FALSE)) -> 0 | D68: =IF(ISERROR(VLOOKUP($A68,Paste!$B$5:$T$500,11,FALSE))=TRUE,0,VLOOKUP($A68,Paste!$B$5:$T$500,11,FALSE)) -> 0 | E68: =IF(ISERROR(VLOOKUP($A68,Paste!$B$5:$T$500,16,FALSE))=TRUE,0,VLOOKUP($A68,Paste!$B$5:$T$500,16,FALSE)) -> 0 | F68: =IF(ISERROR(VLOOKUP($A68,Paste!$B$5:$T$500,19,FALSE))=TRUE,0,VLOOKUP($A68,Paste!$B$5:$T$500,19,FALSE)) -> 0
A69: 30028 | B69: =IF(ISERROR(VLOOKUP($A69,Paste!$B$5:$T$500,4,FALSE))=TRUE,0,VLOOKUP($A69,Paste!$B$5:$T$500,4,FALSE)) -> 0 | C69: =IF(ISERROR(VLOOKUP($A69,Paste!$B$5:$T$500,8,FALSE))=TRUE,0,VLOOKUP($A69,Paste!$B$5:$T$500,8,FALSE)) -> 0 | D69: =IF(ISERROR(VLOOKUP($A69,Paste!$B$5:$T$500,11,FALSE))=TRUE,0,VLOOKUP($A69,Paste!$B$5:$T$500,11,FALSE)) -> 0 | E69: =IF(ISERROR(VLOOKUP($A69,Paste!$B$5:$T$500,16,FALSE))=TRUE,0,VLOOKUP($A69,Paste!$B$5:$T$500,16,FALSE)) -> 0 | F69: =IF(ISERROR(VLOOKUP($A69,Paste!$B$5:$T$500,19,FALSE))=TRUE,0,VLOOKUP($A69,Paste!$B$5:$T$500,19,FALSE)) -> 0
A70: 30029 | B70: =IF(ISERROR(VLOOKUP($A70,Paste!$B$5:$T$500,4,FALSE))=TRUE,0,VLOOKUP($A70,Paste!$B$5:$T$500,4,FALSE)) -> 0 | C70: =IF(ISERROR(VLOOKUP($A70,Paste!$B$5:$T$500,8,FALSE))=TRUE,0,VLOOKUP($A70,Paste!$B$5:$T$500,8,FALSE)) -> 0 | D70: =IF(ISERROR(VLOOKUP($A70,Paste!$B$5:$T$500,11,FALSE))=TRUE,0,VLOOKUP($A70,Paste!$B$5:$T$500,11,FALSE)) -> 0 | E70: =IF(ISERROR(VLOOKUP($A70,Paste!$B$5:$T$500,16,FALSE))=TRUE,0,VLOOKUP($A70,Paste!$B$5:$T$500,16,FALSE)) -> 0 | F70: =IF(ISERROR(VLOOKUP($A70,Paste!$B$5:$T$500,19,FALSE))=TRUE,0,VLOOKUP($A70,Paste!$B$5:$T$500,19,FALSE)) -> 0
A71: 30088 | B71: =IF(ISERROR(VLOOKUP($A71,Paste!$B$5:$T$500,4,FALSE))=TRUE,0,VLOOKUP($A71,Paste!$B$5:$T$500,4,FALSE)) -> 0 | C71: =IF(ISERROR(VLOOKUP($A71,Paste!$B$5:$T$500,8,FALSE))=TRUE,0,VLOOKUP($A71,Paste!$B$5:$T$500,8,FALSE)) -> 0 | D71: =IF(ISERROR(VLOOKUP($A71,Paste!$B$5:$T$500,11,FALSE))=TRUE,0,VLOOKUP($A71,Paste!$B$5:$T$500,11,FALSE)) -> 0 | E71: =IF(ISERROR(VLOOKUP($A71,Paste!$B$5:$T$500,16,FALSE))=TRUE,0,VLOOKUP($A71,Paste!$B$5:$T$500,16,FALSE)) -> 0 | F71: =IF(ISERROR(VLOOKUP($A71,Paste!$B$5:$T$500,19,FALSE))=TRUE,0,VLOOKUP($A71,Paste!$B$5:$T$500,19,FALSE)) -> 0
A72: 30101 | B72: =IF(ISERROR(VLOOKUP($A72,Paste!$B$5:$T$500,4,FALSE))=TRUE,0,VLOOKUP($A72,Paste!$B$5:$T$500,4,FALSE)) -> 0 | C72: =IF(ISERROR(VLOOKUP($A72,Paste!$B$5:$T$500,8,FALSE))=TRUE,0,VLOOKUP($A72,Paste!$B$5:$T$500,8,FALSE)) -> 0 | D72: =IF(ISERROR(VLOOKUP($A72,Paste!$B$5:$T$500,11,FALSE))=TRUE,0,VLOOKUP($A72,Paste!$B$5:$T$500,11,FALSE)) -> 0 | E72: =IF(ISERROR(VLOOKUP($A72,Paste!$B$5:$T$500,16,FALSE))=TRUE,0,VLOOKUP($A72,Paste!$B$5:$T$500,16,FALSE)) -> 0 | F72: =IF(ISERROR(VLOOKUP($A72,Paste!$B$5:$T$500,19,FALSE))=TRUE,0,VLOOKUP($A72,Paste!$B$5:$T$500,19,FALSE)) -> 0
A73: 30102 | B73: =IF(ISERROR(VLOOKUP($A73,Paste!$B$5:$T$500,4,FALSE))=TRUE,0,VLOOKUP($A73,Paste!$B$5:$T$500,4,FALSE)) -> 0 | C73: =IF(ISERROR(VLOOKUP($A73,Paste!$B$5:$T$500,8,FALSE))=TRUE,0,VLOOKUP($A73,Paste!$B$5:$T$500,8,FALSE)) -> 0 | D73: =IF(ISERROR(VLOOKUP($A73,Paste!$B$5:$T$500,11,FALSE))=TRUE,0,VLOOKUP($A73,Paste!$B$5:$T$500,11,FALSE)) -> 0 | E73: =IF(ISERROR(VLOOKUP($A73,Paste!$B$5:$T$500,16,FALSE))=TRUE,0,VLOOKUP($A73,Paste!$B$5:$T$500,16,FALSE)) -> 0 | F73: =IF(ISERROR(VLOOKUP($A73,Paste!$B$5:$T$500,19,FALSE))=TRUE,0,VLOOKUP($A73,Paste!$B$5:$T$500,19,FALSE)) -> 0
A74: 30103 | B74: =IF(ISERROR(VLOOKUP($A74,Paste!$B$5:$T$500,4,FALSE))=TRUE,0,VLOOKUP($A74,Paste!$B$5:$T$500,4,FALSE)) -> 0 | C74: =IF(ISERROR(VLOOKUP($A74,Paste!$B$5:$T$500,8,FALSE))=TRUE,0,VLOOKUP($A74,Paste!$B$5:$T$500,8,FALSE)) -> 0 | D74: =IF(ISERROR(VLOOKUP($A74,Paste!$B$5:$T$500,11,FALSE))=TRUE,0,VLOOKUP($A74,Paste!$B$5:$T$500,11,FALSE)) -> 0 | E74: =IF(ISERROR(VLOOKUP($A74,Paste!$B$5:$T$500,16,FALSE))=TRUE,0,VLOOKUP($A74,Paste!$B$5:$T$500,16,FALSE)) -> 0 | F74: =IF(ISERROR(VLOOKUP($A74,Paste!$B$5:$T$500,19,FALSE))=TRUE,0,VLOOKUP($A74,Paste!$B$5:$T$500,19,FALSE)) -> 0
A75: 30104 | B75: =IF(ISERROR(VLOOKUP($A75,Paste!$B$5:$T$500,4,FALSE))=TRUE,0,VLOOKUP($A75,Paste!$B$5:$T$500,4,FALSE)) -> 0 | C75: =IF(ISERROR(VLOOKUP($A75,Paste!$B$5:$T$500,8,FALSE))=TRUE,0,VLOOKUP($A75,Paste!$B$5:$T$500,8,FALSE)) -> 0 | D75: =IF(ISERROR(VLOOKUP($A75,Paste!$B$5:$T$500,11,FALSE))=TRUE,0,VLOOKUP($A75,Paste!$B$5:$T$500,11,FALSE)) -> 0 | E75: =IF(ISERROR(VLOOKUP($A75,Paste!$B$5:$T$500,16,FALSE))=TRUE,0,VLOOKUP($A75,Paste!$B$5:$T$500,16,FALSE)) -> 0 | F75: =IF(ISERROR(VLOOKUP($A75,Paste!$B$5:$T$500,19,FALSE))=TRUE,0,VLOOKUP($A75,Paste!$B$5:$T$500,19,FALSE)) -> 0
A76: 30105 | B76: =IF(ISERROR(VLOOKUP($A76,Paste!$B$5:$T$500,4,FALSE))=TRUE,0,VLOOKUP($A76,Paste!$B$5:$T$500,4,FALSE)) -> 0 | C76: =IF(ISERROR(VLOOKUP($A76,Paste!$B$5:$T$500,8,FALSE))=TRUE,0,VLOOKUP($A76,Paste!$B$5:$T$500,8,FALSE)) -> 0 | D76: =IF(ISERROR(VLOOKUP($A76,Paste!$B$5:$T$500,11,FALSE))=TRUE,0,VLOOKUP($A76,Paste!$B$5:$T$500,11,FALSE)) -> 0 | E76: =IF(ISERROR(VLOOKUP($A76,Paste!$B$5:$T$500,16,FALSE))=TRUE,0,VLOOKUP($A76,Paste!$B$5:$T$500,16,FALSE)) -> 0 | F76: =IF(ISERROR(VLOOKUP($A76,Paste!$B$5:$T$500,19,FALSE))=TRUE,0,VLOOKUP($A76,Paste!$B$5:$T$500,19,FALSE)) -> 0
A77: 30106 | B77: =IF(ISERROR(VLOOKUP($A77,Paste!$B$5:$T$500,4,FALSE))=TRUE,0,VLOOKUP($A77,Paste!$B$5:$T$500,4,FALSE)) -> 0 | C77: =IF(ISERROR(VLOOKUP($A77,Paste!$B$5:$T$500,8,FALSE))=TRUE,0,VLOOKUP($A77,Paste!$B$5:$T$500,8,FALSE)) -> 0 | D77: =IF(ISERROR(VLOOKUP($A77,Paste!$B$5:$T$500,11,FALSE))=TRUE,0,VLOOKUP($A77,Paste!$B$5:$T$500,11,FALSE)) -> 0 | E77: =IF(ISERROR(VLOOKUP($A77,Paste!$B$5:$T$500,16,FALSE))=TRUE,0,VLOOKUP($A77,Paste!$B$5:$T$500,16,FALSE)) -> 0 | F77: =IF(ISERROR(VLOOKUP($A77,Paste!$B$5:$T$500,19,FALSE))=TRUE,0,VLOOKUP($A77,Paste!$B$5:$T$500,19,FALSE)) -> 0
A78: 30107 | B78: =IF(ISERROR(VLOOKUP($A78,Paste!$B$5:$T$500,4,FALSE))=TRUE,0,VLOOKUP($A78,Paste!$B$5:$T$500,4,FALSE)) -> 0 | C78: =IF(ISERROR(VLOOKUP($A78,Paste!$B$5:$T$500,8,FALSE))=TRUE,0,VLOOKUP($A78,Paste!$B$5:$T$500,8,FALSE)) -> 0 | D78: =IF(ISERROR(VLOOKUP($A78,Paste!$B$5:$T$500,11,FALSE))=TRUE,0,VLOOKUP($A78,Paste!$B$5:$T$500,11,FALSE)) -> 0 | E78: =IF(ISERROR(VLOOKUP($A78,Paste!$B$5:$T$500,16,FALSE))=TRUE,0,VLOOKUP($A78,Paste!$B$5:$T$500,16,FALSE)) -> 0 | F78: =IF(ISERROR(VLOOKUP($A78,Paste!$B$5:$T$500,19,FALSE))=TRUE,0,VLOOKUP($A78,Paste!$B$5:$T$500,19,FALSE)) -> 0
A79: 30108 | B79: =IF(ISERROR(VLOOKUP($A79,Paste!$B$5:$T$500,4,FALSE))=TRUE,0,VLOOKUP($A79,Paste!$B$5:$T$500,4,FALSE)) -> 0 | C79: =IF(ISERROR(VLOOKUP($A79,Paste!$B$5:$T$500,8,FALSE))=TRUE,0,VLOOKUP($A79,Paste!$B$5:$T$500,8,FALSE)) -> 0 | D79: =IF(ISERROR(VLOOKUP($A79,Paste!$B$5:$T$500,11,FALSE))=TRUE,0,VLOOKUP($A79,Paste!$B$5:$T$500,11,FALSE)) -> 0 | E79: =IF(ISERROR(VLOOKUP($A79,Paste!$B$5:$T$500,16,FALSE))=TRUE,0,VLOOKUP($A79,Paste!$B$5:$T$500,16,FALSE)) -> 0 | F79: =IF(ISERROR(VLOOKUP($A79,Paste!$B$5:$T$500,19,FALSE))=TRUE,0,VLOOKUP($A79,Paste!$B$5:$T$500,19,FALSE)) -> 0
A80: 30109 | B80: =IF(ISERROR(VLOOKUP($A80,Paste!$B$5:$T$500,4,FALSE))=TRUE,0,VLOOKUP($A80,Paste!$B$5:$T$500,4,FALSE)) -> 0 | C80: =IF(ISERROR(VLOOKUP($A80,Paste!$B$5:$T$500,8,FALSE))=TRUE,0,VLOOKUP($A80,Paste!$B$5:$T$500,8,FALSE)) -> 0 | D80: =IF(ISERROR(VLOOKUP($A80,Paste!$B$5:$T$500,11,FALSE))=TRUE,0,VLOOKUP($A80,Paste!$B$5:$T$500,11,FALSE)) -> 0 | E80: =IF(ISERROR(VLOOKUP($A80,Paste!$B$5:$T$500,16,FALSE))=TRUE,0,VLOOKUP($A80,Paste!$B$5:$T$500,16,FALSE)) -> 0 | F80: =IF(ISERROR(VLOOKUP($A80,Paste!$B$5:$T$500,19,FALSE))=TRUE,0,VLOOKUP($A80,Paste!$B$5:$T$500,19,FALSE)) -> 0
A81: 30110 | B81: =IF(ISERROR(VLOOKUP($A81,Paste!$B$5:$T$500,4,FALSE))=TRUE,0,VLOOKUP($A81,Paste!$B$5:$T$500,4,FALSE)) -> 0 | C81: =IF(ISERROR(VLOOKUP($A81,Paste!$B$5:$T$500,8,FALSE))=TRUE,0,VLOOKUP($A81,Paste!$B$5:$T$500,8,FALSE)) -> 0 | D81: =IF(ISERROR(VLOOKUP($A81,Paste!$B$5:$T$500,11,FALSE))=TRUE,0,VLOOKUP($A81,Paste!$B$5:$T$500,11,FALSE)) -> 0 | E81: =IF(ISERROR(VLOOKUP($A81,Paste!$B$5:$T$500,16,FALSE))=TRUE,0,VLOOKUP($A81,Paste!$B$5:$T$500,16,FALSE)) -> 0 | F81: =IF(ISERROR(VLOOKUP($A81,Paste!$B$5:$T$500,19,FALSE))=TRUE,0,VLOOKUP($A81,Paste!$B$5:$T$500,19,FALSE)) -> 0
A82: 30111 | B82: =IF(ISERROR(VLOOKUP($A82,Paste!$B$5:$T$500,4,FALSE))=TRUE,0,VLOOKUP($A82,Paste!$B$5:$T$500,4,FALSE)) -> 0 | C82: =IF(ISERROR(VLOOKUP($A82,Paste!$B$5:$T$500,8,FALSE))=TRUE,0,VLOOKUP($A82,Paste!$B$5:$T$500,8,FALSE)) -> 0 | D82: =IF(ISERROR(VLOOKUP($A82,Paste!$B$5:$T$500,11,FALSE))=TRUE,0,VLOOKUP($A82,Paste!$B$5:$T$500,11,FALSE)) -> 0 | E82: =IF(ISERROR(VLOOKUP($A82,Paste!$B$5:$T$500,16,FALSE))=TRUE,0,VLOOKUP($A82,Paste!$B$5:$T$500,16,FALSE)) -> 0 | F82: =IF(ISERROR(VLOOKUP($A82,Paste!$B$5:$T$500,19,FALSE))=TRUE,0,VLOOKUP($A82,Paste!$B$5:$T$500,19,FALSE)) -> 0
A83: 30112 | B83: =IF(ISERROR(VLOOKUP($A83,Paste!$B$5:$T$500,4,FALSE))=TRUE,0,VLOOKUP($A83,Paste!$B$5:$T$500,4,FALSE)) -> 0 | C83: =IF(ISERROR(VLOOKUP($A83,Paste!$B$5:$T$500,8,FALSE))=TRUE,0,VLOOKUP($A83,Paste!$B$5:$T$500,8,FALSE)) -> 0 | D83: =IF(ISERROR(VLOOKUP($A83,Paste!$B$5:$T$500,11,FALSE))=TRUE,0,VLOOKUP($A83,Paste!$B$5:$T$500,11,FALSE)) -> 0 | E83: =IF(ISERROR(VLOOKUP($A83,Paste!$B$5:$T$500,16,FALSE))=TRUE,0,VLOOKUP($A83,Paste!$B$5:$T$500,16,FALSE)) -> 0 | F83: =IF(ISERROR(VLOOKUP($A83,Paste!$B$5:$T$500,19,FALSE))=TRUE,0,VLOOKUP($A83,Paste!$B$5:$T$500,19,FALSE)) -> 0
A84: 30113 | B84: =IF(ISERROR(VLOOKUP($A84,Paste!$B$5:$T$500,4,FALSE))=TRUE,0,VLOOKUP($A84,Paste!$B$5:$T$500,4,FALSE)) -> 0 | C84: =IF(ISERROR(VLOOKUP($A84,Paste!$B$5:$T$500,8,FALSE))=TRUE,0,VLOOKUP($A84,Paste!$B$5:$T$500,8,FALSE)) -> 0 | D84: =IF(ISERROR(VLOOKUP($A84,Paste!$B$5:$T$500,11,FALSE))=TRUE,0,VLOOKUP($A84,Paste!$B$5:$T$500,11,FALSE)) -> 0 | E84: =IF(ISERROR(VLOOKUP($A84,Paste!$B$5:$T$500,16,FALSE))=TRUE,0,VLOOKUP($A84,Paste!$B$5:$T$500,16,FALSE)) -> 0 | F84: =IF(ISERROR(VLOOKUP($A84,Paste!$B$5:$T$500,19,FALSE))=TRUE,0,VLOOKUP($A84,Paste!$B$5:$T$500,19,FALSE)) -> 0
A85: 30114 | B85: =IF(ISERROR(VLOOKUP($A85,Paste!$B$5:$T$500,4,FALSE))=TRUE,0,VLOOKUP($A85,Paste!$B$5:$T$500,4,FALSE)) -> 0 | C85: =IF(ISERROR(VLOOKUP($A85,Paste!$B$5:$T$500,8,FALSE))=TRUE,0,VLOOKUP($A85,Paste!$B$5:$T$500,8,FALSE)) -> 0 | D85: =IF(ISERROR(VLOOKUP($A85,Paste!$B$5:$T$500,11,FALSE))=TRUE,0,VLOOKUP($A85,Paste!$B$5:$T$500,11,FALSE)) -> 0 | E85: =IF(ISERROR(VLOOKUP($A85,Paste!$B$5:$T$500,16,FALSE))=TRUE,0,VLOOKUP($A85,Paste!$B$5:$T$500,16,FALSE)) -> 0 | F85: =IF(ISERROR(VLOOKUP($A85,Paste!$B$5:$T$500,19,FALSE))=TRUE,0,VLOOKUP($A85,Paste!$B$5:$T$500,19,FALSE)) -> 0
A86: 30115 | B86: =IF(ISERROR(VLOOKUP($A86,Paste!$B$5:$T$500,4,FALSE))=TRUE,0,VLOOKUP($A86,Paste!$B$5:$T$500,4,FALSE)) -> 0 | C86: =IF(ISERROR(VLOOKUP($A86,Paste!$B$5:$T$500,8,FALSE))=TRUE,0,VLOOKUP($A86,Paste!$B$5:$T$500,8,FALSE)) -> 0 | D86: =IF(ISERROR(VLOOKUP($A86,Paste!$B$5:$T$500,11,FALSE))=TRUE,0,VLOOKUP($A86,Paste!$B$5:$T$500,11,FALSE)) -> 0 | E86: =IF(ISERROR(VLOOKUP($A86,Paste!$B$5:$T$500,16,FALSE))=TRUE,0,VLOOKUP($A86,Paste!$B$5:$T$500,16,FALSE)) -> 0 | F86: =IF(ISERROR(VLOOKUP($A86,Paste!$B$5:$T$500,19,FALSE))=TRUE,0,VLOOKUP($A86,Paste!$B$5:$T$500,19,FALSE)) -> 0
A87: 30116 | B87: =IF(ISERROR(VLOOKUP($A87,Paste!$B$5:$T$500,4,FALSE))=TRUE,0,VLOOKUP($A87,Paste!$B$5:$T$500,4,FALSE)) -> 0 | C87: =IF(ISERROR(VLOOKUP($A87,Paste!$B$5:$T$500,8,FALSE))=TRUE,0,VLOOKUP($A87,Paste!$B$5:$T$500,8,FALSE)) -> 0 | D87: =IF(ISERROR(VLOOKUP($A87,Paste!$B$5:$T$500,11,FALSE))=TRUE,0,VLOOKUP($A87,Paste!$B$5:$T$500,11,FALSE)) -> 0 | E87: =IF(ISERROR(VLOOKUP($A87,Paste!$B$5:$T$500,16,FALSE))=TRUE,0,VLOOKUP($A87,Paste!$B$5:$T$500,16,FALSE)) -> 0 | F87: =IF(ISERROR(VLOOKUP($A87,Paste!$B$5:$T$500,19,FALSE))=TRUE,0,VLOOKUP($A87,Paste!$B$5:$T$500,19,FALSE)) -> 0
A88: 30117 | B88: =IF(ISERROR(VLOOKUP($A88,Paste!$B$5:$T$500,4,FALSE))=TRUE,0,VLOOKUP($A88,Paste!$B$5:$T$500,4,FALSE)) -> 0 | C88: =IF(ISERROR(VLOOKUP($A88,Paste!$B$5:$T$500,8,FALSE))=TRUE,0,VLOOKUP($A88,Paste!$B$5:$T$500,8,FALSE)) -> 0 | D88: =IF(ISERROR(VLOOKUP($A88,Paste!$B$5:$T$500,11,FALSE))=TRUE,0,VLOOKUP($A88,Paste!$B$5:$T$500,11,FALSE)) -> 0 | E88: =IF(ISERROR(VLOOKUP($A88,Paste!$B$5:$T$500,16,FALSE))=TRUE,0,VLOOKUP($A88,Paste!$B$5:$T$500,16,FALSE)) -> 0 | F88: =IF(ISERROR(VLOOKUP($A88,Paste!$B$5:$T$500,19,FALSE))=TRUE,0,VLOOKUP($A88,Paste!$B$5:$T$500,19,FALSE)) -> 0
A89: 30118 | B89: =IF(ISERROR(VLOOKUP($A89,Paste!$B$5:$T$500,4,FALSE))=TRUE,0,VLOOKUP($A89,Paste!$B$5:$T$500,4,FALSE)) -> 0 | C89: =IF(ISERROR(VLOOKUP($A89,Paste!$B$5:$T$500,8,FALSE))=TRUE,0,VLOOKUP($A89,Paste!$B$5:$T$500,8,FALSE)) -> 0 | D89: =IF(ISERROR(VLOOKUP($A89,Paste!$B$5:$T$500,11,FALSE))=TRUE,0,VLOOKUP($A89,Paste!$B$5:$T$500,11,FALSE)) -> 0 | E89: =IF(ISERROR(VLOOKUP($A89,Paste!$B$5:$T$500,16,FALSE))=TRUE,0,VLOOKUP($A89,Paste!$B$5:$T$500,16,FALSE)) -> 0 | F89: =IF(ISERROR(VLOOKUP($A89,Paste!$B$5:$T$500,19,FALSE))=TRUE,0,VLOOKUP($A89,Paste!$B$5:$T$500,19,FALSE)) -> 0
A90: 30119 | B90: =IF(ISERROR(VLOOKUP($A90,Paste!$B$5:$T$500,4,FALSE))=TRUE,0,VLOOKUP($A90,Paste!$B$5:$T$500,4,FALSE)) -> 0 | C90: =IF(ISERROR(VLOOKUP($A90,Paste!$B$5:$T$500,8,FALSE))=TRUE,0,VLOOKUP($A90,Paste!$B$5:$T$500,8,FALSE)) -> 0 | D90: =IF(ISERROR(VLOOKUP($A90,Paste!$B$5:$T$500,11,FALSE))=TRUE,0,VLOOKUP($A90,Paste!$B$5:$T$500,11,FALSE)) -> 0 | E90: =IF(ISERROR(VLOOKUP($A90,Paste!$B$5:$T$500,16,FALSE))=TRUE,0,VLOOKUP($A90,Paste!$B$5:$T$500,16,FALSE)) -> 0 | F90: =IF(ISERROR(VLOOKUP($A90,Paste!$B$5:$T$500,19,FALSE))=TRUE,0,VLOOKUP($A90,Paste!$B$5:$T$500,19,FALSE)) -> 0
A91: 30120 | B91: =IF(ISERROR(VLOOKUP($A91,Paste!$B$5:$T$500,4,FALSE))=TRUE,0,VLOOKUP($A91,Paste!$B$5:$T$500,4,FALSE)) -> 0 | C91: =IF(ISERROR(VLOOKUP($A91,Paste!$B$5:$T$500,8,FALSE))=TRUE,0,VLOOKUP($A91,Paste!$B$5:$T$500,8,FALSE)) -> 0 | D91: =IF(ISERROR(VLOOKUP($A91,Paste!$B$5:$T$500,11,FALSE))=TRUE,0,VLOOKUP($A91,Paste!$B$5:$T$500,11,FALSE)) -> 0 | E91: =IF(ISERROR(VLOOKUP($A91,Paste!$B$5:$T$500,16,FALSE))=TRUE,0,VLOOKUP($A91,Paste!$B$5:$T$500,16,FALSE)) -> 0 | F91: =IF(ISERROR(VLOOKUP($A91,Paste!$B$5:$T$500,19,FALSE))=TRUE,0,VLOOKUP($A91,Paste!$B$5:$T$500,19,FALSE)) -> 0
A92: 30121 | B92: =IF(ISERROR(VLOOKUP($A92,Paste!$B$5:$T$500,4,FALSE))=TRUE,0,VLOOKUP($A92,Paste!$B$5:$T$500,4,FALSE)) -> 0 | C92: =IF(ISERROR(VLOOKUP($A92,Paste!$B$5:$T$500,8,FALSE))=TRUE,0,VLOOKUP($A92,Paste!$B$5:$T$500,8,FALSE)) -> 0 | D92: =IF(ISERROR(VLOOKUP($A92,Paste!$B$5:$T$500,11,FALSE))=TRUE,0,VLOOKUP($A92,Paste!$B$5:$T$500,11,FALSE)) -> 0 | E92: =IF(ISERROR(VLOOKUP($A92,Paste!$B$5:$T$500,16,FALSE))=TRUE,0,VLOOKUP($A92,Paste!$B$5:$T$500,16,FALSE)) -> 0 | F92: =IF(ISERROR(VLOOKUP($A92,Paste!$B$5:$T$500,19,FALSE))=TRUE,0,VLOOKUP($A92,Paste!$B$5:$T$500,19,FALSE)) -> 0
A93: 30126 | B93: =IF(ISERROR(VLOOKUP($A93,Paste!$B$5:$T$500,4,FALSE))=TRUE,0,VLOOKUP($A93,Paste!$B$5:$T$500,4,FALSE)) -> 0 | C93: =IF(ISERROR(VLOOKUP($A93,Paste!$B$5:$T$500,8,FALSE))=TRUE,0,VLOOKUP($A93,Paste!$B$5:$T$500,8,FALSE)) -> 0 | D93: =IF(ISERROR(VLOOKUP($A93,Paste!$B$5:$T$500,11,FALSE))=TRUE,0,VLOOKUP($A93,Paste!$B$5:$T$500,11,FALSE)) -> 0 | E93: =IF(ISERROR(VLOOKUP($A93,Paste!$B$5:$T$500,16,FALSE))=TRUE,0,VLOOKUP($A93,Paste!$B$5:$T$500,16,FALSE)) -> 0 | F93: =IF(ISERROR(VLOOKUP($A93,Paste!$B$5:$T$500,19,FALSE))=TRUE,0,VLOOKUP($A93,Paste!$B$5:$T$500,19,FALSE)) -> 0
A94: 30127 | B94: =IF(ISERROR(VLOOKUP($A94,Paste!$B$5:$T$500,4,FALSE))=TRUE,0,VLOOKUP($A94,Paste!$B$5:$T$500,4,FALSE)) -> 0 | C94: =IF(ISERROR(VLOOKUP($A94,Paste!$B$5:$T$500,8,FALSE))=TRUE,0,VLOOKUP($A94,Paste!$B$5:$T$500,8,FALSE)) -> 0 | D94: =IF(ISERROR(VLOOKUP($A94,Paste!$B$5:$T$500,11,FALSE))=TRUE,0,VLOOKUP($A94,Paste!$B$5:$T$500,11,FALSE)) -> 0 | E94: =IF(ISERROR(VLOOKUP($A94,Paste!$B$5:$T$500,16,FALSE))=TRUE,0,VLOOKUP($A94,Paste!$B$5:$T$500,16,FALSE)) -> 0 | F94: =IF(ISERROR(VLOOKUP($A94,Paste!$B$5:$T$500,19,FALSE))=TRUE,0,VLOOKUP($A94,Paste!$B$5:$T$500,19,FALSE)) -> 0
A95: 30129 | B95: =IF(ISERROR(VLOOKUP($A95,Paste!$B$5:$T$500,4,FALSE))=TRUE,0,VLOOKUP($A95,Paste!$B$5:$T$500,4,FALSE)) -> 0 | C95: =IF(ISERROR(VLOOKUP($A95,Paste!$B$5:$T$500,8,FALSE))=TRUE,0,VLOOKUP($A95,Paste!$B$5:$T$500,8,FALSE)) -> 0 | D95: =IF(ISERROR(VLOOKUP($A95,Paste!$B$5:$T$500,11,FALSE))=TRUE,0,VLOOKUP($A95,Paste!$B$5:$T$500,11,FALSE)) -> 0 | E95: =IF(ISERROR(VLOOKUP($A95,Paste!$B$5:$T$500,16,FALSE))=TRUE,0,VLOOKUP($A95,Paste!$B$5:$T$500,16,FALSE)) -> 0 | F95: =IF(ISERROR(VLOOKUP($A95,Paste!$B$5:$T$500,19,FALSE))=TRUE,0,VLOOKUP($A95,Paste!$B$5:$T$500,19,FALSE)) -> 0
A96: 30188 | B96: =IF(ISERROR(VLOOKUP($A96,Paste!$B$5:$T$500,4,FALSE))=TRUE,0,VLOOKUP($A96,Paste!$B$5:$T$500,4,FALSE)) -> 0 | C96: =IF(ISERROR(VLOOKUP($A96,Paste!$B$5:$T$500,8,FALSE))=TRUE,0,VLOOKUP($A96,Paste!$B$5:$T$500,8,FALSE)) -> 0 | D96: =IF(ISERROR(VLOOKUP($A96,Paste!$B$5:$T$500,11,FALSE))=TRUE,0,VLOOKUP($A96,Paste!$B$5:$T$500,11,FALSE)) -> 0 | E96: =IF(ISERROR(VLOOKUP($A96,Paste!$B$5:$T$500,16,FALSE))=TRUE,0,VLOOKUP($A96,Paste!$B$5:$T$500,16,FALSE)) -> 0 | F96: =IF(ISERROR(VLOOKUP($A96,Paste!$B$5:$T$500,19,FALSE))=TRUE,0,VLOOKUP($A96,Paste!$B$5:$T$500,19,FALSE)) -> 0
A97: 30222 | B97: =IF(ISERROR(VLOOKUP($A97,Paste!$B$5:$T$500,4,FALSE))=TRUE,0,VLOOKUP($A97,Paste!$B$5:$T$500,4,FALSE)) -> 0 | C97: =IF(ISERROR(VLOOKUP($A97,Paste!$B$5:$T$500,8,FALSE))=TRUE,0,VLOOKUP($A97,Paste!$B$5:$T$500,8,FALSE)) -> 0 | D97: =IF(ISERROR(VLOOKUP($A97,Paste!$B$5:$T$500,11,FALSE))=TRUE,0,VLOOKUP($A97,Paste!$B$5:$T$500,11,FALSE)) -> 0 | E97: =IF(ISERROR(VLOOKUP($A97,Paste!$B$5:$T$500,16,FALSE))=TRUE,0,VLOOKUP($A97,Paste!$B$5:$T$500,16,FALSE)) -> 0 | F97: =IF(ISERROR(VLOOKUP($A97,Paste!$B$5:$T$500,19,FALSE))=TRUE,0,VLOOKUP($A97,Paste!$B$5:$T$500,19,FALSE)) -> 0
A98: 30223 | B98: =IF(ISERROR(VLOOKUP($A98,Paste!$B$5:$T$500,4,FALSE))=TRUE,0,VLOOKUP($A98,Paste!$B$5:$T$500,4,FALSE)) -> 0 | C98: =IF(ISERROR(VLOOKUP($A98,Paste!$B$5:$T$500,8,FALSE))=TRUE,0,VLOOKUP($A98,Paste!$B$5:$T$500,8,FALSE)) -> 0 | D98: =IF(ISERROR(VLOOKUP($A98,Paste!$B$5:$T$500,11,FALSE))=TRUE,0,VLOOKUP($A98,Paste!$B$5:$T$500,11,FALSE)) -> 0 | E98: =IF(ISERROR(VLOOKUP($A98,Paste!$B$5:$T$500,16,FALSE))=TRUE,0,VLOOKUP($A98,Paste!$B$5:$T$500,16,FALSE)) -> 0 | F98: =IF(ISERROR(VLOOKUP($A98,Paste!$B$5:$T$500,19,FALSE))=TRUE,0,VLOOKUP($A98,Paste!$B$5:$T$500,19,FALSE)) -> 0
A99: 30224 | B99: =IF(ISERROR(VLOOKUP($A99,Paste!$B$5:$T$500,4,FALSE))=TRUE,0,VLOOKUP($A99,Paste!$B$5:$T$500,4,FALSE)) -> 0 | C99: =IF(ISERROR(VLOOKUP($A99,Paste!$B$5:$T$500,8,FALSE))=TRUE,0,VLOOKUP($A99,Paste!$B$5:$T$500,8,FALSE)) -> 0 | D99: =IF(ISERROR(VLOOKUP($A99,Paste!$B$5:$T$500,11,FALSE))=TRUE,0,VLOOKUP($A99,Paste!$B$5:$T$500,11,FALSE)) -> 0 | E99: =IF(ISERROR(VLOOKUP($A99,Paste!$B$5:$T$500,16,FALSE))=TRUE,0,VLOOKUP($A99,Paste!$B$5:$T$500,16,FALSE)) -> 0 | F99: =IF(ISERROR(VLOOKUP($A99,Paste!$B$5:$T$500,19,FALSE))=TRUE,0,VLOOKUP($A99,Paste!$B$5:$T$500,19,FALSE)) -> 0
A100: 30225 | B100: =IF(ISERROR(VLOOKUP($A100,Paste!$B$5:$T$500,4,FALSE))=TRUE,0,VLOOKUP($A100,Paste!$B$5:$T$500,4,FALSE)) -> 0 | C100: =IF(ISERROR(VLOOKUP($A100,Paste!$B$5:$T$500,8,FALSE))=TRUE,0,VLOOKUP($A100,Paste!$B$5:$T$500,8,FALSE)) -> 0 | D100: =IF(ISERROR(VLOOKUP($A100,Paste!$B$5:$T$500,11,FALSE))=TRUE,0,VLOOKUP($A100,Paste!$B$5:$T$500,11,FALSE)) -> 0 | E100: =IF(ISERROR(VLOOKUP($A100,Paste!$B$5:$T$500,16,FALSE))=TRUE,0,VLOOKUP($A100,Paste!$B$5:$T$500,16,FALSE)) -> 0 | F100: =IF(ISERROR(VLOOKUP($A100,Paste!$B$5:$T$500,19,FALSE))=TRUE,0,VLOOKUP($A100,Paste!$B$5:$T$500,19,FALSE)) -> 0
A101: 30329 | B101: =IF(ISERROR(VLOOKUP($A101,Paste!$B$5:$T$500,4,FALSE))=TRUE,0,VLOOKUP($A101,Paste!$B$5:$T$500,4,FALSE)) -> 0 | C101: =IF(ISERROR(VLOOKUP($A101,Paste!$B$5:$T$500,8,FALSE))=TRUE,0,VLOOKUP($A101,Paste!$B$5:$T$500,8,FALSE)) -> 0 | D101: =IF(ISERROR(VLOOKUP($A101,Paste!$B$5:$T$500,11,FALSE))=TRUE,0,VLOOKUP($A101,Paste!$B$5:$T$500,11,FALSE)) -> 0 | E101: =IF(ISERROR(VLOOKUP($A101,Paste!$B$5:$T$500,16,FALSE))=TRUE,0,VLOOKUP($A101,Paste!$B$5:$T$500,16,FALSE)) -> 0 | F101: =IF(ISERROR(VLOOKUP($A101,Paste!$B$5:$T$500,19,FALSE))=TRUE,0,VLOOKUP($A101,Paste!$B$5:$T$500,19,FALSE)) -> 0
A102: 30401 | B102: =IF(ISERROR(VLOOKUP($A102,Paste!$B$5:$T$500,4,FALSE))=TRUE,0,VLOOKUP($A102,Paste!$B$5:$T$500,4,FALSE)) -> 0 | C102: =IF(ISERROR(VLOOKUP($A102,Paste!$B$5:$T$500,8,FALSE))=TRUE,0,VLOOKUP($A102,Paste!$B$5:$T$500,8,FALSE)) -> 0 | D102: =IF(ISERROR(VLOOKUP($A102,Paste!$B$5:$T$500,11,FALSE))=TRUE,0,VLOOKUP($A102,Paste!$B$5:$T$500,11,FALSE)) -> 0 | E102: =IF(ISERROR(VLOOKUP($A102,Paste!$B$5:$T$500,16,FALSE))=TRUE,0,VLOOKUP($A102,Paste!$B$5:$T$500,16,FALSE)) -> 0 | F102: =IF(ISERROR(VLOOKUP($A102,Paste!$B$5:$T$500,19,FALSE))=TRUE,0,VLOOKUP($A102,Paste!$B$5:$T$500,19,FALSE)) -> 0
A103: 30402 | B103: =IF(ISERROR(VLOOKUP($A103,Paste!$B$5:$T$500,4,FALSE))=TRUE,0,VLOOKUP($A103,Paste!$B$5:$T$500,4,FALSE)) -> 0 | C103: =IF(ISERROR(VLOOKUP($A103,Paste!$B$5:$T$500,8,FALSE))=TRUE,0,VLOOKUP($A103,Paste!$B$5:$T$500,8,FALSE)) -> 0 | D103: =IF(ISERROR(VLOOKUP($A103,Paste!$B$5:$T$500,11,FALSE))=TRUE,0,VLOOKUP($A103,Paste!$B$5:$T$500,11,FALSE)) -> 0 | E103: =IF(ISERROR(VLOOKUP($A103,Paste!$B$5:$T$500,16,FALSE))=TRUE,0,VLOOKUP($A103,Paste!$B$5:$T$500,16,FALSE)) -> 0 | F103: =IF(ISERROR(VLOOKUP($A103,Paste!$B$5:$T$500,19,FALSE))=TRUE,0,VLOOKUP($A103,Paste!$B$5:$T$500,19,FALSE)) -> 0
A104: 30403 | B104: =IF(ISERROR(VLOOKUP($A104,Paste!$B$5:$T$500,4,FALSE))=TRUE,0,VLOOKUP($A104,Paste!$B$5:$T$500,4,FALSE)) -> 0 | C104: =IF(ISERROR(VLOOKUP($A104,Paste!$B$5:$T$500,8,FALSE))=TRUE,0,VLOOKUP($A104,Paste!$B$5:$T$500,8,FALSE)) -> 0 | D104: =IF(ISERROR(VLOOKUP($A104,Paste!$B$5:$T$500,11,FALSE))=TRUE,0,VLOOKUP($A104,Paste!$B$5:$T$500,11,FALSE)) -> 0 | E104: =IF(ISERROR(VLOOKUP($A104,Paste!$B$5:$T$500,16,FALSE))=TRUE,0,VLOOKUP($A104,Paste!$B$5:$T$500,16,FALSE)) -> 0 | F104: =IF(ISERROR(VLOOKUP($A104,Paste!$B$5:$T$500,19,FALSE))=TRUE,0,VLOOKUP($A104,Paste!$B$5:$T$500,19,FALSE)) -> 0
A105: 30404 | B105: =IF(ISERROR(VLOOKUP($A105,Paste!$B$5:$T$500,4,FALSE))=TRUE,0,VLOOKUP($A105,Paste!$B$5:$T$500,4,FALSE)) -> 0 | C105: =IF(ISERROR(VLOOKUP($A105,Paste!$B$5:$T$500,8,FALSE))=TRUE,0,VLOOKUP($A105,Paste!$B$5:$T$500,8,FALSE)) -> 0 | D105: =IF(ISERROR(VLOOKUP($A105,Paste!$B$5:$T$500,11,FALSE))=TRUE,0,VLOOKUP($A105,Paste!$B$5:$T$500,11,FALSE)) -> 0 | E105: =IF(ISERROR(VLOOKUP($A105,Paste!$B$5:$T$500,16,FALSE))=TRUE,0,VLOOKUP($A105,Paste!$B$5:$T$500,16,FALSE)) -> 0 | F105: =IF(ISERROR(VLOOKUP($A105,Paste!$B$5:$T$500,19,FALSE))=TRUE,0,VLOOKUP($A105,Paste!$B$5:$T$500,19,FALSE)) -> 0
A106: 30405 | B106: =IF(ISERROR(VLOOKUP($A106,Paste!$B$5:$T$500,4,FALSE))=TRUE,0,VLOOKUP($A106,Paste!$B$5:$T$500,4,FALSE)) -> 0 | C106: =IF(ISERROR(VLOOKUP($A106,Paste!$B$5:$T$500,8,FALSE))=TRUE,0,VLOOKUP($A106,Paste!$B$5:$T$500,8,FALSE)) -> 0 | D106: =IF(ISERROR(VLOOKUP($A106,Paste!$B$5:$T$500,11,FALSE))=TRUE,0,VLOOKUP($A106,Paste!$B$5:$T$500,11,FALSE)) -> 0 | E106: =IF(ISERROR(VLOOKUP($A106,Paste!$B$5:$T$500,16,FALSE))=TRUE,0,VLOOKUP($A106,Paste!$B$5:$T$500,16,FALSE)) -> 0 | F106: =IF(ISERROR(VLOOKUP($A106,Paste!$B$5:$T$500,19,FALSE))=TRUE,0,VLOOKUP($A106,Paste!$B$5:$T$500,19,FALSE)) -> 0
A107: 30406 | B107: =IF(ISERROR(VLOOKUP($A107,Paste!$B$5:$T$500,4,FALSE))=TRUE,0,VLOOKUP($A107,Paste!$B$5:$T$500,4,FALSE)) -> 0 | C107: =IF(ISERROR(VLOOKUP($A107,Paste!$B$5:$T$500,8,FALSE))=TRUE,0,VLOOKUP($A107,Paste!$B$5:$T$500,8,FALSE)) -> 0 | D107: =IF(ISERROR(VLOOKUP($A107,Paste!$B$5:$T$500,11,FALSE))=TRUE,0,VLOOKUP($A107,Paste!$B$5:$T$500,11,FALSE)) -> 0 | E107: =IF(ISERROR(VLOOKUP($A107,Paste!$B$5:$T$500,16,FALSE))=TRUE,0,VLOOKUP($A107,Paste!$B$5:$T$500,16,FALSE)) -> 0 | F107: =IF(ISERROR(VLOOKUP($A107,Paste!$B$5:$T$500,19,FALSE))=TRUE,0,VLOOKUP($A107,Paste!$B$5:$T$500,19,FALSE)) -> 0
A108: 30407 | B108: =IF(ISERROR(VLOOKUP($A108,Paste!$B$5:$T$500,4,FALSE))=TRUE,0,VLOOKUP($A108,Paste!$B$5:$T$500,4,FALSE)) -> 0 | C108: =IF(ISERROR(VLOOKUP($A108,Paste!$B$5:$T$500,8,FALSE))=TRUE,0,VLOOKUP($A108,Paste!$B$5:$T$500,8,FALSE)) -> 0 | D108: =IF(ISERROR(VLOOKUP($A108,Paste!$B$5:$T$500,11,FALSE))=TRUE,0,VLOOKUP($A108,Paste!$B$5:$T$500,11,FALSE)) -> 0 | E108: =IF(ISERROR(VLOOKUP($A108,Paste!$B$5:$T$500,16,FALSE))=TRUE,0,VLOOKUP($A108,Paste!$B$5:$T$500,16,FALSE)) -> 0 | F108: =IF(ISERROR(VLOOKUP($A108,Paste!$B$5:$T$500,19,FALSE))=TRUE,0,VLOOKUP($A108,Paste!$B$5:$T$500,19,FALSE)) -> 0
A109: 30408 | B109: =IF(ISERROR(VLOOKUP($A109,Paste!$B$5:$T$500,4,FALSE))=TRUE,0,VLOOKUP($A109,Paste!$B$5:$T$500,4,FALSE)) -> 0 | C109: =IF(ISERROR(VLOOKUP($A109,Paste!$B$5:$T$500,8,FALSE))=TRUE,0,VLOOKUP($A109,Paste!$B$5:$T$500,8,FALSE)) -> 0 | D109: =IF(ISERROR(VLOOKUP($A109,Paste!$B$5:$T$500,11,FALSE))=TRUE,0,VLOOKUP($A109,Paste!$B$5:$T$500,11,FALSE)) -> 0 | E109: =IF(ISERROR(VLOOKUP($A109,Paste!$B$5:$T$500,16,FALSE))=TRUE,0,VLOOKUP($A109,Paste!$B$5:$T$500,16,FALSE)) -> 0 | F109: =IF(ISERROR(VLOOKUP($A109,Paste!$B$5:$T$500,19,FALSE))=TRUE,0,VLOOKUP($A109,Paste!$B$5:$T$500,19,FALSE)) -> 0
A110: 30409 | B110: =IF(ISERROR(VLOOKUP($A110,Paste!$B$5:$T$500,4,FALSE))=TRUE,0,VLOOKUP($A110,Paste!$B$5:$T$500,4,FALSE)) -> 0 | C110: =IF(ISERROR(VLOOKUP($A110,Paste!$B$5:$T$500,8,FALSE))=TRUE,0,VLOOKUP($A110,Paste!$B$5:$T$500,8,FALSE)) -> 0 | D110: =IF(ISERROR(VLOOKUP($A110,Paste!$B$5:$T$500,11,FALSE))=TRUE,0,VLOOKUP($A110,Paste!$B$5:$T$500,11,FALSE)) -> 0 | E110: =IF(ISERROR(VLOOKUP($A110,Paste!$B$5:$T$500,16,FALSE))=TRUE,0,VLOOKUP($A110,Paste!$B$5:$T$500,16,FALSE)) -> 0 | F110: =IF(ISERROR(VLOOKUP($A110,Paste!$B$5:$T$500,19,FALSE))=TRUE,0,VLOOKUP($A110,Paste!$B$5:$T$500,19,FALSE)) -> 0
A111: 30410 | B111: =IF(ISERROR(VLOOKUP($A111,Paste!$B$5:$T$500,4,FALSE))=TRUE,0,VLOOKUP($A111,Paste!$B$5:$T$500,4,FALSE)) -> 0 | C111: =IF(ISERROR(VLOOKUP($A111,Paste!$B$5:$T$500,8,FALSE))=TRUE,0,VLOOKUP($A111,Paste!$B$5:$T$500,8,FALSE)) -> 0 | D111: =IF(ISERROR(VLOOKUP($A111,Paste!$B$5:$T$500,11,FALSE))=TRUE,0,VLOOKUP($A111,Paste!$B$5:$T$500,11,FALSE)) -> 0 | E111: =IF(ISERROR(VLOOKUP($A111,Paste!$B$5:$T$500,16,FALSE))=TRUE,0,VLOOKUP($A111,Paste!$B$5:$T$500,16,FALSE)) -> 0 | F111: =IF(ISERROR(VLOOKUP($A111,Paste!$B$5:$T$500,19,FALSE))=TRUE,0,VLOOKUP($A111,Paste!$B$5:$T$500,19,FALSE)) -> 0
A112: 30411 | B112: =IF(ISERROR(VLOOKUP($A112,Paste!$B$5:$T$500,4,FALSE))=TRUE,0,VLOOKUP($A112,Paste!$B$5:$T$500,4,FALSE)) -> 0 | C112: =IF(ISERROR(VLOOKUP($A112,Paste!$B$5:$T$500,8,FALSE))=TRUE,0,VLOOKUP($A112,Paste!$B$5:$T$500,8,FALSE)) -> 0 | D112: =IF(ISERROR(VLOOKUP($A112,Paste!$B$5:$T$500,11,FALSE))=TRUE,0,VLOOKUP($A112,Paste!$B$5:$T$500,11,FALSE)) -> 0 | E112: =IF(ISERROR(VLOOKUP($A112,Paste!$B$5:$T$500,16,FALSE))=TRUE,0,VLOOKUP($A112,Paste!$B$5:$T$500,16,FALSE)) -> 0 | F112: =IF(ISERROR(VLOOKUP($A112,Paste!$B$5:$T$500,19,FALSE))=TRUE,0,VLOOKUP($A112,Paste!$B$5:$T$500,19,FALSE)) -> 0
A113: 30412 | B113: =IF(ISERROR(VLOOKUP($A113,Paste!$B$5:$T$500,4,FALSE))=TRUE,0,VLOOKUP($A113,Paste!$B$5:$T$500,4,FALSE)) -> 0 | C113: =IF(ISERROR(VLOOKUP($A113,Paste!$B$5:$T$500,8,FALSE))=TRUE,0,VLOOKUP($A113,Paste!$B$5:$T$500,8,FALSE)) -> 0 | D113: =IF(ISERROR(VLOOKUP($A113,Paste!$B$5:$T$500,11,FALSE))=TRUE,0,VLOOKUP($A113,Paste!$B$5:$T$500,11,FALSE)) -> 0 | E113: =IF(ISERROR(VLOOKUP($A113,Paste!$B$5:$T$500,16,FALSE))=TRUE,0,VLOOKUP($A113,Paste!$B$5:$T$500,16,FALSE)) -> 0 | F113: =IF(ISERROR(VLOOKUP($A113,Paste!$B$5:$T$500,19,FALSE))=TRUE,0,VLOOKUP($A113,Paste!$B$5:$T$500,19,FALSE)) -> 0
A114: 30413 | B114: =IF(ISERROR(VLOOKUP($A114,Paste!$B$5:$T$500,4,FALSE))=TRUE,0,VLOOKUP($A114,Paste!$B$5:$T$500,4,FALSE)) -> 0 | C114: =IF(ISERROR(VLOOKUP($A114,Paste!$B$5:$T$500,8,FALSE))=TRUE,0,VLOOKUP($A114,Paste!$B$5:$T$500,8,FALSE)) -> 0 | D114: =IF(ISERROR(VLOOKUP($A114,Paste!$B$5:$T$500,11,FALSE))=TRUE,0,VLOOKUP($A114,Paste!$B$5:$T$500,11,FALSE)) -> 0 | E114: =IF(ISERROR(VLOOKUP($A114,Paste!$B$5:$T$500,16,FALSE))=TRUE,0,VLOOKUP($A114,Paste!$B$5:$T$500,16,FALSE)) -> 0 | F114: =IF(ISERROR(VLOOKUP($A114,Paste!$B$5:$T$500,19,FALSE))=TRUE,0,VLOOKUP($A114,Paste!$B$5:$T$500,19,FALSE)) -> 0
A115: 30414 | B115: =IF(ISERROR(VLOOKUP($A115,Paste!$B$5:$T$500,4,FALSE))=TRUE,0,VLOOKUP($A115,Paste!$B$5:$T$500,4,FALSE)) -> 0 | C115: =IF(ISERROR(VLOOKUP($A115,Paste!$B$5:$T$500,8,FALSE))=TRUE,0,VLOOKUP($A115,Paste!$B$5:$T$500,8,FALSE)) -> 0 | D115: =IF(ISERROR(VLOOKUP($A115,Paste!$B$5:$T$500,11,FALSE))=TRUE,0,VLOOKUP($A115,Paste!$B$5:$T$500,11,FALSE)) -> 0 | E115: =IF(ISERROR(VLOOKUP($A115,Paste!$B$5:$T$500,16,FALSE))=TRUE,0,VLOOKUP($A115,Paste!$B$5:$T$500,16,FALSE)) -> 0 | F115: =IF(ISERROR(VLOOKUP($A115,Paste!$B$5:$T$500,19,FALSE))=TRUE,0,VLOOKUP($A115,Paste!$B$5:$T$500,19,FALSE)) -> 0
A116: 30415 | B116: =IF(ISERROR(VLOOKUP($A116,Paste!$B$5:$T$500,4,FALSE))=TRUE,0,VLOOKUP($A116,Paste!$B$5:$T$500,4,FALSE)) -> 0 | C116: =IF(ISERROR(VLOOKUP($A116,Paste!$B$5:$T$500,8,FALSE))=TRUE,0,VLOOKUP($A116,Paste!$B$5:$T$500,8,FALSE)) -> 0 | D116: =IF(ISERROR(VLOOKUP($A116,Paste!$B$5:$T$500,11,FALSE))=TRUE,0,VLOOKUP($A116,Paste!$B$5:$T$500,11,FALSE)) -> 0 | E116: =IF(ISERROR(VLOOKUP($A116,Paste!$B$5:$T$500,16,FALSE))=TRUE,0,VLOOKUP($A116,Paste!$B$5:$T$500,16,FALSE)) -> 0 | F116: =IF(ISERROR(VLOOKUP($A116,Paste!$B$5:$T$500,19,FALSE))=TRUE,0,VLOOKUP($A116,Paste!$B$5:$T$500,19,FALSE)) -> 0
A117: 30416 | B117: =IF(ISERROR(VLOOKUP($A117,Paste!$B$5:$T$500,4,FALSE))=TRUE,0,VLOOKUP($A117,Paste!$B$5:$T$500,4,FALSE)) -> 0 | C117: =IF(ISERROR(VLOOKUP($A117,Paste!$B$5:$T$500,8,FALSE))=TRUE,0,VLOOKUP($A117,Paste!$B$5:$T$500,8,FALSE)) -> 0 | D117: =IF(ISERROR(VLOOKUP($A117,Paste!$B$5:$T$500,11,FALSE))=TRUE,0,VLOOKUP($A117,Paste!$B$5:$T$500,11,FALSE)) -> 0 | E117: =IF(ISERROR(VLOOKUP($A117,Paste!$B$5:$T$500,16,FALSE))=TRUE,0,VLOOKUP($A117,Paste!$B$5:$T$500,16,FALSE)) -> 0 | F117: =IF(ISERROR(VLOOKUP($A117,Paste!$B$5:$T$500,19,FALSE))=TRUE,0,VLOOKUP($A117,Paste!$B$5:$T$500,19,FALSE)) -> 0
A118: 30417 | B118: =IF(ISERROR(VLOOKUP($A118,Paste!$B$5:$T$500,4,FALSE))=TRUE,0,VLOOKUP($A118,Paste!$B$5:$T$500,4,FALSE)) -> 0 | C118: =IF(ISERROR(VLOOKUP($A118,Paste!$B$5:$T$500,8,FALSE))=TRUE,0,VLOOKUP($A118,Paste!$B$5:$T$500,8,FALSE)) -> 0 | D118: =IF(ISERROR(VLOOKUP($A118,Paste!$B$5:$T$500,11,FALSE))=TRUE,0,VLOOKUP($A118,Paste!$B$5:$T$500,11,FALSE)) -> 0 | E118: =IF(ISERROR(VLOOKUP($A118,Paste!$B$5:$T$500,16,FALSE))=TRUE,0,VLOOKUP($A118,Paste!$B$5:$T$500,16,FALSE)) -> 0 | F118: =IF(ISERROR(VLOOKUP($A118,Paste!$B$5:$T$500,19,FALSE))=TRUE,0,VLOOKUP($A118,Paste!$B$5:$T$500,19,FALSE)) -> 0
A119: 30418 | B119: =IF(ISERROR(VLOOKUP($A119,Paste!$B$5:$T$500,4,FALSE))=TRUE,0,VLOOKUP($A119,Paste!$B$5:$T$500,4,FALSE)) -> 0 | C119: =IF(ISERROR(VLOOKUP($A119,Paste!$B$5:$T$500,8,FALSE))=TRUE,0,VLOOKUP($A119,Paste!$B$5:$T$500,8,FALSE)) -> 0 | D119: =IF(ISERROR(VLOOKUP($A119,Paste!$B$5:$T$500,11,FALSE))=TRUE,0,VLOOKUP($A119,Paste!$B$5:$T$500,11,FALSE)) -> 0 | E119: =IF(ISERROR(VLOOKUP($A119,Paste!$B$5:$T$500,16,FALSE))=TRUE,0,VLOOKUP($A119,Paste!$B$5:$T$500,16,FALSE)) -> 0 | F119: =IF(ISERROR(VLOOKUP($A119,Paste!$B$5:$T$500,19,FALSE))=TRUE,0,VLOOKUP($A119,Paste!$B$5:$T$500,19,FALSE)) -> 0
A120: 30419 | B120: =IF(ISERROR(VLOOKUP($A120,Paste!$B$5:$T$500,4,FALSE))=TRUE,0,VLOOKUP($A120,Paste!$B$5:$T$500,4,FALSE)) -> 0 | C120: =IF(ISERROR(VLOOKUP($A120,Paste!$B$5:$T$500,8,FALSE))=TRUE,0,VLOOKUP($A120,Paste!$B$5:$T$500,8,FALSE)) -> 0 | D120: =IF(ISERROR(VLOOKUP($A120,Paste!$B$5:$T$500,11,FALSE))=TRUE,0,VLOOKUP($A120,Paste!$B$5:$T$500,11,FALSE)) -> 0 | E120: =IF(ISERROR(VLOOKUP($A120,Paste!$B$5:$T$500,16,FALSE))=TRUE,0,VLOOKUP($A120,Paste!$B$5:$T$500,16,FALSE)) -> 0 | F120: =IF(ISERROR(VLOOKUP($A120,Paste!$B$5:$T$500,19,FALSE))=TRUE,0,VLOOKUP($A120,Paste!$B$5:$T$500,19,FALSE)) -> 0
A121: 30420 | B121: =IF(ISERROR(VLOOKUP($A121,Paste!$B$5:$T$500,4,FALSE))=TRUE,0,VLOOKUP($A121,Paste!$B$5:$T$500,4,FALSE)) -> 0 | C121: =IF(ISERROR(VLOOKUP($A121,Paste!$B$5:$T$500,8,FALSE))=TRUE,0,VLOOKUP($A121,Paste!$B$5:$T$500,8,FALSE)) -> 0 | D121: =IF(ISERROR(VLOOKUP($A121,Paste!$B$5:$T$500,11,FALSE))=TRUE,0,VLOOKUP($A121,Paste!$B$5:$T$500,11,FALSE)) -> 0 | E121: =IF(ISERROR(VLOOKUP($A121,Paste!$B$5:$T$500,16,FALSE))=TRUE,0,VLOOKUP($A121,Paste!$B$5:$T$500,16,FALSE)) -> 0 | F121: =IF(ISERROR(VLOOKUP($A121,Paste!$B$5:$T$500,19,FALSE))=TRUE,0,VLOOKUP($A121,Paste!$B$5:$T$500,19,FALSE)) -> 0
A122: 30421 | B122: =IF(ISERROR(VLOOKUP($A122,Paste!$B$5:$T$500,4,FALSE))=TRUE,0,VLOOKUP($A122,Paste!$B$5:$T$500,4,FALSE)) -> 0 | C122: =IF(ISERROR(VLOOKUP($A122,Paste!$B$5:$T$500,8,FALSE))=TRUE,0,VLOOKUP($A122,Paste!$B$5:$T$500,8,FALSE)) -> 0 | D122: =IF(ISERROR(VLOOKUP($A122,Paste!$B$5:$T$500,11,FALSE))=TRUE,0,VLOOKUP($A122,Paste!$B$5:$T$500,11,FALSE)) -> 0 | E122: =IF(ISERROR(VLOOKUP($A122,Paste!$B$5:$T$500,16,FALSE))=TRUE,0,VLOOKUP($A122,Paste!$B$5:$T$500,16,FALSE)) -> 0 | F122: =IF(ISERROR(VLOOKUP($A122,Paste!$B$5:$T$500,19,FALSE))=TRUE,0,VLOOKUP($A122,Paste!$B$5:$T$500,19,FALSE)) -> 0
A123: 30422 | B123: =IF(ISERROR(VLOOKUP($A123,Paste!$B$5:$T$500,4,FALSE))=TRUE,0,VLOOKUP($A123,Paste!$B$5:$T$500,4,FALSE)) -> 0 | C123: =IF(ISERROR(VLOOKUP($A123,Paste!$B$5:$T$500,8,FALSE))=TRUE,0,VLOOKUP($A123,Paste!$B$5:$T$500,8,FALSE)) -> 0 | D123: =IF(ISERROR(VLOOKUP($A123,Paste!$B$5:$T$500,11,FALSE))=TRUE,0,VLOOKUP($A123,Paste!$B$5:$T$500,11,FALSE)) -> 0 | E123: =IF(ISERROR(VLOOKUP($A123,Paste!$B$5:$T$500,16,FALSE))=TRUE,0,VLOOKUP($A123,Paste!$B$5:$T$500,16,FALSE)) -> 0 | F123: =IF(ISERROR(VLOOKUP($A123,Paste!$B$5:$T$500,19,FALSE))=TRUE,0,VLOOKUP($A123,Paste!$B$5:$T$500,19,FALSE)) -> 0
A124: 30423 | B124: =IF(ISERROR(VLOOKUP($A124,Paste!$B$5:$T$500,4,FALSE))=TRUE,0,VLOOKUP($A124,Paste!$B$5:$T$500,4,FALSE)) -> 0 | C124: =IF(ISERROR(VLOOKUP($A124,Paste!$B$5:$T$500,8,FALSE))=TRUE,0,VLOOKUP($A124,Paste!$B$5:$T$500,8,FALSE)) -> 0 | D124: =IF(ISERROR(VLOOKUP($A124,Paste!$B$5:$T$500,11,FALSE))=TRUE,0,VLOOKUP($A124,Paste!$B$5:$T$500,11,FALSE)) -> 0 | E124: =IF(ISERROR(VLOOKUP($A124,Paste!$B$5:$T$500,16,FALSE))=TRUE,0,VLOOKUP($A124,Paste!$B$5:$T$500,16,FALSE)) -> 0 | F124: =IF(ISERROR(VLOOKUP($A124,Paste!$B$5:$T$500,19,FALSE))=TRUE,0,VLOOKUP($A124,Paste!$B$5:$T$500,19,FALSE)) -> 0
A125: 30424 | B125: =IF(ISERROR(VLOOKUP($A125,Paste!$B$5:$T$500,4,FALSE))=TRUE,0,VLOOKUP($A125,Paste!$B$5:$T$500,4,FALSE)) -> 0 | C125: =IF(ISERROR(VLOOKUP($A125,Paste!$B$5:$T$500,8,FALSE))=TRUE,0,VLOOKUP($A125,Paste!$B$5:$T$500,8,FALSE)) -> 0 | D125: =IF(ISERROR(VLOOKUP($A125,Paste!$B$5:$T$500,11,FALSE))=TRUE,0,VLOOKUP($A125,Paste!$B$5:$T$500,11,FALSE)) -> 0 | E125: =IF(ISERROR(VLOOKUP($A125,Paste!$B$5:$T$500,16,FALSE))=TRUE,0,VLOOKUP($A125,Paste!$B$5:$T$500,16,FALSE)) -> 0 | F125: =IF(ISERROR(VLOOKUP($A125,Paste!$B$5:$T$500,19,FALSE))=TRUE,0,VLOOKUP($A125,Paste!$B$5:$T$500,19,FALSE)) -> 0
A126: 30425 | B126: =IF(ISERROR(VLOOKUP($A126,Paste!$B$5:$T$500,4,FALSE))=TRUE,0,VLOOKUP($A126,Paste!$B$5:$T$500,4,FALSE)) -> 0 | C126: =IF(ISERROR(VLOOKUP($A126,Paste!$B$5:$T$500,8,FALSE))=TRUE,0,VLOOKUP($A126,Paste!$B$5:$T$500,8,FALSE)) -> 0 | D126: =IF(ISERROR(VLOOKUP($A126,Paste!$B$5:$T$500,11,FALSE))=TRUE,0,VLOOKUP($A126,Paste!$B$5:$T$500,11,FALSE)) -> 0 | E126: =IF(ISERROR(VLOOKUP($A126,Paste!$B$5:$T$500,16,FALSE))=TRUE,0,VLOOKUP($A126,Paste!$B$5:$T$500,16,FALSE)) -> 0 | F126: =IF(ISERROR(VLOOKUP($A126,Paste!$B$5:$T$500,19,FALSE))=TRUE,0,VLOOKUP($A126,Paste!$B$5:$T$500,19,FALSE)) -> 0
A127: 30426 | B127: =IF(ISERROR(VLOOKUP($A127,Paste!$B$5:$T$500,4,FALSE))=TRUE,0,VLOOKUP($A127,Paste!$B$5:$T$500,4,FALSE)) -> 0 | C127: =IF(ISERROR(VLOOKUP($A127,Paste!$B$5:$T$500,8,FALSE))=TRUE,0,VLOOKUP($A127,Paste!$B$5:$T$500,8,FALSE)) -> 0 | D127: =IF(ISERROR(VLOOKUP($A127,Paste!$B$5:$T$500,11,FALSE))=TRUE,0,VLOOKUP($A127,Paste!$B$5:$T$500,11,FALSE)) -> 0 | E127: =IF(ISERROR(VLOOKUP($A127,Paste!$B$5:$T$500,16,FALSE))=TRUE,0,VLOOKUP($A127,Paste!$B$5:$T$500,16,FALSE)) -> 0 | F127: =IF(ISERROR(VLOOKUP($A127,Paste!$B$5:$T$500,19,FALSE))=TRUE,0,VLOOKUP($A127,Paste!$B$5:$T$500,19,FALSE)) -> 0
A128: 30427 | B128: =IF(ISERROR(VLOOKUP($A128,Paste!$B$5:$T$500,4,FALSE))=TRUE,0,VLOOKUP($A128,Paste!$B$5:$T$500,4,FALSE)) -> 0 | C128: =IF(ISERROR(VLOOKUP($A128,Paste!$B$5:$T$500,8,FALSE))=TRUE,0,VLOOKUP($A128,Paste!$B$5:$T$500,8,FALSE)) -> 0 | D128: =IF(ISERROR(VLOOKUP($A128,Paste!$B$5:$T$500,11,FALSE))=TRUE,0,VLOOKUP($A128,Paste!$B$5:$T$500,11,FALSE)) -> 0 | E128: =IF(ISERROR(VLOOKUP($A128,Paste!$B$5:$T$500,16,FALSE))=TRUE,0,VLOOKUP($A128,Paste!$B$5:$T$500,16,FALSE)) -> 0 | F128: =IF(ISERROR(VLOOKUP($A128,Paste!$B$5:$T$500,19,FALSE))=TRUE,0,VLOOKUP($A128,Paste!$B$5:$T$500,19,FALSE)) -> 0
A129: 30428 | B129: =IF(ISERROR(VLOOKUP($A129,Paste!$B$5:$T$500,4,FALSE))=TRUE,0,VLOOKUP($A129,Paste!$B$5:$T$500,4,FALSE)) -> 0 | C129: =IF(ISERROR(VLOOKUP($A129,Paste!$B$5:$T$500,8,FALSE))=TRUE,0,VLOOKUP($A129,Paste!$B$5:$T$500,8,FALSE)) -> 0 | D129: =IF(ISERROR(VLOOKUP($A129,Paste!$B$5:$T$500,11,FALSE))=TRUE,0,VLOOKUP($A129,Paste!$B$5:$T$500,11,FALSE)) -> 0 | E129: =IF(ISERROR(VLOOKUP($A129,Paste!$B$5:$T$500,16,FALSE))=TRUE,0,VLOOKUP($A129,Paste!$B$5:$T$500,16,FALSE)) -> 0 | F129: =IF(ISERROR(VLOOKUP($A129,Paste!$B$5:$T$500,19,FALSE))=TRUE,0,VLOOKUP($A129,Paste!$B$5:$T$500,19,FALSE)) -> 0
A130: 30429 | B130: =IF(ISERROR(VLOOKUP($A130,Paste!$B$5:$T$500,4,FALSE))=TRUE,0,VLOOKUP($A130,Paste!$B$5:$T$500,4,FALSE)) -> 0 | C130: =IF(ISERROR(VLOOKUP($A130,Paste!$B$5:$T$500,8,FALSE))=TRUE,0,VLOOKUP($A130,Paste!$B$5:$T$500,8,FALSE)) -> 0 | D130: =IF(ISERROR(VLOOKUP($A130,Paste!$B$5:$T$500,11,FALSE))=TRUE,0,VLOOKUP($A130,Paste!$B$5:$T$500,11,FALSE)) -> 0 | E130: =IF(ISERROR(VLOOKUP($A130,Paste!$B$5:$T$500,16,FALSE))=TRUE,0,VLOOKUP($A130,Paste!$B$5:$T$500,16,FALSE)) -> 0 | F130: =IF(ISERROR(VLOOKUP($A130,Paste!$B$5:$T$500,19,FALSE))=TRUE,0,VLOOKUP($A130,Paste!$B$5:$T$500,19,FALSE)) -> 0
A131: 30488 | B131: =IF(ISERROR(VLOOKUP($A131,Paste!$B$5:$T$500,4,FALSE))=TRUE,0,VLOOKUP($A131,Paste!$B$5:$T$500,4,FALSE)) -> 0 | C131: =IF(ISERROR(VLOOKUP($A131,Paste!$B$5:$T$500,8,FALSE))=TRUE,0,VLOOKUP($A131,Paste!$B$5:$T$500,8,FALSE)) -> 0 | D131: =IF(ISERROR(VLOOKUP($A131,Paste!$B$5:$T$500,11,FALSE))=TRUE,0,VLOOKUP($A131,Paste!$B$5:$T$500,11,FALSE)) -> 0 | E131: =IF(ISERROR(VLOOKUP($A131,Paste!$B$5:$T$500,16,FALSE))=TRUE,0,VLOOKUP($A131,Paste!$B$5:$T$500,16,FALSE)) -> 0 | F131: =IF(ISERROR(VLOOKUP($A131,Paste!$B$5:$T$500,19,FALSE))=TRUE,0,VLOOKUP($A131,Paste!$B$5:$T$500,19,FALSE)) -> 0
A132: 39901 | B132: =IF(ISERROR(VLOOKUP($A132,Paste!$B$5:$T$500,4,FALSE))=TRUE,0,VLOOKUP($A132,Paste!$B$5:$T$500,4,FALSE)) -> 0 | C132: =IF(ISERROR(VLOOKUP($A132,Paste!$B$5:$T$500,8,FALSE))=TRUE,0,VLOOKUP($A132,Paste!$B$5:$T$500,8,FALSE)) -> 0 | D132: =IF(ISERROR(VLOOKUP($A132,Paste!$B$5:$T$500,11,FALSE))=TRUE,0,VLOOKUP($A132,Paste!$B$5:$T$500,11,FALSE)) -> 0 | E132: =IF(ISERROR(VLOOKUP($A132,Paste!$B$5:$T$500,16,FALSE))=TRUE,0,VLOOKUP($A132,Paste!$B$5:$T$500,16,FALSE)) -> 0 | F132: =IF(ISERROR(VLOOKUP($A132,Paste!$B$5:$T$500,19,FALSE))=TRUE,0,VLOOKUP($A132,Paste!$B$5:$T$500,19,FALSE)) -> 0
A133: 39902 | B133: =IF(ISERROR(VLOOKUP($A133,Paste!$B$5:$T$500,4,FALSE))=TRUE,0,VLOOKUP($A133,Paste!$B$5:$T$500,4,FALSE)) -> 0 | C133: =IF(ISERROR(VLOOKUP($A133,Paste!$B$5:$T$500,8,FALSE))=TRUE,0,VLOOKUP($A133,Paste!$B$5:$T$500,8,FALSE)) -> 0 | D133: =IF(ISERROR(VLOOKUP($A133,Paste!$B$5:$T$500,11,FALSE))=TRUE,0,VLOOKUP($A133,Paste!$B$5:$T$500,11,FALSE)) -> 0 | E133: =IF(ISERROR(VLOOKUP($A133,Paste!$B$5:$T$500,16,FALSE))=TRUE,0,VLOOKUP($A133,Paste!$B$5:$T$500,16,FALSE)) -> 0 | F133: =IF(ISERROR(VLOOKUP($A133,Paste!$B$5:$T$500,19,FALSE))=TRUE,0,VLOOKUP($A133,Paste!$B$5:$T$500,19,FALSE)) -> 0
A134: 39903 | B134: =IF(ISERROR(VLOOKUP($A134,Paste!$B$5:$T$500,4,FALSE))=TRUE,0,VLOOKUP($A134,Paste!$B$5:$T$500,4,FALSE)) -> 0 | C134: =IF(ISERROR(VLOOKUP($A134,Paste!$B$5:$T$500,8,FALSE))=TRUE,0,VLOOKUP($A134,Paste!$B$5:$T$500,8,FALSE)) -> 0 | D134: =IF(ISERROR(VLOOKUP($A134,Paste!$B$5:$T$500,11,FALSE))=TRUE,0,VLOOKUP($A134,Paste!$B$5:$T$500,11,FALSE)) -> 0 | E134: =IF(ISERROR(VLOOKUP($A134,Paste!$B$5:$T$500,16,FALSE))=TRUE,0,VLOOKUP($A134,Paste!$B$5:$T$500,16,FALSE)) -> 0 | F134: =IF(ISERROR(VLOOKUP($A134,Paste!$B$5:$T$500,19,FALSE))=TRUE,0,VLOOKUP($A134,Paste!$B$5:$T$500,19,FALSE)) -> 0
A135: 39904 | B135: =IF(ISERROR(VLOOKUP($A135,Paste!$B$5:$T$500,4,FALSE))=TRUE,0,VLOOKUP($A135,Paste!$B$5:$T$500,4,FALSE)) -> 0 | C135: =IF(ISERROR(VLOOKUP($A135,Paste!$B$5:$T$500,8,FALSE))=TRUE,0,VLOOKUP($A135,Paste!$B$5:$T$500,8,FALSE)) -> 0 | D135: =IF(ISERROR(VLOOKUP($A135,Paste!$B$5:$T$500,11,FALSE))=TRUE,0,VLOOKUP($A135,Paste!$B$5:$T$500,11,FALSE)) -> 0 | E135: =IF(ISERROR(VLOOKUP($A135,Paste!$B$5:$T$500,16,FALSE))=TRUE,0,VLOOKUP($A135,Paste!$B$5:$T$500,16,FALSE)) -> 0 | F135: =IF(ISERROR(VLOOKUP($A135,Paste!$B$5:$T$500,19,FALSE))=TRUE,0,VLOOKUP($A135,Paste!$B$5:$T$500,19,FALSE)) -> 0
A136: 39905 | B136: =IF(ISERROR(VLOOKUP($A136,Paste!$B$5:$T$500,4,FALSE))=TRUE,0,VLOOKUP($A136,Paste!$B$5:$T$500,4,FALSE)) -> 0 | C136: =IF(ISERROR(VLOOKUP($A136,Paste!$B$5:$T$500,8,FALSE))=TRUE,0,VLOOKUP($A136,Paste!$B$5:$T$500,8,FALSE)) -> 0 | D136: =IF(ISERROR(VLOOKUP($A136,Paste!$B$5:$T$500,11,FALSE))=TRUE,0,VLOOKUP($A136,Paste!$B$5:$T$500,11,FALSE)) -> 0 | E136: =IF(ISERROR(VLOOKUP($A136,Paste!$B$5:$T$500,16,FALSE))=TRUE,0,VLOOKUP($A136,Paste!$B$5:$T$500,16,FALSE)) -> 0 | F136: =IF(ISERROR(VLOOKUP($A136,Paste!$B$5:$T$500,19,FALSE))=TRUE,0,VLOOKUP($A136,Paste!$B$5:$T$500,19,FALSE)) -> 0
A137: 39906 | B137: =IF(ISERROR(VLOOKUP($A137,Paste!$B$5:$T$500,4,FALSE))=TRUE,0,VLOOKUP($A137,Paste!$B$5:$T$500,4,FALSE)) -> 0 | C137: =IF(ISERROR(VLOOKUP($A137,Paste!$B$5:$T$500,8,FALSE))=TRUE,0,VLOOKUP($A137,Paste!$B$5:$T$500,8,FALSE)) -> 0 | D137: =IF(ISERROR(VLOOKUP($A137,Paste!$B$5:$T$500,11,FALSE))=TRUE,0,VLOOKUP($A137,Paste!$B$5:$T$500,11,FALSE)) -> 0 | E137: =IF(ISERROR(VLOOKUP($A137,Paste!$B$5:$T$500,16,FALSE))=TRUE,0,VLOOKUP($A137,Paste!$B$5:$T$500,16,FALSE)) -> 0 | F137: =IF(ISERROR(VLOOKUP($A137,Paste!$B$5:$T$500,19,FALSE))=TRUE,0,VLOOKUP($A137,Paste!$B$5:$T$500,19,FALSE)) -> 0
A138: 39907 | B138: =IF(ISERROR(VLOOKUP($A138,Paste!$B$5:$T$500,4,FALSE))=TRUE,0,VLOOKUP($A138,Paste!$B$5:$T$500,4,FALSE)) -> 0 | C138: =IF(ISERROR(VLOOKUP($A138,Paste!$B$5:$T$500,8,FALSE))=TRUE,0,VLOOKUP($A138,Paste!$B$5:$T$500,8,FALSE)) -> 0 | D138: =IF(ISERROR(VLOOKUP($A138,Paste!$B$5:$T$500,11,FALSE))=TRUE,0,VLOOKUP($A138,Paste!$B$5:$T$500,11,FALSE)) -> 0 | E138: =IF(ISERROR(VLOOKUP($A138,Paste!$B$5:$T$500,16,FALSE))=TRUE,0,VLOOKUP($A138,Paste!$B$5:$T$500,16,FALSE)) -> 0 | F138: =IF(ISERROR(VLOOKUP($A138,Paste!$B$5:$T$500,19,FALSE))=TRUE,0,VLOOKUP($A138,Paste!$B$5:$T$500,19,FALSE)) -> 0
A139: 39908 | B139: =IF(ISERROR(VLOOKUP($A139,Paste!$B$5:$T$500,4,FALSE))=TRUE,0,VLOOKUP($A139,Paste!$B$5:$T$500,4,FALSE)) -> 0 | C139: =IF(ISERROR(VLOOKUP($A139,Paste!$B$5:$T$500,8,FALSE))=TRUE,0,VLOOKUP($A139,Paste!$B$5:$T$500,8,FALSE)) -> 0 | D139: =IF(ISERROR(VLOOKUP($A139,Paste!$B$5:$T$500,11,FALSE))=TRUE,0,VLOOKUP($A139,Paste!$B$5:$T$500,11,FALSE)) -> 0 | E139: =IF(ISERROR(VLOOKUP($A139,Paste!$B$5:$T$500,16,FALSE))=TRUE,0,VLOOKUP($A139,Paste!$B$5:$T$500,16,FALSE)) -> 0 | F139: =IF(ISERROR(VLOOKUP($A139,Paste!$B$5:$T$500,19,FALSE))=TRUE,0,VLOOKUP($A139,Paste!$B$5:$T$500,19,FALSE)) -> 0
A140: 39909 | B140: =IF(ISERROR(VLOOKUP($A140,Paste!$B$5:$T$500,4,FALSE))=TRUE,0,VLOOKUP($A140,Paste!$B$5:$T$500,4,FALSE)) -> 0 | C140: =IF(ISERROR(VLOOKUP($A140,Paste!$B$5:$T$500,8,FALSE))=TRUE,0,VLOOKUP($A140,Paste!$B$5:$T$500,8,FALSE)) -> 0 | D140: =IF(ISERROR(VLOOKUP($A140,Paste!$B$5:$T$500,11,FALSE))=TRUE,0,VLOOKUP($A140,Paste!$B$5:$T$500,11,FALSE)) -> 0 | E140: =IF(ISERROR(VLOOKUP($A140,Paste!$B$5:$T$500,16,FALSE))=TRUE,0,VLOOKUP($A140,Paste!$B$5:$T$500,16,FALSE)) -> 0 | F140: =IF(ISERROR(VLOOKUP($A140,Paste!$B$5:$T$500,19,FALSE))=TRUE,0,VLOOKUP($A140,Paste!$B$5:$T$500,19,FALSE)) -> 0
A141: 39910 | B141: =IF(ISERROR(VLOOKUP($A141,Paste!$B$5:$T$500,4,FALSE))=TRUE,0,VLOOKUP($A141,Paste!$B$5:$T$500,4,FALSE)) -> 0 | C141: =IF(ISERROR(VLOOKUP($A141,Paste!$B$5:$T$500,8,FALSE))=TRUE,0,VLOOKUP($A141,Paste!$B$5:$T$500,8,FALSE)) -> 0 | D141: =IF(ISERROR(VLOOKUP($A141,Paste!$B$5:$T$500,11,FALSE))=TRUE,0,VLOOKUP($A141,Paste!$B$5:$T$500,11,FALSE)) -> 0 | E141: =IF(ISERROR(VLOOKUP($A141,Paste!$B$5:$T$500,16,FALSE))=TRUE,0,VLOOKUP($A141,Paste!$B$5:$T$500,16,FALSE)) -> 0 | F141: =IF(ISERROR(VLOOKUP($A141,Paste!$B$5:$T$500,19,FALSE))=TRUE,0,VLOOKUP($A141,Paste!$B$5:$T$500,19,FALSE)) -> 0
A142: 39911 | B142: =IF(ISERROR(VLOOKUP($A142,Paste!$B$5:$T$500,4,FALSE))=TRUE,0,VLOOKUP($A142,Paste!$B$5:$T$500,4,FALSE)) -> 0 | C142: =IF(ISERROR(VLOOKUP($A142,Paste!$B$5:$T$500,8,FALSE))=TRUE,0,VLOOKUP($A142,Paste!$B$5:$T$500,8,FALSE)) -> 0 | D142: =IF(ISERROR(VLOOKUP($A142,Paste!$B$5:$T$500,11,FALSE))=TRUE,0,VLOOKUP($A142,Paste!$B$5:$T$500,11,FALSE)) -> 0 | E142: =IF(ISERROR(VLOOKUP($A142,Paste!$B$5:$T$500,16,FALSE))=TRUE,0,VLOOKUP($A142,Paste!$B$5:$T$500,16,FALSE)) -> 0 | F142: =IF(ISERROR(VLOOKUP($A142,Paste!$B$5:$T$500,19,FALSE))=TRUE,0,VLOOKUP($A142,Paste!$B$5:$T$500,19,FALSE)) -> 0
A143: 39912 | B143: =IF(ISERROR(VLOOKUP($A143,Paste!$B$5:$T$500,4,FALSE))=TRUE,0,VLOOKUP($A143,Paste!$B$5:$T$500,4,FALSE)) -> 0 | C143: =IF(ISERROR(VLOOKUP($A143,Paste!$B$5:$T$500,8,FALSE))=TRUE,0,VLOOKUP($A143,Paste!$B$5:$T$500,8,FALSE)) -> 0 | D143: =IF(ISERROR(VLOOKUP($A143,Paste!$B$5:$T$500,11,FALSE))=TRUE,0,VLOOKUP($A143,Paste!$B$5:$T$500,11,FALSE)) -> 0 | E143: =IF(ISERROR(VLOOKUP($A143,Paste!$B$5:$T$500,16,FALSE))=TRUE,0,VLOOKUP($A143,Paste!$B$5:$T$500,16,FALSE)) -> 0 | F143: =IF(ISERROR(VLOOKUP($A143,Paste!$B$5:$T$500,19,FALSE))=TRUE,0,VLOOKUP($A143,Paste!$B$5:$T$500,19,FALSE)) -> 0
A144: 39913 | B144: =IF(ISERROR(VLOOKUP($A144,Paste!$B$5:$T$500,4,FALSE))=TRUE,0,VLOOKUP($A144,Paste!$B$5:$T$500,4,FALSE)) -> 0 | C144: =IF(ISERROR(VLOOKUP($A144,Paste!$B$5:$T$500,8,FALSE))=TRUE,0,VLOOKUP($A144,Paste!$B$5:$T$500,8,FALSE)) -> 0 | D144: =IF(ISERROR(VLOOKUP($A144,Paste!$B$5:$T$500,11,FALSE))=TRUE,0,VLOOKUP($A144,Paste!$B$5:$T$500,11,FALSE)) -> 0 | E144: =IF(ISERROR(VLOOKUP($A144,Paste!$B$5:$T$500,16,FALSE))=TRUE,0,VLOOKUP($A144,Paste!$B$5:$T$500,16,FALSE)) -> 0 | F144: =IF(ISERROR(VLOOKUP($A144,Paste!$B$5:$T$500,19,FALSE))=TRUE,0,VLOOKUP($A144,Paste!$B$5:$T$500,19,FALSE)) -> 0
A145: 39914 | B145: =IF(ISERROR(VLOOKUP($A145,Paste!$B$5:$T$500,4,FALSE))=TRUE,0,VLOOKUP($A145,Paste!$B$5:$T$500,4,FALSE)) -> 0 | C145: =IF(ISERROR(VLOOKUP($A145,Paste!$B$5:$T$500,8,FALSE))=TRUE,0,VLOOKUP($A145,Paste!$B$5:$T$500,8,FALSE)) -> 0 | D145: =IF(ISERROR(VLOOKUP($A145,Paste!$B$5:$T$500,11,FALSE))=TRUE,0,VLOOKUP($A145,Paste!$B$5:$T$500,11,FALSE)) -> 0 | E145: =IF(ISERROR(VLOOKUP($A145,Paste!$B$5:$T$500,16,FALSE))=TRUE,0,VLOOKUP($A145,Paste!$B$5:$T$500,16,FALSE)) -> 0 | F145: =IF(ISERROR(VLOOKUP($A145,Paste!$B$5:$T$500,19,FALSE))=TRUE,0,VLOOKUP($A145,Paste!$B$5:$T$500,19,FALSE)) -> 0
A146: 39915 | B146: =IF(ISERROR(VLOOKUP($A146,Paste!$B$5:$T$500,4,FALSE))=TRUE,0,VLOOKUP($A146,Paste!$B$5:$T$500,4,FALSE)) -> 0 | C146: =IF(ISERROR(VLOOKUP($A146,Paste!$B$5:$T$500,8,FALSE))=TRUE,0,VLOOKUP($A146,Paste!$B$5:$T$500,8,FALSE)) -> 0 | D146: =IF(ISERROR(VLOOKUP($A146,Paste!$B$5:$T$500,11,FALSE))=TRUE,0,VLOOKUP($A146,Paste!$B$5:$T$500,11,FALSE)) -> 0 | E146: =IF(ISERROR(VLOOKUP($A146,Paste!$B$5:$T$500,16,FALSE))=TRUE,0,VLOOKUP($A146,Paste!$B$5:$T$500,16,FALSE)) -> 0 | F146: =IF(ISERROR(VLOOKUP($A146,Paste!$B$5:$T$500,19,FALSE))=TRUE,0,VLOOKUP($A146,Paste!$B$5:$T$500,19,FALSE)) -> 0
A147: 39916 | B147: =IF(ISERROR(VLOOKUP($A147,Paste!$B$5:$T$500,4,FALSE))=TRUE,0,VLOOKUP($A147,Paste!$B$5:$T$500,4,FALSE)) -> 0 | C147: =IF(ISERROR(VLOOKUP($A147,Paste!$B$5:$T$500,8,FALSE))=TRUE,0,VLOOKUP($A147,Paste!$B$5:$T$500,8,FALSE)) -> 0 | D147: =IF(ISERROR(VLOOKUP($A147,Paste!$B$5:$T$500,11,FALSE))=TRUE,0,VLOOKUP($A147,Paste!$B$5:$T$500,11,FALSE)) -> 0 | E147: =IF(ISERROR(VLOOKUP($A147,Paste!$B$5:$T$500,16,FALSE))=TRUE,0,VLOOKUP($A147,Paste!$B$5:$T$500,16,FALSE)) -> 0 | F147: =IF(ISERROR(VLOOKUP($A147,Paste!$B$5:$T$500,19,FALSE))=TRUE,0,VLOOKUP($A147,Paste!$B$5:$T$500,19,FALSE)) -> 0
A148: 39917 | B148: =IF(ISERROR(VLOOKUP($A148,Paste!$B$5:$T$500,4,FALSE))=TRUE,0,VLOOKUP($A148,Paste!$B$5:$T$500,4,FALSE)) -> 0 | C148: =IF(ISERROR(VLOOKUP($A148,Paste!$B$5:$T$500,8,FALSE))=TRUE,0,VLOOKUP($A148,Paste!$B$5:$T$500,8,FALSE)) -> 0 | D148: =IF(ISERROR(VLOOKUP($A148,Paste!$B$5:$T$500,11,FALSE))=TRUE,0,VLOOKUP($A148,Paste!$B$5:$T$500,11,FALSE)) -> 0 | E148: =IF(ISERROR(VLOOKUP($A148,Paste!$B$5:$T$500,16,FALSE))=TRUE,0,VLOOKUP($A148,Paste!$B$5:$T$500,16,FALSE)) -> 0 | F148: =IF(ISERROR(VLOOKUP($A148,Paste!$B$5:$T$500,19,FALSE))=TRUE,0,VLOOKUP($A148,Paste!$B$5:$T$500,19,FALSE)) -> 0
A149: 39918 | B149: =IF(ISERROR(VLOOKUP($A149,Paste!$B$5:$T$500,4,FALSE))=TRUE,0,VLOOKUP($A149,Paste!$B$5:$T$500,4,FALSE)) -> 0 | C149: =IF(ISERROR(VLOOKUP($A149,Paste!$B$5:$T$500,8,FALSE))=TRUE,0,VLOOKUP($A149,Paste!$B$5:$T$500,8,FALSE)) -> 0 | D149: =IF(ISERROR(VLOOKUP($A149,Paste!$B$5:$T$500,11,FALSE))=TRUE,0,VLOOKUP($A149,Paste!$B$5:$T$500,11,FALSE)) -> 0 | E149: =IF(ISERROR(VLOOKUP($A149,Paste!$B$5:$T$500,16,FALSE))=TRUE,0,VLOOKUP($A149,Paste!$B$5:$T$500,16,FALSE)) -> 0 | F149: =IF(ISERROR(VLOOKUP($A149,Paste!$B$5:$T$500,19,FALSE))=TRUE,0,VLOOKUP($A149,Paste!$B$5:$T$500,19,FALSE)) -> 0
A150: 39919 | B150: =IF(ISERROR(VLOOKUP($A150,Paste!$B$5:$T$500,4,FALSE))=TRUE,0,VLOOKUP($A150,Paste!$B$5:$T$500,4,FALSE)) -> 0 | C150: =IF(ISERROR(VLOOKUP($A150,Paste!$B$5:$T$500,8,FALSE))=TRUE,0,VLOOKUP($A150,Paste!$B$5:$T$500,8,FALSE)) -> 0 | D150: =IF(ISERROR(VLOOKUP($A150,Paste!$B$5:$T$500,11,FALSE))=TRUE,0,VLOOKUP($A150,Paste!$B$5:$T$500,11,FALSE)) -> 0 | E150: =IF(ISERROR(VLOOKUP($A150,Paste!$B$5:$T$500,16,FALSE))=TRUE,0,VLOOKUP($A150,Paste!$B$5:$T$500,16,FALSE)) -> 0 | F150: =IF(ISERROR(VLOOKUP($A150,Paste!$B$5:$T$500,19,FALSE))=TRUE,0,VLOOKUP($A150,Paste!$B$5:$T$500,19,FALSE)) -> 0
A151: 39920 | B151: =IF(ISERROR(VLOOKUP($A151,Paste!$B$5:$T$500,4,FALSE))=TRUE,0,VLOOKUP($A151,Paste!$B$5:$T$500,4,FALSE)) -> 0 | C151: =IF(ISERROR(VLOOKUP($A151,Paste!$B$5:$T$500,8,FALSE))=TRUE,0,VLOOKUP($A151,Paste!$B$5:$T$500,8,FALSE)) -> 0 | D151: =IF(ISERROR(VLOOKUP($A151,Paste!$B$5:$T$500,11,FALSE))=TRUE,0,VLOOKUP($A151,Paste!$B$5:$T$500,11,FALSE)) -> 0 | E151: =IF(ISERROR(VLOOKUP($A151,Paste!$B$5:$T$500,16,FALSE))=TRUE,0,VLOOKUP($A151,Paste!$B$5:$T$500,16,FALSE)) -> 0 | F151: =IF(ISERROR(VLOOKUP($A151,Paste!$B$5:$T$500,19,FALSE))=TRUE,0,VLOOKUP($A151,Paste!$B$5:$T$500,19,FALSE)) -> 0
A152: 39921 | B152: =IF(ISERROR(VLOOKUP($A152,Paste!$B$5:$T$500,4,FALSE))=TRUE,0,VLOOKUP($A152,Paste!$B$5:$T$500,4,FALSE)) -> 0 | C152: =IF(ISERROR(VLOOKUP($A152,Paste!$B$5:$T$500,8,FALSE))=TRUE,0,VLOOKUP($A152,Paste!$B$5:$T$500,8,FALSE)) -> 0 | D152: =IF(ISERROR(VLOOKUP($A152,Paste!$B$5:$T$500,11,FALSE))=TRUE,0,VLOOKUP($A152,Paste!$B$5:$T$500,11,FALSE)) -> 0 | E152: =IF(ISERROR(VLOOKUP($A152,Paste!$B$5:$T$500,16,FALSE))=TRUE,0,VLOOKUP($A152,Paste!$B$5:$T$500,16,FALSE)) -> 0 | F152: =IF(ISERROR(VLOOKUP($A152,Paste!$B$5:$T$500,19,FALSE))=TRUE,0,VLOOKUP($A152,Paste!$B$5:$T$500,19,FALSE)) -> 0
A153: 39922 | B153: =IF(ISERROR(VLOOKUP($A153,Paste!$B$5:$T$500,4,FALSE))=TRUE,0,VLOOKUP($A153,Paste!$B$5:$T$500,4,FALSE)) -> 0 | C153: =IF(ISERROR(VLOOKUP($A153,Paste!$B$5:$T$500,8,FALSE))=TRUE,0,VLOOKUP($A153,Paste!$B$5:$T$500,8,FALSE)) -> 0 | D153: =IF(ISERROR(VLOOKUP($A153,Paste!$B$5:$T$500,11,FALSE))=TRUE,0,VLOOKUP($A153,Paste!$B$5:$T$500,11,FALSE)) -> 0 | E153: =IF(ISERROR(VLOOKUP($A153,Paste!$B$5:$T$500,16,FALSE))=TRUE,0,VLOOKUP($A153,Paste!$B$5:$T$500,16,FALSE)) -> 0 | F153: =IF(ISERROR(VLOOKUP($A153,Paste!$B$5:$T$500,19,FALSE))=TRUE,0,VLOOKUP($A153,Paste!$B$5:$T$500,19,FALSE)) -> 0
A154: 39923 | B154: =IF(ISERROR(VLOOKUP($A154,Paste!$B$5:$T$500,4,FALSE))=TRUE,0,VLOOKUP($A154,Paste!$B$5:$T$500,4,FALSE)) -> 0 | C154: =IF(ISERROR(VLOOKUP($A154,Paste!$B$5:$T$500,8,FALSE))=TRUE,0,VLOOKUP($A154,Paste!$B$5:$T$500,8,FALSE)) -> 0 | D154: =IF(ISERROR(VLOOKUP($A154,Paste!$B$5:$T$500,11,FALSE))=TRUE,0,VLOOKUP($A154,Paste!$B$5:$T$500,11,FALSE)) -> 0 | E154: =IF(ISERROR(VLOOKUP($A154,Paste!$B$5:$T$500,16,FALSE))=TRUE,0,VLOOKUP($A154,Paste!$B$5:$T$500,16,FALSE)) -> 0 | F154: =IF(ISERROR(VLOOKUP($A154,Paste!$B$5:$T$500,19,FALSE))=TRUE,0,VLOOKUP($A154,Paste!$B$5:$T$500,19,FALSE)) -> 0
A155: 39924 | B155: =IF(ISERROR(VLOOKUP($A155,Paste!$B$5:$T$500,4,FALSE))=TRUE,0,VLOOKUP($A155,Paste!$B$5:$T$500,4,FALSE)) -> 0 | C155: =IF(ISERROR(VLOOKUP($A155,Paste!$B$5:$T$500,8,FALSE))=TRUE,0,VLOOKUP($A155,Paste!$B$5:$T$500,8,FALSE)) -> 0 | D155: =IF(ISERROR(VLOOKUP($A155,Paste!$B$5:$T$500,11,FALSE))=TRUE,0,VLOOKUP($A155,Paste!$B$5:$T$500,11,FALSE)) -> 0 | E155: =IF(ISERROR(VLOOKUP($A155,Paste!$B$5:$T$500,16,FALSE))=TRUE,0,VLOOKUP($A155,Paste!$B$5:$T$500,16,FALSE)) -> 0 | F155: =IF(ISERROR(VLOOKUP($A155,Paste!$B$5:$T$500,19,FALSE))=TRUE,0,VLOOKUP($A155,Paste!$B$5:$T$500,19,FALSE)) -> 0
A156: 39925 | B156: =IF(ISERROR(VLOOKUP($A156,Paste!$B$5:$T$500,4,FALSE))=TRUE,0,VLOOKUP($A156,Paste!$B$5:$T$500,4,FALSE)) -> 0 | C156: =IF(ISERROR(VLOOKUP($A156,Paste!$B$5:$T$500,8,FALSE))=TRUE,0,VLOOKUP($A156,Paste!$B$5:$T$500,8,FALSE)) -> 0 | D156: =IF(ISERROR(VLOOKUP($A156,Paste!$B$5:$T$500,11,FALSE))=TRUE,0,VLOOKUP($A156,Paste!$B$5:$T$500,11,FALSE)) -> 0 | E156: =IF(ISERROR(VLOOKUP($A156,Paste!$B$5:$T$500,16,FALSE))=TRUE,0,VLOOKUP($A156,Paste!$B$5:$T$500,16,FALSE)) -> 0 | F156: =IF(ISERROR(VLOOKUP($A156,Paste!$B$5:$T$500,19,FALSE))=TRUE,0,VLOOKUP($A156,Paste!$B$5:$T$500,19,FALSE)) -> 0
A157: 39926 | B157: =IF(ISERROR(VLOOKUP($A157,Paste!$B$5:$T$500,4,FALSE))=TRUE,0,VLOOKUP($A157,Paste!$B$5:$T$500,4,FALSE)) -> 0 | C157: =IF(ISERROR(VLOOKUP($A157,Paste!$B$5:$T$500,8,FALSE))=TRUE,0,VLOOKUP($A157,Paste!$B$5:$T$500,8,FALSE)) -> 0 | D157: =IF(ISERROR(VLOOKUP($A157,Paste!$B$5:$T$500,11,FALSE))=TRUE,0,VLOOKUP($A157,Paste!$B$5:$T$500,11,FALSE)) -> 0 | E157: =IF(ISERROR(VLOOKUP($A157,Paste!$B$5:$T$500,16,FALSE))=TRUE,0,VLOOKUP($A157,Paste!$B$5:$T$500,16,FALSE)) -> 0 | F157: =IF(ISERROR(VLOOKUP($A157,Paste!$B$5:$T$500,19,FALSE))=TRUE,0,VLOOKUP($A157,Paste!$B$5:$T$500,19,FALSE)) -> 0
A158: 39927 | B158: =IF(ISERROR(VLOOKUP($A158,Paste!$B$5:$T$500,4,FALSE))=TRUE,0,VLOOKUP($A158,Paste!$B$5:$T$500,4,FALSE)) -> 0 | C158: =IF(ISERROR(VLOOKUP($A158,Paste!$B$5:$T$500,8,FALSE))=TRUE,0,VLOOKUP($A158,Paste!$B$5:$T$500,8,FALSE)) -> 0 | D158: =IF(ISERROR(VLOOKUP($A158,Paste!$B$5:$T$500,11,FALSE))=TRUE,0,VLOOKUP($A158,Paste!$B$5:$T$500,11,FALSE)) -> 0 | E158: =IF(ISERROR(VLOOKUP($A158,Paste!$B$5:$T$500,16,FALSE))=TRUE,0,VLOOKUP($A158,Paste!$B$5:$T$500,16,FALSE)) -> 0 | F158: =IF(ISERROR(VLOOKUP($A158,Paste!$B$5:$T$500,19,FALSE))=TRUE,0,VLOOKUP($A158,Paste!$B$5:$T$500,19,FALSE)) -> 0
A159: 39928 | B159: =IF(ISERROR(VLOOKUP($A159,Paste!$B$5:$T$500,4,FALSE))=TRUE,0,VLOOKUP($A159,Paste!$B$5:$T$500,4,FALSE)) -> 0 | C159: =IF(ISERROR(VLOOKUP($A159,Paste!$B$5:$T$500,8,FALSE))=TRUE,0,VLOOKUP($A159,Paste!$B$5:$T$500,8,FALSE)) -> 0 | D159: =IF(ISERROR(VLOOKUP($A159,Paste!$B$5:$T$500,11,FALSE))=TRUE,0,VLOOKUP($A159,Paste!$B$5:$T$500,11,FALSE)) -> 0 | E159: =IF(ISERROR(VLOOKUP($A159,Paste!$B$5:$T$500,16,FALSE))=TRUE,0,VLOOKUP($A159,Paste!$B$5:$T$500,16,FALSE)) -> 0 | F159: =IF(ISERROR(VLOOKUP($A159,Paste!$B$5:$T$500,19,FALSE))=TRUE,0,VLOOKUP($A159,Paste!$B$5:$T$500,19,FALSE)) -> 0
A160: 39929 | B160: =IF(ISERROR(VLOOKUP($A160,Paste!$B$5:$T$500,4,FALSE))=TRUE,0,VLOOKUP($A160,Paste!$B$5:$T$500,4,FALSE)) -> 0 | C160: =IF(ISERROR(VLOOKUP($A160,Paste!$B$5:$T$500,8,FALSE))=TRUE,0,VLOOKUP($A160,Paste!$B$5:$T$500,8,FALSE)) -> 0 | D160: =IF(ISERROR(VLOOKUP($A160,Paste!$B$5:$T$500,11,FALSE))=TRUE,0,VLOOKUP($A160,Paste!$B$5:$T$500,11,FALSE)) -> 0 | E160: =IF(ISERROR(VLOOKUP($A160,Paste!$B$5:$T$500,16,FALSE))=TRUE,0,VLOOKUP($A160,Paste!$B$5:$T$500,16,FALSE)) -> 0 | F160: =IF(ISERROR(VLOOKUP($A160,Paste!$B$5:$T$500,19,FALSE))=TRUE,0,VLOOKUP($A160,Paste!$B$5:$T$500,19,FALSE)) -> 0
A161: 39988 | B161: =IF(ISERROR(VLOOKUP($A161,Paste!$B$5:$T$500,4,FALSE))=TRUE,0,VLOOKUP($A161,Paste!$B$5:$T$500,4,FALSE)) -> 0 | C161: =IF(ISERROR(VLOOKUP($A161,Paste!$B$5:$T$500,8,FALSE))=TRUE,0,VLOOKUP($A161,Paste!$B$5:$T$500,8,FALSE)) -> 0 | D161: =IF(ISERROR(VLOOKUP($A161,Paste!$B$5:$T$500,11,FALSE))=TRUE,0,VLOOKUP($A161,Paste!$B$5:$T$500,11,FALSE)) -> 0 | E161: =IF(ISERROR(VLOOKUP($A161,Paste!$B$5:$T$500,16,FALSE))=TRUE,0,VLOOKUP($A161,Paste!$B$5:$T$500,16,FALSE)) -> 0 | F161: =IF(ISERROR(VLOOKUP($A161,Paste!$B$5:$T$500,19,FALSE))=TRUE,0,VLOOKUP($A161,Paste!$B$5:$T$500,19,FALSE)) -> 0
A162: 40101 | B162: =IF(ISERROR(VLOOKUP($A162,Paste!$B$5:$T$500,4,FALSE))=TRUE,0,VLOOKUP($A162,Paste!$B$5:$T$500,4,FALSE)) -> 0 | C162: =IF(ISERROR(VLOOKUP($A162,Paste!$B$5:$T$500,8,FALSE))=TRUE,0,VLOOKUP($A162,Paste!$B$5:$T$500,8,FALSE)) -> 0 | D162: =IF(ISERROR(VLOOKUP($A162,Paste!$B$5:$T$500,11,FALSE))=TRUE,0,VLOOKUP($A162,Paste!$B$5:$T$500,11,FALSE)) -> 0 | E162: =IF(ISERROR(VLOOKUP($A162,Paste!$B$5:$T$500,16,FALSE))=TRUE,0,VLOOKUP($A162,Paste!$B$5:$T$500,16,FALSE)) -> 0 | F162: =IF(ISERROR(VLOOKUP($A162,Paste!$B$5:$T$500,19,FALSE))=TRUE,0,VLOOKUP($A162,Paste!$B$5:$T$500,19,FALSE)) -> 0
A163: 40102 | B163: =IF(ISERROR(VLOOKUP($A163,Paste!$B$5:$T$500,4,FALSE))=TRUE,0,VLOOKUP($A163,Paste!$B$5:$T$500,4,FALSE)) -> 0 | C163: =IF(ISERROR(VLOOKUP($A163,Paste!$B$5:$T$500,8,FALSE))=TRUE,0,VLOOKUP($A163,Paste!$B$5:$T$500,8,FALSE)) -> 0 | D163: =IF(ISERROR(VLOOKUP($A163,Paste!$B$5:$T$500,11,FALSE))=TRUE,0,VLOOKUP($A163,Paste!$B$5:$T$500,11,FALSE)) -> 0 | E163: =IF(ISERROR(VLOOKUP($A163,Paste!$B$5:$T$500,16,FALSE))=TRUE,0,VLOOKUP($A163,Paste!$B$5:$T$500,16,FALSE)) -> 0 | F163: =IF(ISERROR(VLOOKUP($A163,Paste!$B$5:$T$500,19,FALSE))=TRUE,0,VLOOKUP($A163,Paste!$B$5:$T$500,19,FALSE)) -> 0
A164: 40103 | B164: =IF(ISERROR(VLOOKUP($A164,Paste!$B$5:$T$500,4,FALSE))=TRUE,0,VLOOKUP($A164,Paste!$B$5:$T$500,4,FALSE)) -> 0 | C164: =IF(ISERROR(VLOOKUP($A164,Paste!$B$5:$T$500,8,FALSE))=TRUE,0,VLOOKUP($A164,Paste!$B$5:$T$500,8,FALSE)) -> 0 | D164: =IF(ISERROR(VLOOKUP($A164,Paste!$B$5:$T$500,11,FALSE))=TRUE,0,VLOOKUP($A164,Paste!$B$5:$T$500,11,FALSE)) -> 0 | E164: =IF(ISERROR(VLOOKUP($A164,Paste!$B$5:$T$500,16,FALSE))=TRUE,0,VLOOKUP($A164,Paste!$B$5:$T$500,16,FALSE)) -> 0 | F164: =IF(ISERROR(VLOOKUP($A164,Paste!$B$5:$T$500,19,FALSE))=TRUE,0,VLOOKUP($A164,Paste!$B$5:$T$500,19,FALSE)) -> 0
A165: 40104 | B165: =IF(ISERROR(VLOOKUP($A165,Paste!$B$5:$T$500,4,FALSE))=TRUE,0,VLOOKUP($A165,Paste!$B$5:$T$500,4,FALSE)) -> 0 | C165: =IF(ISERROR(VLOOKUP($A165,Paste!$B$5:$T$500,8,FALSE))=TRUE,0,VLOOKUP($A165,Paste!$B$5:$T$500,8,FALSE)) -> 0 | D165: =IF(ISERROR(VLOOKUP($A165,Paste!$B$5:$T$500,11,FALSE))=TRUE,0,VLOOKUP($A165,Paste!$B$5:$T$500,11,FALSE)) -> 0 | E165: =IF(ISERROR(VLOOKUP($A165,Paste!$B$5:$T$500,16,FALSE))=TRUE,0,VLOOKUP($A165,Paste!$B$5:$T$500,16,FALSE)) -> 0 | F165: =IF(ISERROR(VLOOKUP($A165,Paste!$B$5:$T$500,19,FALSE))=TRUE,0,VLOOKUP($A165,Paste!$B$5:$T$500,19,FALSE)) -> 0
A166: 40105 | B166: =IF(ISERROR(VLOOKUP($A166,Paste!$B$5:$T$500,4,FALSE))=TRUE,0,VLOOKUP($A166,Paste!$B$5:$T$500,4,FALSE)) -> 0 | C166: =IF(ISERROR(VLOOKUP($A166,Paste!$B$5:$T$500,8,FALSE))=TRUE,0,VLOOKUP($A166,Paste!$B$5:$T$500,8,FALSE)) -> 0 | D166: =IF(ISERROR(VLOOKUP($A166,Paste!$B$5:$T$500,11,FALSE))=TRUE,0,VLOOKUP($A166,Paste!$B$5:$T$500,11,FALSE)) -> 0 | E166: =IF(ISERROR(VLOOKUP($A166,Paste!$B$5:$T$500,16,FALSE))=TRUE,0,VLOOKUP($A166,Paste!$B$5:$T$500,16,FALSE)) -> 0 | F166: =IF(ISERROR(VLOOKUP($A166,Paste!$B$5:$T$500,19,FALSE))=TRUE,0,VLOOKUP($A166,Paste!$B$5:$T$500,19,FALSE)) -> 0
A167: 40106 | B167: =IF(ISERROR(VLOOKUP($A167,Paste!$B$5:$T$500,4,FALSE))=TRUE,0,VLOOKUP($A167,Paste!$B$5:$T$500,4,FALSE)) -> 0 | C167: =IF(ISERROR(VLOOKUP($A167,Paste!$B$5:$T$500,8,FALSE))=TRUE,0,VLOOKUP($A167,Paste!$B$5:$T$500,8,FALSE)) -> 0 | D167: =IF(ISERROR(VLOOKUP($A167,Paste!$B$5:$T$500,11,FALSE))=TRUE,0,VLOOKUP($A167,Paste!$B$5:$T$500,11,FALSE)) -> 0 | E167: =IF(ISERROR(VLOOKUP($A167,Paste!$B$5:$T$500,16,FALSE))=TRUE,0,VLOOKUP($A167,Paste!$B$5:$T$500,16,FALSE)) -> 0 | F167: =IF(ISERROR(VLOOKUP($A167,Paste!$B$5:$T$500,19,FALSE))=TRUE,0,VLOOKUP($A167,Paste!$B$5:$T$500,19,FALSE)) -> 0
A168: 40107 | B168: =IF(ISERROR(VLOOKUP($A168,Paste!$B$5:$T$500,4,FALSE))=TRUE,0,VLOOKUP($A168,Paste!$B$5:$T$500,4,FALSE)) -> 0 | C168: =IF(ISERROR(VLOOKUP($A168,Paste!$B$5:$T$500,8,FALSE))=TRUE,0,VLOOKUP($A168,Paste!$B$5:$T$500,8,FALSE)) -> 0 | D168: =IF(ISERROR(VLOOKUP($A168,Paste!$B$5:$T$500,11,FALSE))=TRUE,0,VLOOKUP($A168,Paste!$B$5:$T$500,11,FALSE)) -> 0 | E168: =IF(ISERROR(VLOOKUP($A168,Paste!$B$5:$T$500,16,FALSE))=TRUE,0,VLOOKUP($A168,Paste!$B$5:$T$500,16,FALSE)) -> 0 | F168: =IF(ISERROR(VLOOKUP($A168,Paste!$B$5:$T$500,19,FALSE))=TRUE,0,VLOOKUP($A168,Paste!$B$5:$T$500,19,FALSE)) -> 0
A169: 40201 | B169: =IF(ISERROR(VLOOKUP($A169,Paste!$B$5:$T$500,4,FALSE))=TRUE,0,VLOOKUP($A169,Paste!$B$5:$T$500,4,FALSE)) -> 0 | C169: =IF(ISERROR(VLOOKUP($A169,Paste!$B$5:$T$500,8,FALSE))=TRUE,0,VLOOKUP($A169,Paste!$B$5:$T$500,8,FALSE)) -> 0 | D169: =IF(ISERROR(VLOOKUP($A169,Paste!$B$5:$T$500,11,FALSE))=TRUE,0,VLOOKUP($A169,Paste!$B$5:$T$500,11,FALSE)) -> 0 | E169: =IF(ISERROR(VLOOKUP($A169,Paste!$B$5:$T$500,16,FALSE))=TRUE,0,VLOOKUP($A169,Paste!$B$5:$T$500,16,FALSE)) -> 0 | F169: =IF(ISERROR(VLOOKUP($A169,Paste!$B$5:$T$500,19,FALSE))=TRUE,0,VLOOKUP($A169,Paste!$B$5:$T$500,19,FALSE)) -> 0
A170: 40202 | B170: =IF(ISERROR(VLOOKUP($A170,Paste!$B$5:$T$500,4,FALSE))=TRUE,0,VLOOKUP($A170,Paste!$B$5:$T$500,4,FALSE)) -> 0 | C170: =IF(ISERROR(VLOOKUP($A170,Paste!$B$5:$T$500,8,FALSE))=TRUE,0,VLOOKUP($A170,Paste!$B$5:$T$500,8,FALSE)) -> 0 | D170: =IF(ISERROR(VLOOKUP($A170,Paste!$B$5:$T$500,11,FALSE))=TRUE,0,VLOOKUP($A170,Paste!$B$5:$T$500,11,FALSE)) -> 0 | E170: =IF(ISERROR(VLOOKUP($A170,Paste!$B$5:$T$500,16,FALSE))=TRUE,0,VLOOKUP($A170,Paste!$B$5:$T$500,16,FALSE)) -> 0 | F170: =IF(ISERROR(VLOOKUP($A170,Paste!$B$5:$T$500,19,FALSE))=TRUE,0,VLOOKUP($A170,Paste!$B$5:$T$500,19,FALSE)) -> 0
A171: 40203 | B171: =IF(ISERROR(VLOOKUP($A171,Paste!$B$5:$T$500,4,FALSE))=TRUE,0,VLOOKUP($A171,Paste!$B$5:$T$500,4,FALSE)) -> 0 | C171: =IF(ISERROR(VLOOKUP($A171,Paste!$B$5:$T$500,8,FALSE))=TRUE,0,VLOOKUP($A171,Paste!$B$5:$T$500,8,FALSE)) -> 0 | D171: =IF(ISERROR(VLOOKUP($A171,Paste!$B$5:$T$500,11,FALSE))=TRUE,0,VLOOKUP($A171,Paste!$B$5:$T$500,11,FALSE)) -> 0 | E171: =IF(ISERROR(VLOOKUP($A171,Paste!$B$5:$T$500,16,FALSE))=TRUE,0,VLOOKUP($A171,Paste!$B$5:$T$500,16,FALSE)) -> 0 | F171: =IF(ISERROR(VLOOKUP($A171,Paste!$B$5:$T$500,19,FALSE))=TRUE,0,VLOOKUP($A171,Paste!$B$5:$T$500,19,FALSE)) -> 0
A172: 40204 | B172: =IF(ISERROR(VLOOKUP($A172,Paste!$B$5:$T$500,4,FALSE))=TRUE,0,VLOOKUP($A172,Paste!$B$5:$T$500,4,FALSE)) -> 0 | C172: =IF(ISERROR(VLOOKUP($A172,Paste!$B$5:$T$500,8,FALSE))=TRUE,0,VLOOKUP($A172,Paste!$B$5:$T$500,8,FALSE)) -> 0 | D172: =IF(ISERROR(VLOOKUP($A172,Paste!$B$5:$T$500,11,FALSE))=TRUE,0,VLOOKUP($A172,Paste!$B$5:$T$500,11,FALSE)) -> 0 | E172: =IF(ISERROR(VLOOKUP($A172,Paste!$B$5:$T$500,16,FALSE))=TRUE,0,VLOOKUP($A172,Paste!$B$5:$T$500,16,FALSE)) -> 0 | F172: =IF(ISERROR(VLOOKUP($A172,Paste!$B$5:$T$500,19,FALSE))=TRUE,0,VLOOKUP($A172,Paste!$B$5:$T$500,19,FALSE)) -> 0
A173: 40205 | B173: =IF(ISERROR(VLOOKUP($A173,Paste!$B$5:$T$500,4,FALSE))=TRUE,0,VLOOKUP($A173,Paste!$B$5:$T$500,4,FALSE)) -> 0 | C173: =IF(ISERROR(VLOOKUP($A173,Paste!$B$5:$T$500,8,FALSE))=TRUE,0,VLOOKUP($A173,Paste!$B$5:$T$500,8,FALSE)) -> 0 | D173: =IF(ISERROR(VLOOKUP($A173,Paste!$B$5:$T$500,11,FALSE))=TRUE,0,VLOOKUP($A173,Paste!$B$5:$T$500,11,FALSE)) -> 0 | E173: =IF(ISERROR(VLOOKUP($A173,Paste!$B$5:$T$500,16,FALSE))=TRUE,0,VLOOKUP($A173,Paste!$B$5:$T$500,16,FALSE)) -> 0 | F173: =IF(ISERROR(VLOOKUP($A173,Paste!$B$5:$T$500,19,FALSE))=TRUE,0,VLOOKUP($A173,Paste!$B$5:$T$500,19,FALSE)) -> 0
A174: 40206 | B174: =IF(ISERROR(VLOOKUP($A174,Paste!$B$5:$T$500,4,FALSE))=TRUE,0,VLOOKUP($A174,Paste!$B$5:$T$500,4,FALSE)) -> 0 | C174: =IF(ISERROR(VLOOKUP($A174,Paste!$B$5:$T$500,8,FALSE))=TRUE,0,VLOOKUP($A174,Paste!$B$5:$T$500,8,FALSE)) -> 0 | D174: =IF(ISERROR(VLOOKUP($A174,Paste!$B$5:$T$500,11,FALSE))=TRUE,0,VLOOKUP($A174,Paste!$B$5:$T$500,11,FALSE)) -> 0 | E174: =IF(ISERROR(VLOOKUP($A174,Paste!$B$5:$T$500,16,FALSE))=TRUE,0,VLOOKUP($A174,Paste!$B$5:$T$500,16,FALSE)) -> 0 | F174: =IF(ISERROR(VLOOKUP($A174,Paste!$B$5:$T$500,19,FALSE))=TRUE,0,VLOOKUP($A174,Paste!$B$5:$T$500,19,FALSE)) -> 0
A175: 40207 | B175: =IF(ISERROR(VLOOKUP($A175,Paste!$B$5:$T$500,4,FALSE))=TRUE,0,VLOOKUP($A175,Paste!$B$5:$T$500,4,FALSE)) -> 0 | C175: =IF(ISERROR(VLOOKUP($A175,Paste!$B$5:$T$500,8,FALSE))=TRUE,0,VLOOKUP($A175,Paste!$B$5:$T$500,8,FALSE)) -> 0 | D175: =IF(ISERROR(VLOOKUP($A175,Paste!$B$5:$T$500,11,FALSE))=TRUE,0,VLOOKUP($A175,Paste!$B$5:$T$500,11,FALSE)) -> 0 | E175: =IF(ISERROR(VLOOKUP($A175,Paste!$B$5:$T$500,16,FALSE))=TRUE,0,VLOOKUP($A175,Paste!$B$5:$T$500,16,FALSE)) -> 0 | F175: =IF(ISERROR(VLOOKUP($A175,Paste!$B$5:$T$500,19,FALSE))=TRUE,0,VLOOKUP($A175,Paste!$B$5:$T$500,19,FALSE)) -> 0
A176: 40208 | B176: =IF(ISERROR(VLOOKUP($A176,Paste!$B$5:$T$500,4,FALSE))=TRUE,0,VLOOKUP($A176,Paste!$B$5:$T$500,4,FALSE)) -> 0 | C176: =IF(ISERROR(VLOOKUP($A176,Paste!$B$5:$T$500,8,FALSE))=TRUE,0,VLOOKUP($A176,Paste!$B$5:$T$500,8,FALSE)) -> 0 | D176: =IF(ISERROR(VLOOKUP($A176,Paste!$B$5:$T$500,11,FALSE))=TRUE,0,VLOOKUP($A176,Paste!$B$5:$T$500,11,FALSE)) -> 0 | E176: =IF(ISERROR(VLOOKUP($A176,Paste!$B$5:$T$500,16,FALSE))=TRUE,0,VLOOKUP($A176,Paste!$B$5:$T$500,16,FALSE)) -> 0 | F176: =IF(ISERROR(VLOOKUP($A176,Paste!$B$5:$T$500,19,FALSE))=TRUE,0,VLOOKUP($A176,Paste!$B$5:$T$500,19,FALSE)) -> 0
A177: 40209 | B177: =IF(ISERROR(VLOOKUP($A177,Paste!$B$5:$T$500,4,FALSE))=TRUE,0,VLOOKUP($A177,Paste!$B$5:$T$500,4,FALSE)) -> 0 | C177: =IF(ISERROR(VLOOKUP($A177,Paste!$B$5:$T$500,8,FALSE))=TRUE,0,VLOOKUP($A177,Paste!$B$5:$T$500,8,FALSE)) -> 0 | D177: =IF(ISERROR(VLOOKUP($A177,Paste!$B$5:$T$500,11,FALSE))=TRUE,0,VLOOKUP($A177,Paste!$B$5:$T$500,11,FALSE)) -> 0 | E177: =IF(ISERROR(VLOOKUP($A177,Paste!$B$5:$T$500,16,FALSE))=TRUE,0,VLOOKUP($A177,Paste!$B$5:$T$500,16,FALSE)) -> 0 | F177: =IF(ISERROR(VLOOKUP($A177,Paste!$B$5:$T$500,19,FALSE))=TRUE,0,VLOOKUP($A177,Paste!$B$5:$T$500,19,FALSE)) -> 0
A178: 40301 | B178: =IF(ISERROR(VLOOKUP($A178,Paste!$B$5:$T$500,4,FALSE))=TRUE,0,VLOOKUP($A178,Paste!$B$5:$T$500,4,FALSE)) -> 0 | C178: =IF(ISERROR(VLOOKUP($A178,Paste!$B$5:$T$500,8,FALSE))=TRUE,0,VLOOKUP($A178,Paste!$B$5:$T$500,8,FALSE)) -> 0 | D178: =IF(ISERROR(VLOOKUP($A178,Paste!$B$5:$T$500,11,FALSE))=TRUE,0,VLOOKUP($A178,Paste!$B$5:$T$500,11,FALSE)) -> 0 | E178: =IF(ISERROR(VLOOKUP($A178,Paste!$B$5:$T$500,16,FALSE))=TRUE,0,VLOOKUP($A178,Paste!$B$5:$T$500,16,FALSE)) -> 0 | F178: =IF(ISERROR(VLOOKUP($A178,Paste!$B$5:$T$500,19,FALSE))=TRUE,0,VLOOKUP($A178,Paste!$B$5:$T$500,19,FALSE)) -> 0
A179: 40302 | B179: =IF(ISERROR(VLOOKUP($A179,Paste!$B$5:$T$500,4,FALSE))=TRUE,0,VLOOKUP($A179,Paste!$B$5:$T$500,4,FALSE)) -> 0 | C179: =IF(ISERROR(VLOOKUP($A179,Paste!$B$5:$T$500,8,FALSE))=TRUE,0,VLOOKUP($A179,Paste!$B$5:$T$500,8,FALSE)) -> 0 | D179: =IF(ISERROR(VLOOKUP($A179,Paste!$B$5:$T$500,11,FALSE))=TRUE,0,VLOOKUP($A179,Paste!$B$5:$T$500,11,FALSE)) -> 0 | E179: =IF(ISERROR(VLOOKUP($A179,Paste!$B$5:$T$500,16,FALSE))=TRUE,0,VLOOKUP($A179,Paste!$B$5:$T$500,16,FALSE)) -> 0 | F179: =IF(ISERROR(VLOOKUP($A179,Paste!$B$5:$T$500,19,FALSE))=TRUE,0,VLOOKUP($A179,Paste!$B$5:$T$500,19,FALSE)) -> 0
A180: 40303 | B180: =IF(ISERROR(VLOOKUP($A180,Paste!$B$5:$T$500,4,FALSE))=TRUE,0,VLOOKUP($A180,Paste!$B$5:$T$500,4,FALSE)) -> 0 | C180: =IF(ISERROR(VLOOKUP($A180,Paste!$B$5:$T$500,8,FALSE))=TRUE,0,VLOOKUP($A180,Paste!$B$5:$T$500,8,FALSE)) -> 0 | D180: =IF(ISERROR(VLOOKUP($A180,Paste!$B$5:$T$500,11,FALSE))=TRUE,0,VLOOKUP($A180,Paste!$B$5:$T$500,11,FALSE)) -> 0 | E180: =IF(ISERROR(VLOOKUP($A180,Paste!$B$5:$T$500,16,FALSE))=TRUE,0,VLOOKUP($A180,Paste!$B$5:$T$500,16,FALSE)) -> 0 | F180: =IF(ISERROR(VLOOKUP($A180,Paste!$B$5:$T$500,19,FALSE))=TRUE,0,VLOOKUP($A180,Paste!$B$5:$T$500,19,FALSE)) -> 0
A181: 40304 | B181: =IF(ISERROR(VLOOKUP($A181,Paste!$B$5:$T$500,4,FALSE))=TRUE,0,VLOOKUP($A181,Paste!$B$5:$T$500,4,FALSE)) -> 0 | C181: =IF(ISERROR(VLOOKUP($A181,Paste!$B$5:$T$500,8,FALSE))=TRUE,0,VLOOKUP($A181,Paste!$B$5:$T$500,8,FALSE)) -> 0 | D181: =IF(ISERROR(VLOOKUP($A181,Paste!$B$5:$T$500,11,FALSE))=TRUE,0,VLOOKUP($A181,Paste!$B$5:$T$500,11,FALSE)) -> 0 | E181: =IF(ISERROR(VLOOKUP($A181,Paste!$B$5:$T$500,16,FALSE))=TRUE,0,VLOOKUP($A181,Paste!$B$5:$T$500,16,FALSE)) -> 0 | F181: =IF(ISERROR(VLOOKUP($A181,Paste!$B$5:$T$500,19,FALSE))=TRUE,0,VLOOKUP($A181,Paste!$B$5:$T$500,19,FALSE)) -> 0
A182: 40305 | B182: =IF(ISERROR(VLOOKUP($A182,Paste!$B$5:$T$500,4,FALSE))=TRUE,0,VLOOKUP($A182,Paste!$B$5:$T$500,4,FALSE)) -> 0 | C182: =IF(ISERROR(VLOOKUP($A182,Paste!$B$5:$T$500,8,FALSE))=TRUE,0,VLOOKUP($A182,Paste!$B$5:$T$500,8,FALSE)) -> 0 | D182: =IF(ISERROR(VLOOKUP($A182,Paste!$B$5:$T$500,11,FALSE))=TRUE,0,VLOOKUP($A182,Paste!$B$5:$T$500,11,FALSE)) -> 0 | E182: =IF(ISERROR(VLOOKUP($A182,Paste!$B$5:$T$500,16,FALSE))=TRUE,0,VLOOKUP($A182,Paste!$B$5:$T$500,16,FALSE)) -> 0 | F182: =IF(ISERROR(VLOOKUP($A182,Paste!$B$5:$T$500,19,FALSE))=TRUE,0,VLOOKUP($A182,Paste!$B$5:$T$500,19,FALSE)) -> 0
A183: 40306 | B183: =IF(ISERROR(VLOOKUP($A183,Paste!$B$5:$T$500,4,FALSE))=TRUE,0,VLOOKUP($A183,Paste!$B$5:$T$500,4,FALSE)) -> 0 | C183: =IF(ISERROR(VLOOKUP($A183,Paste!$B$5:$T$500,8,FALSE))=TRUE,0,VLOOKUP($A183,Paste!$B$5:$T$500,8,FALSE)) -> 0 | D183: =IF(ISERROR(VLOOKUP($A183,Paste!$B$5:$T$500,11,FALSE))=TRUE,0,VLOOKUP($A183,Paste!$B$5:$T$500,11,FALSE)) -> 0 | E183: =IF(ISERROR(VLOOKUP($A183,Paste!$B$5:$T$500,16,FALSE))=TRUE,0,VLOOKUP($A183,Paste!$B$5:$T$500,16,FALSE)) -> 0 | F183: =IF(ISERROR(VLOOKUP($A183,Paste!$B$5:$T$500,19,FALSE))=TRUE,0,VLOOKUP($A183,Paste!$B$5:$T$500,19,FALSE)) -> 0
A184: 40307 | B184: =IF(ISERROR(VLOOKUP($A184,Paste!$B$5:$T$500,4,FALSE))=TRUE,0,VLOOKUP($A184,Paste!$B$5:$T$500,4,FALSE)) -> 0 | C184: =IF(ISERROR(VLOOKUP($A184,Paste!$B$5:$T$500,8,FALSE))=TRUE,0,VLOOKUP($A184,Paste!$B$5:$T$500,8,FALSE)) -> 0 | D184: =IF(ISERROR(VLOOKUP($A184,Paste!$B$5:$T$500,11,FALSE))=TRUE,0,VLOOKUP($A184,Paste!$B$5:$T$500,11,FALSE)) -> 0 | E184: =IF(ISERROR(VLOOKUP($A184,Paste!$B$5:$T$500,16,FALSE))=TRUE,0,VLOOKUP($A184,Paste!$B$5:$T$500,16,FALSE)) -> 0 | F184: =IF(ISERROR(VLOOKUP($A184,Paste!$B$5:$T$500,19,FALSE))=TRUE,0,VLOOKUP($A184,Paste!$B$5:$T$500,19,FALSE)) -> 0
A185: 40308 | B185: =IF(ISERROR(VLOOKUP($A185,Paste!$B$5:$T$500,4,FALSE))=TRUE,0,VLOOKUP($A185,Paste!$B$5:$T$500,4,FALSE)) -> 0 | C185: =IF(ISERROR(VLOOKUP($A185,Paste!$B$5:$T$500,8,FALSE))=TRUE,0,VLOOKUP($A185,Paste!$B$5:$T$500,8,FALSE)) -> 0 | D185: =IF(ISERROR(VLOOKUP($A185,Paste!$B$5:$T$500,11,FALSE))=TRUE,0,VLOOKUP($A185,Paste!$B$5:$T$500,11,FALSE)) -> 0 | E185: =IF(ISERROR(VLOOKUP($A185,Paste!$B$5:$T$500,16,FALSE))=TRUE,0,VLOOKUP($A185,Paste!$B$5:$T$500,16,FALSE)) -> 0 | F185: =IF(ISERROR(VLOOKUP($A185,Paste!$B$5:$T$500,19,FALSE))=TRUE,0,VLOOKUP($A185,Paste!$B$5:$T$500,19,FALSE)) -> 0
A186: 40309 | B186: =IF(ISERROR(VLOOKUP($A186,Paste!$B$5:$T$500,4,FALSE))=TRUE,0,VLOOKUP($A186,Paste!$B$5:$T$500,4,FALSE)) -> 0 | C186: =IF(ISERROR(VLOOKUP($A186,Paste!$B$5:$T$500,8,FALSE))=TRUE,0,VLOOKUP($A186,Paste!$B$5:$T$500,8,FALSE)) -> 0 | D186: =IF(ISERROR(VLOOKUP($A186,Paste!$B$5:$T$500,11,FALSE))=TRUE,0,VLOOKUP($A186,Paste!$B$5:$T$500,11,FALSE)) -> 0 | E186: =IF(ISERROR(VLOOKUP($A186,Paste!$B$5:$T$500,16,FALSE))=TRUE,0,VLOOKUP($A186,Paste!$B$5:$T$500,16,FALSE)) -> 0 | F186: =IF(ISERROR(VLOOKUP($A186,Paste!$B$5:$T$500,19,FALSE))=TRUE,0,VLOOKUP($A186,Paste!$B$5:$T$500,19,FALSE)) -> 0
A187: 40310 | B187: =IF(ISERROR(VLOOKUP($A187,Paste!$B$5:$T$500,4,FALSE))=TRUE,0,VLOOKUP($A187,Paste!$B$5:$T$500,4,FALSE)) -> 0 | C187: =IF(ISERROR(VLOOKUP($A187,Paste!$B$5:$T$500,8,FALSE))=TRUE,0,VLOOKUP($A187,Paste!$B$5:$T$500,8,FALSE)) -> 0 | D187: =IF(ISERROR(VLOOKUP($A187,Paste!$B$5:$T$500,11,FALSE))=TRUE,0,VLOOKUP($A187,Paste!$B$5:$T$500,11,FALSE)) -> 0 | E187: =IF(ISERROR(VLOOKUP($A187,Paste!$B$5:$T$500,16,FALSE))=TRUE,0,VLOOKUP($A187,Paste!$B$5:$T$500,16,FALSE)) -> 0 | F187: =IF(ISERROR(VLOOKUP($A187,Paste!$B$5:$T$500,19,FALSE))=TRUE,0,VLOOKUP($A187,Paste!$B$5:$T$500,19,FALSE)) -> 0
A188: 40311 | B188: =IF(ISERROR(VLOOKUP($A188,Paste!$B$5:$T$500,4,FALSE))=TRUE,0,VLOOKUP($A188,Paste!$B$5:$T$500,4,FALSE)) -> 0 | C188: =IF(ISERROR(VLOOKUP($A188,Paste!$B$5:$T$500,8,FALSE))=TRUE,0,VLOOKUP($A188,Paste!$B$5:$T$500,8,FALSE)) -> 0 | D188: =IF(ISERROR(VLOOKUP($A188,Paste!$B$5:$T$500,11,FALSE))=TRUE,0,VLOOKUP($A188,Paste!$B$5:$T$500,11,FALSE)) -> 0 | E188: =IF(ISERROR(VLOOKUP($A188,Paste!$B$5:$T$500,16,FALSE))=TRUE,0,VLOOKUP($A188,Paste!$B$5:$T$500,16,FALSE)) -> 0 | F188: =IF(ISERROR(VLOOKUP($A188,Paste!$B$5:$T$500,19,FALSE))=TRUE,0,VLOOKUP($A188,Paste!$B$5:$T$500,19,FALSE)) -> 0
A189: 40312 | B189: =IF(ISERROR(VLOOKUP($A189,Paste!$B$5:$T$500,4,FALSE))=TRUE,0,VLOOKUP($A189,Paste!$B$5:$T$500,4,FALSE)) -> 0 | C189: =IF(ISERROR(VLOOKUP($A189,Paste!$B$5:$T$500,8,FALSE))=TRUE,0,VLOOKUP($A189,Paste!$B$5:$T$500,8,FALSE)) -> 0 | D189: =IF(ISERROR(VLOOKUP($A189,Paste!$B$5:$T$500,11,FALSE))=TRUE,0,VLOOKUP($A189,Paste!$B$5:$T$500,11,FALSE)) -> 0 | E189: =IF(ISERROR(VLOOKUP($A189,Paste!$B$5:$T$500,16,FALSE))=TRUE,0,VLOOKUP($A189,Paste!$B$5:$T$500,16,FALSE)) -> 0 | F189: =IF(ISERROR(VLOOKUP($A189,Paste!$B$5:$T$500,19,FALSE))=TRUE,0,VLOOKUP($A189,Paste!$B$5:$T$500,19,FALSE)) -> 0
A190: 40313 | B190: =IF(ISERROR(VLOOKUP($A190,Paste!$B$5:$T$500,4,FALSE))=TRUE,0,VLOOKUP($A190,Paste!$B$5:$T$500,4,FALSE)) -> 0 | C190: =IF(ISERROR(VLOOKUP($A190,Paste!$B$5:$T$500,8,FALSE))=TRUE,0,VLOOKUP($A190,Paste!$B$5:$T$500,8,FALSE)) -> 0 | D190: =IF(ISERROR(VLOOKUP($A190,Paste!$B$5:$T$500,11,FALSE))=TRUE,0,VLOOKUP($A190,Paste!$B$5:$T$500,11,FALSE)) -> 0 | E190: =IF(ISERROR(VLOOKUP($A190,Paste!$B$5:$T$500,16,FALSE))=TRUE,0,VLOOKUP($A190,Paste!$B$5:$T$500,16,FALSE)) -> 0 | F190: =IF(ISERROR(VLOOKUP($A190,Paste!$B$5:$T$500,19,FALSE))=TRUE,0,VLOOKUP($A190,Paste!$B$5:$T$500,19,FALSE)) -> 0
A191: 40314 | B191: =IF(ISERROR(VLOOKUP($A191,Paste!$B$5:$T$500,4,FALSE))=TRUE,0,VLOOKUP($A191,Paste!$B$5:$T$500,4,FALSE)) -> 0 | C191: =IF(ISERROR(VLOOKUP($A191,Paste!$B$5:$T$500,8,FALSE))=TRUE,0,VLOOKUP($A191,Paste!$B$5:$T$500,8,FALSE)) -> 0 | D191: =IF(ISERROR(VLOOKUP($A191,Paste!$B$5:$T$500,11,FALSE))=TRUE,0,VLOOKUP($A191,Paste!$B$5:$T$500,11,FALSE)) -> 0 | E191: =IF(ISERROR(VLOOKUP($A191,Paste!$B$5:$T$500,16,FALSE))=TRUE,0,VLOOKUP($A191,Paste!$B$5:$T$500,16,FALSE)) -> 0 | F191: =IF(ISERROR(VLOOKUP($A191,Paste!$B$5:$T$500,19,FALSE))=TRUE,0,VLOOKUP($A191,Paste!$B$5:$T$500,19,FALSE)) -> 0
A192: 40315 | B192: =IF(ISERROR(VLOOKUP($A192,Paste!$B$5:$T$500,4,FALSE))=TRUE,0,VLOOKUP($A192,Paste!$B$5:$T$500,4,FALSE)) -> 0 | C192: =IF(ISERROR(VLOOKUP($A192,Paste!$B$5:$T$500,8,FALSE))=TRUE,0,VLOOKUP($A192,Paste!$B$5:$T$500,8,FALSE)) -> 0 | D192: =IF(ISERROR(VLOOKUP($A192,Paste!$B$5:$T$500,11,FALSE))=TRUE,0,VLOOKUP($A192,Paste!$B$5:$T$500,11,FALSE)) -> 0 | E192: =IF(ISERROR(VLOOKUP($A192,Paste!$B$5:$T$500,16,FALSE))=TRUE,0,VLOOKUP($A192,Paste!$B$5:$T$500,16,FALSE)) -> 0 | F192: =IF(ISERROR(VLOOKUP($A192,Paste!$B$5:$T$500,19,FALSE))=TRUE,0,VLOOKUP($A192,Paste!$B$5:$T$500,19,FALSE)) -> 0
A193: 40316 | B193: =IF(ISERROR(VLOOKUP($A193,Paste!$B$5:$T$500,4,FALSE))=TRUE,0,VLOOKUP($A193,Paste!$B$5:$T$500,4,FALSE)) -> 0 | C193: =IF(ISERROR(VLOOKUP($A193,Paste!$B$5:$T$500,8,FALSE))=TRUE,0,VLOOKUP($A193,Paste!$B$5:$T$500,8,FALSE)) -> 0 | D193: =IF(ISERROR(VLOOKUP($A193,Paste!$B$5:$T$500,11,FALSE))=TRUE,0,VLOOKUP($A193,Paste!$B$5:$T$500,11,FALSE)) -> 0 | E193: =IF(ISERROR(VLOOKUP($A193,Paste!$B$5:$T$500,16,FALSE))=TRUE,0,VLOOKUP($A193,Paste!$B$5:$T$500,16,FALSE)) -> 0 | F193: =IF(ISERROR(VLOOKUP($A193,Paste!$B$5:$T$500,19,FALSE))=TRUE,0,VLOOKUP($A193,Paste!$B$5:$T$500,19,FALSE)) -> 0
A194: 40317 | B194: =IF(ISERROR(VLOOKUP($A194,Paste!$B$5:$T$500,4,FALSE))=TRUE,0,VLOOKUP($A194,Paste!$B$5:$T$500,4,FALSE)) -> 0 | C194: =IF(ISERROR(VLOOKUP($A194,Paste!$B$5:$T$500,8,FALSE))=TRUE,0,VLOOKUP($A194,Paste!$B$5:$T$500,8,FALSE)) -> 0 | D194: =IF(ISERROR(VLOOKUP($A194,Paste!$B$5:$T$500,11,FALSE))=TRUE,0,VLOOKUP($A194,Paste!$B$5:$T$500,11,FALSE)) -> 0 | E194: =IF(ISERROR(VLOOKUP($A194,Paste!$B$5:$T$500,16,FALSE))=TRUE,0,VLOOKUP($A194,Paste!$B$5:$T$500,16,FALSE)) -> 0 | F194: =IF(ISERROR(VLOOKUP($A194,Paste!$B$5:$T$500,19,FALSE))=TRUE,0,VLOOKUP($A194,Paste!$B$5:$T$500,19,FALSE)) -> 0
A195: 40318 | B195: =IF(ISERROR(VLOOKUP($A195,Paste!$B$5:$T$500,4,FALSE))=TRUE,0,VLOOKUP($A195,Paste!$B$5:$T$500,4,FALSE)) -> 0 | C195: =IF(ISERROR(VLOOKUP($A195,Paste!$B$5:$T$500,8,FALSE))=TRUE,0,VLOOKUP($A195,Paste!$B$5:$T$500,8,FALSE)) -> 0 | D195: =IF(ISERROR(VLOOKUP($A195,Paste!$B$5:$T$500,11,FALSE))=TRUE,0,VLOOKUP($A195,Paste!$B$5:$T$500,11,FALSE)) -> 0 | E195: =IF(ISERROR(VLOOKUP($A195,Paste!$B$5:$T$500,16,FALSE))=TRUE,0,VLOOKUP($A195,Paste!$B$5:$T$500,16,FALSE)) -> 0 | F195: =IF(ISERROR(VLOOKUP($A195,Paste!$B$5:$T$500,19,FALSE))=TRUE,0,VLOOKUP($A195,Paste!$B$5:$T$500,19,FALSE)) -> 0
A196: 40319 | B196: =IF(ISERROR(VLOOKUP($A196,Paste!$B$5:$T$500,4,FALSE))=TRUE,0,VLOOKUP($A196,Paste!$B$5:$T$500,4,FALSE)) -> 0 | C196: =IF(ISERROR(VLOOKUP($A196,Paste!$B$5:$T$500,8,FALSE))=TRUE,0,VLOOKUP($A196,Paste!$B$5:$T$500,8,FALSE)) -> 0 | D196: =IF(ISERROR(VLOOKUP($A196,Paste!$B$5:$T$500,11,FALSE))=TRUE,0,VLOOKUP($A196,Paste!$B$5:$T$500,11,FALSE)) -> 0 | E196: =IF(ISERROR(VLOOKUP($A196,Paste!$B$5:$T$500,16,FALSE))=TRUE,0,VLOOKUP($A196,Paste!$B$5:$T$500,16,FALSE)) -> 0 | F196: =IF(ISERROR(VLOOKUP($A196,Paste!$B$5:$T$500,19,FALSE))=TRUE,0,VLOOKUP($A196,Paste!$B$5:$T$500,19,FALSE)) -> 0
A197: 40320 | B197: =IF(ISERROR(VLOOKUP($A197,Paste!$B$5:$T$500,4,FALSE))=TRUE,0,VLOOKUP($A197,Paste!$B$5:$T$500,4,FALSE)) -> 0 | C197: =IF(ISERROR(VLOOKUP($A197,Paste!$B$5:$T$500,8,FALSE))=TRUE,0,VLOOKUP($A197,Paste!$B$5:$T$500,8,FALSE)) -> 0 | D197: =IF(ISERROR(VLOOKUP($A197,Paste!$B$5:$T$500,11,FALSE))=TRUE,0,VLOOKUP($A197,Paste!$B$5:$T$500,11,FALSE)) -> 0 | E197: =IF(ISERROR(VLOOKUP($A197,Paste!$B$5:$T$500,16,FALSE))=TRUE,0,VLOOKUP($A197,Paste!$B$5:$T$500,16,FALSE)) -> 0 | F197: =IF(ISERROR(VLOOKUP($A197,Paste!$B$5:$T$500,19,FALSE))=TRUE,0,VLOOKUP($A197,Paste!$B$5:$T$500,19,FALSE)) -> 0
A198: 40321 | B198: =IF(ISERROR(VLOOKUP($A198,Paste!$B$5:$T$500,4,FALSE))=TRUE,0,VLOOKUP($A198,Paste!$B$5:$T$500,4,FALSE)) -> 0 | C198: =IF(ISERROR(VLOOKUP($A198,Paste!$B$5:$T$500,8,FALSE))=TRUE,0,VLOOKUP($A198,Paste!$B$5:$T$500,8,FALSE)) -> 0 | D198: =IF(ISERROR(VLOOKUP($A198,Paste!$B$5:$T$500,11,FALSE))=TRUE,0,VLOOKUP($A198,Paste!$B$5:$T$500,11,FALSE)) -> 0 | E198: =IF(ISERROR(VLOOKUP($A198,Paste!$B$5:$T$500,16,FALSE))=TRUE,0,VLOOKUP($A198,Paste!$B$5:$T$500,16,FALSE)) -> 0 | F198: =IF(ISERROR(VLOOKUP($A198,Paste!$B$5:$T$500,19,FALSE))=TRUE,0,VLOOKUP($A198,Paste!$B$5:$T$500,19,FALSE)) -> 0
A199: 40322 | B199: =IF(ISERROR(VLOOKUP($A199,Paste!$B$5:$T$500,4,FALSE))=TRUE,0,VLOOKUP($A199,Paste!$B$5:$T$500,4,FALSE)) -> 0 | C199: =IF(ISERROR(VLOOKUP($A199,Paste!$B$5:$T$500,8,FALSE))=TRUE,0,VLOOKUP($A199,Paste!$B$5:$T$500,8,FALSE)) -> 0 | D199: =IF(ISERROR(VLOOKUP($A199,Paste!$B$5:$T$500,11,FALSE))=TRUE,0,VLOOKUP($A199,Paste!$B$5:$T$500,11,FALSE)) -> 0 | E199: =IF(ISERROR(VLOOKUP($A199,Paste!$B$5:$T$500,16,FALSE))=TRUE,0,VLOOKUP($A199,Paste!$B$5:$T$500,16,FALSE)) -> 0 | F199: =IF(ISERROR(VLOOKUP($A199,Paste!$B$5:$T$500,19,FALSE))=TRUE,0,VLOOKUP($A199,Paste!$B$5:$T$500,19,FALSE)) -> 0
A200: 40323 | B200: =IF(ISERROR(VLOOKUP($A200,Paste!$B$5:$T$500,4,FALSE))=TRUE,0,VLOOKUP($A200,Paste!$B$5:$T$500,4,FALSE)) -> 0 | C200: =IF(ISERROR(VLOOKUP($A200,Paste!$B$5:$T$500,8,FALSE))=TRUE,0,VLOOKUP($A200,Paste!$B$5:$T$500,8,FALSE)) -> 0 | D200: =IF(ISERROR(VLOOKUP($A200,Paste!$B$5:$T$500,11,FALSE))=TRUE,0,VLOOKUP($A200,Paste!$B$5:$T$500,11,FALSE)) -> 0 | E200: =IF(ISERROR(VLOOKUP($A200,Paste!$B$5:$T$500,16,FALSE))=TRUE,0,VLOOKUP($A200,Paste!$B$5:$T$500,16,FALSE)) -> 0 | F200: =IF(ISERROR(VLOOKUP($A200,Paste!$B$5:$T$500,19,FALSE))=TRUE,0,VLOOKUP($A200,Paste!$B$5:$T$500,19,FALSE)) -> 0
... 1 more rows

Sheet Summary
C3: 2013 | D3: 2024 | E3: 2012 | F3: =$D$3 -> 2024 | I3: =$D$3 -> 2024
C4: Productive | D4: Productive | E4: Assessed | F4: Assessed | G4: Productive Value | H4: Assessed Value | I4: Level of
A5: LINE | B5: CLASSIFICATION | C5: Value | D5: Value | E5: Value | F5: Value | G5: Change | H5: % Change | I5: Assessment
A6: A | B6: AGRICULTRAL LAND | C6: =C25 -> 88541541 | D6: =D25 -> 0 | E6: =E25 -> 8411446 | F6: =F25 -> 0 | G6: =D6-C6 -> -88541541 | H6: =IF(E6=0,"",F6/E6-1) -> -1 | I6: =IF(D6=0,"N/A",F6/D6) -> N/A
A7: B | B7: REAL PROPERTY | C7: =C42 -> 2895652332 | D7: =D42 -> 0 | E7: =E42 -> 275086972 | F7: =F42 -> 0 | G7: -2895652332 | H7: -1 | I7: N/A
A8: C | B8: PERSONAL PROPERTY | C8: =C49 -> 123742509 | D8: =D49 -> 0 | E8: =E49 -> 11755538 | F8: =F49 -> 0 | G8: -123742509 | H8: -1 | I8: N/A
A9: D | B9: INDUSTRIAL PROPERTY | C9: =C88 -> 73328255 | D9: =D88 -> 0 | E9: =E88 -> 7860117.98 | F9: =F88 -> 0 | G9: -73328255 | H9: -1 | I9: N/A
B10: STATE ASSESSED - MINERALS | C10: 7232933 | G10: -7232933 | I10: N/A
B11: STATE ASSESSED - OTHER | C11: 477351784 | G11: -477351784 | I11: N/A
B13: LOCALLY ASSESSED VALUATION | C13: =SUM(C6:C9) -> 3181264637 | D13: =SUM(D6:D9) -> 0 | E13: =SUM(E6:E9) -> 303114074 | F13: =SUM(F6:F9) -> 0 | G13: =SUM(G6:G9) -> -3181264637 | H13: -1
B14: STATE ASSESSED VALUATION | C14: =SUM(C10:C11) -> 484584717 | D14: =SUM(D10:D11) -> 0 | E14: =SUM(E10:E11) -> 0 | F14: =SUM(F10:F11) -> 0 | G14: =SUM(G10:G11) -> -484584717
B15: TOTAL VALUATION | C15: =SUM(C13:C14) -> 3665849354 | D15: =SUM(D13:D14) -> 0 | E15: =SUM(E13:E14) -> 303114074 | F15: =SUM(F13:F14) -> 0 | G15: =SUM(G13:G14) -> -3665849354 | H15: -1
C19: 2012 | D19: =$D$3 -> 2024 | E19: 2012 | F19: =$D$3 -> 2024 | I19: =$D$3 -> 2024
C20: Productive | D20: Productive | E20: Assessed | F20: Assessed | G20: Productive Value | H20: Assessed Value | I20: Level of
A21: AGRICULTURAL LANDS | C21: Value | D21: Value | E21: Value | F21: Value | G21: Change | H21: % Change | I21: Assessment
A22: 110 | B22: IRRIGATED | C22: 21444569 | D22: ='Page 2'!E13 -> 0 | E22: 2037234 | F22: ='Page 2'!F13 -> 0 | G22: =D22-C22 -> -21444569 | H22: =IF(E22=0,"",F22/E22-1) -> -1 | I22: =IF(D22=0,"N/A",F22/D22) -> N/A
A23: 120 | B23: DRY CROP | C23: 0 | D23: ='Page 2'!E30 -> 0 | E23: 0 | F23: ='Page 2'!F30 -> 0 | G23: =D23-C23 -> 0 | H23: =IF(E23=0,"",F23/E23-1) ->  | I23: =IF(D23=0,"N/A",F23/D23) -> N/A
A24: 130 | B24: RANGE | C24: 67096972 | D24: ='Page 3'!F38 -> 0 | E24: 6374212 | F24: ='Page 3'!G38 -> 0 | G24: =D24-C24 -> -67096972 | H24: =IF(E24=0,"",F24/E24-1) -> -1 | I24: =IF(D24=0,"N/A",F24/D24) -> N/A
A25: A | B25: TOTAL AG LANDS | C25: =SUM(C22:C24) -> 88541541 | D25: =SUM(D22:D24) -> 0 | E25: =SUM(E22:E24) -> 8411446 | F25: =SUM(F22:F24) -> 0 | G25: =SUM(G22:G24) -> -88541541 | H25: =IF(E25=0,"",F25/E25-1) -> -1 | I25: =IF(D25=0,"N/A",F25/D25) -> N/A
C27: 2012 | D27: =$D$3 -> 2024 | E27: 2012 | F27: =$D$3 -> 2024
A28: AG ACREAGE | C28: Acres | D28: Acres | E28: Value/Acre | F28: Value/Acre | G28: Acre Change | H28: Value/Acre Change
A29: 110 | B29: IRRIGATED | C29: 68513 | D29: ='Page 2'!C13 -> 0 | E29: 313 | F29: =IF(D29<>0,D22/D29,0) -> 0 | G29: =D29-C29 -> -68513 | H29: =F29-E29 -> -313
A30: 120 | B30: DRY CROP | C30: 0 | D30: ='Page 2'!C30 -> 0 | E30: 0 | F30: =IF(D30<>0,D23/D30,0) -> 0 | G30: =D30-C30 -> 0 | H30: =F30-E30 -> 0
A31: 130 | B31: RANGE | C31: 1596267 | D31: ='Page 3'!D38 -> 0 | E31: 42.03367732 | F31: =IF(D31<>0,D24/D31,0) -> 0 | G31: =D31-C31 -> -1596267 | H31: =F31-E31 -> -42.03367732
C35: 2012 | D35: =$D$3 -> 2024 | E35: 2012 | F35: =$D$3 -> 2024 | G35: Dollar | H35: % | I35: =$D$3 -> 2024
C36: Fair Market | D36: Fair Market | E36: Assessed | F36: Assessed | G36: Market Value | H36: Assessed Value | I36: Level of
A37: REAL PROPERTY | C37: Value | D37: Value | E37: Value | F37: Value | G37: Change | H37: Change | I37: Assessment
A38: 200 | B38: RESIDENTIAL LAND | C38: 588484073 | D38: ='Page 4'!D13 -> 0 | E38: 55905987 | F38: ='Page 4'!E13 -> 0 | G38: =D38-C38 -> -588484073 | H38: =IF(E38=0,"",F38/E38-1) -> -1 | I38: =IF(D38=0,"N/A",F38/D38) -> N/A
A39: 300 | B39: RESIDENTIAL IMPROVED | C39: 1644341667 | D39: ='Page 4'!D22 -> 0 | E39: 156212458 | F39: ='Page 4'!E22 -> 0 | G39: =D39-C39 -> -1644341667 | H39: =IF(E39=0,"",F39/E39-1) -> -1 | I39: =IF(D39=0,"N/A",F39/D39) -> N/A
A40: 400 | B40: COMMERCIAL LAND | C40: 124031723 | D40: ='Page 4'!D26 -> 0 | E40: 11783014 | F40: ='Page 4'!E26 -> 0 | G40: =D40-C40 -> -124031723 | H40: =IF(E40=0,"",F40/E40-1) -> -1 | I40: =IF(D40=0,"N/A",F40/D40) -> N/A
A41: 500 | B41: COMMERCIAL IMPROVED | C41: 538794869 | D41: ='Page 4'!D44 -> 0 | E41: 51185513 | F41: ='Page 4'!E44 -> 0 | G41: =D41-C41 -> -538794869 | H41: =IF(E41=0,"",F41/E41-1) -> -1 | I41: =IF(D41=0,"N/A",F41/D41) -> N/A
A42: B | B42: TOTAL REAL PROPERTY | C42: =SUM(C38:C41) -> 2895652332 | D42: =SUM(D38:D41) -> 0 | E42: =SUM(E38:E41) -> 275086972 | F42: =SUM(F38:F41) -> 0 | G42: =SUM(G38:G41) -> -2895652332 | H42: =IF(E42=0,"",F42/E42-1) -> -1 | I42: =IF(D42=0,"N/A",F42/D42) -> N/A
C44: 2012 | D44: =$D$3 -> 2024 | E44: 2012 | F44: =$D$3 -> 2024 | G44: Dollar | H44: % | I44: =$D$3 -> 2024
C45: Fair Market | D45: Fair Market | E45: Assessed | F45: Assessed | G45: Market Value | H45: Assessed Value | I45: Level of
A46: COMMERCIAL PROPERTY | C46: Value | D46: Value | E46: Value | F46: Value | G46: Change | H46: Change | I46: Assessment
A47: 610 | B47: RESIDENTIAL PERSONAL PROPERTY | C47: 20191750 | D47: ='Page 4'!D52 -> 0 | E47: 1918216 | F47: ='Page 4'!E52 -> 0 | G47: =D47-C47 -> -20191750 | H47: =IF(E47=0,"",F47/E47-1) -> -1 | I47: =IF(D47=0,"N/A",F47/D47) -> N/A
A48: 730 | B48: COMMERCAIL PERSONAL PROPERTY | C48: 103550759 | D48: ='Page 4'!D57 -> 0 | E48: 9837322 | F48: ='Page 4'!E57 -> 0 | G48: =D48-C48 -> -103550759 | H48: =IF(E48=0,"",F48/E48-1) -> -1 | I48: =IF(D48=0,"N/A",F48/D48) -> N/A
A49: C | B49: TOTAL PERSONAL PROPERTY | C49: =SUM(C47:C48) -> 123742509 | D49: =SUM(D47:D48) -> 0 | E49: =SUM(E47:E48) -> 11755538 | F49: =SUM(F47:F48) -> 0 | G49: =SUM(G47:G48) -> -123742509 | H49: =IF(E49=0,"",F49/E49-1) -> -1 | I49: =IF(D49=0,"N/A",F49/D49) -> N/A
C53: 2012 | D53: =$D$3 -> 2024 | E53: 2012 | F53: =$D$3 -> 2024 | G53: Dollar | H53: % | I53: =$D$3 -> 2024
C54: Fair Market | D54: Fair Market | E54: Assessed | F54: Assessed | G54: Market Value | H54: Assessed Value | I54: Level of
A55: INDUSTRIAL PROPERTY | C55: Value | D55: Value | E55: Value | F55: Value | G55: Change | H55: Change | I55: Assessment
A56: 801 | B56: Food Manufacturing | C56: 23712 | D56: ='Page 5'!H7 -> 0 | E56: 2726.88 | F56: ='Page 5'!I7 -> 0 | G56: =D56-C56 -> -23712 | H56: =IF(E56=0,"",F56/E56-1) -> -1 | I56: =IF(D56=0,"N/A",F56/D56) -> N/A
A57: 802 | B57: Beverage Manufacturing | C57: 0 | D57: ='Page 5'!H12 -> 0 | E57: 0 | F57: ='Page 5'!I12 -> 0 | G57: 0 | I57: =IF(D57=0,"N/A",F57/D57) -> N/A
A58: 803 | B58: Tobacco Manufacturing | C58: 0 | D58: ='Page 5'!H17 -> 0 | E58: 0 | F58: ='Page 5'!I17 -> 0 | G58: 0 | I58: =IF(D58=0,"N/A",F58/D58) -> N/A
A59: 804 | B59: Manufacture of Textile Mill Products | C59: 0 | D59: ='Page 5'!H22 -> 0 | E59: 0 | F59: ='Page 5'!I22 -> 0 | G59: 0 | I59: N/A
A60: 805 | B60: Apparel Manufacturing | C60: 0 | D60: ='Page 5'!H27 -> 0 | E60: 0 | F60: ='Page 5'!I27 -> 0 | G60: 0 | I60: N/A
A61: 806 | B61: Leather Manufacturing | C61: 0 | D61: ='Page 5'!H32 -> 0 | E61: 0 | F61: ='Page 5'!I32 -> 0 | G61: 0 | I61: N/A
A62: 807 | B62: Wood Product Manufacturing | C62: 4232920 | D62: ='Page 6'!H7 -> 0 | E62: 486785.8 | F62: ='Page 6'!I7 -> 0 | G62: -4232920 | H62: -1 | I62: N/A
A63: 808 | B63: Paper Manufacturing | C63: 0 | D63: ='Page 6'!H12 -> 0 | E63: 0 | F63: ='Page 6'!I12 -> 0 | G63: 0 | I63: N/A
A64: 809 | B64: Printing - Newspapers, Books etc. | C64: 1123973 | D64: ='Page 6'!H17 -> 0 | E64: 129256.895 | F64: ='Page 6'!I17 -> 0 | G64: -1123973 | H64: -1 | I64: N/A
A65: 810 | B65: Chemical Manufacturing | C65: 143865 | D65: ='Page 6'!H22 -> 0 | E65: 16544.475 | F65: ='Page 6'!I22 -> 0 | G65: -143865 | H65: -1 | I65: N/A
A66: 811 | B66: Plastic & Rubber Product Manufacturing | C66: 4490766 | D66: ='Page 6'!H27 -> 0 | E66: 516438.09 | F66: ='Page 6'!I27 -> 0 | G66: -4490766 | H66: -1 | I66: N/A
A67: 812 | B67: Non-Metallic Mineral Product Manufacturing | C67: 52321093 | D67: ='Page 6'!H32 -> 0 | E67: 6016925.695 | F67: ='Page 6'!I32 -> 0 | G67: -52321093 | H67: -1 | I67: N/A
A68: 813 | B68: Primary Metal Manufacturing | C68: 40000 | D68: ='Page 7'!H7 -> 0 | E68: 4600 | F68: ='Page 7'!I7 -> 0 | G68: -40000 | H68: -1 | I68: N/A
A69: 814 | B69: Fabricated Metal Product Manufacturing | C69: 595064 | D69: ='Page 7'!H12 -> 0 | E69: 68432.36 | F69: ='Page 7'!I12 -> 0 | G69: -595064 | H69: -1 | I69: N/A
A70: 815 | B70: Machinery Manufacturing | C70: 16863 | D70: ='Page 7'!H17 -> 0 | E70: 1939.245 | F70: ='Page 7'!I17 -> 0 | G70: -16863 | H70: -1 | I70: N/A
A71: 816 | B71: Computer & Electronic Product Manufacturing | C71: 130463 | D71: ='Page 7'!H22 -> 0 | E71: 15003.245 | F71: ='Page 7'!I22 -> 0 | G71: -130463 | H71: -1 | I71: N/A
A72: 817 | B72: Electronic Equip, Appliance & Component Manu. | C72: 0 | D72: ='Page 7'!H27 -> 0 | E72: 0 | F72: ='Page 7'!I27 -> 0 | G72: 0 | I72: N/A
A73: 818 | B73: Transportation Equipment Manufacturing | C73: 0 | D73: ='Page 7'!H32 -> 0 | E73: 0 | F73: ='Page 7'!I32 -> 0 | G73: 0 | I73: N/A
A74: 819 | B74: Furniture & Related Product Manufacturing | C74: 789645 | D74: ='Page 8'!H7 -> 0 | E74: 90809.175 | F74: ='Page 8'!I7 -> 0 | G74: -789645 | H74: -1 | I74: N/A
A75: 820 | B75: Medical Equipment & Supplies Manufacturing | C75: 0 | D75: ='Page 8'!H12 -> 0 | E75: 0 | F75: ='Page 8'!I12 -> 0 | G75: 0 | I75: N/A
A76: 821 | B76: Manufacture of Jewelry, Silverware, Etc. | C76: 0 | D76: ='Page 8'!H17 -> 0 | E76: 0 | F76: ='Page 8'!I17 -> 0 | G76: 0 | I76: N/A
A77: 822 | B77: Oil & Gas Extraction | C77: 2101170 | D77: ='Page 8'!H22 -> 0 | E77: 241634.55 | F77: ='Page 8'!I22 -> 0 | G77: -2101170 | H77: -1 | I77: N/A
A78: 823 | B78: Coal Mining | C78: 0 | D78: ='Page 8'!H27 -> 0 | E78: 0 | F78: ='Page 8'!I27 -> 0 | G78: 0 | I78: N/A
A79: 824 | B79: Metal Ore Mining | C79: 0 | D79: ='Page 8'!H32 -> 0 | E79: 0 | F79: ='Page 8'!I32 -> 0 | G79: 0 | I79: N/A
A80: 825 | B80: Non-Metal Mining & Quarrying | C80: 164548 | D80: ='Page 9'!H7 -> 0 | E80: 18923.02 | F80: ='Page 9'!I7 -> 0 | G80: -164548 | H80: -1 | I80: N/A
A81: 826 | B81: Petroleum & Coal Product Manufacturing | C81: 0 | D81: ='Page 9'!H12 -> 0 | E81: 0 | F81: ='Page 9'!I12 -> 0 | G81: 0 | I81: N/A
A82: 827 | B82: Basic Chemical Manufacturing | C82: 0 | D82: ='Page 9'!H17 -> 0 | E82: 0 | F82: ='Page 9'!I17 -> 0 | G82: 0 | I82: N/A
A83: 828 | B83: Pipeline Transportation | C83: 0 | D83: ='Page 9'!H22 -> 0 | E83: 0 | F83: ='Page 9'!I22 -> 0 | G83: 0 | I83: N/A
A84: 829 | B84: Electric Power Generation | D84: ='Page 9'!H27 -> 0
A85: 830 | B85: Unspecified Other | C85: 4979403 | G85: -4979403 | I85: N/A
A86: 831 | B86: Vacant Industrial Land | C86: 1114500 | D86: ='Page 9'!H29 -> 0 | E86: 128167.5 | F86: ='Page 9'!I29 -> 0 | G86: -1114500 | H86: -1 | I86: N/A
A87: 832 | B87: Pollution Control & Fire Exemptions Granted | C87: 1060270 | D87: ='Page 10'!D35+'Page 11'!D35 -> 0 | E87: 121931.05 | F87: ='Page 10'!E35+'Page 11'!E35 -> 0 | G87: -1060270 | H87: -1 | I87: =IF(D87=0,"N/A",F87/D87) -> N/A
A88: D | B88: TOTAL INDUSTRIAL | C88: =SUM(C56:C87) -> 73328255 | D88: 0 | E88: 7860117.98 | F88: 0 | G88: -73328255 | H88: -15 | I88: =IF(D88=0,"N/A",F88/D88) -> N/A
